﻿Department family,Entity,Date of payment,Expense type,Expense area,Supplier,Transaction number,Amount in Sterling,Supplier VAT Registration Number
Department of Health,Guys and St Thomas NHS Foundation Trust,22/05/2020,(84500) Establishment,(id:42277) Cancer Supportive Services and R&D,CDP  PRINT MANAGEMENT,id:13041994 ,   9.30
Department of Health,Guys and St Thomas NHS Foundation Trust,01/05/2020,(81200) Medical Surgical Supplies & Equipment,(id:42270) Haematology,TERUMO BCT EUROPE NV/SA  (PREVIOUSLY CARIDIAN),id:12995852,4169.38
Department of Health,Guys and St Thomas NHS Foundation Trust,01/05/2020,(81700) Lab Equipment Purchase,(id:42270) Haematology,NHS SUPPLY CHAIN (MAIDSTONE),id:12945257   ,  39.54
Department of Health,Guys and St Thomas NHS Foundation Trust,07/05/2020,(82000) Provisions & Kitchens,(id:42270) Haematology,NHS SUPPLY CHAIN (MAIDSTONE),id:12997837    ,  39.00
Department of Health,Guys and St Thomas NHS Foundation Trust,18/05/2020,(82600) Uniforms & Clothing,(id:42270) Haematology,NHS SUPPLY CHAIN (MAIDSTONE),id:12976194 , 511.34
Department of Health,Guys and St Thomas NHS Foundation Trust,18/05/2020,(82800) Bedding & Linen,(id:42270) Haematology,NHS SUPPLY CHAIN (MAIDSTONE),id:13003941, 561.81
Department of Health,Guys and St Thomas NHS Foundation Trust,01/05/2020,(82700) Uniforms & Clothing,(id:42265) Haematology,NHS SUPPLY CHAIN (MAIDSTONE),id:12945257 ,  31.68
Department of Health,Guys and St Thomas NHS Foundation Trust,01/05/2020,(82700) Uniforms & Clothing,(id:42265) Haematology,NHS SUPPLY CHAIN (MAIDSTONE),id:12984936 ,  31.68
Department of Health,Guys and St Thomas NHS Foundation Trust,18/05/2020,(82700) Uniforms & Clothing,(id:42265) Haematology,NHS SUPPLY CHAIN (MAIDSTONE),id:13003941 ,  63.36
Department of Health,Guys and St Thomas NHS Foundation Trust,22/05/2020,(84500) Establishment,(id:42265) Haematology,CDP  PRINT MANAGEMENT,id:13040917    ,   9.00
Department of Health,Guys and St Thomas NHS Foundation Trust,18/05/2020,(83400) Office Equipment,(id:42265) Haematology,NHS SUPPLY CHAIN (MAIDSTONE),id:12976194    ,  83.35
Department of Health,Guys and St Thomas NHS Foundation Trust,07/05/2020,(81225) Medical Surgical Supplies & Equipment,(id:42265) Haematology,NHS SUPPLY CHAIN (MAIDSTONE),id:12997837   ,  10.08
Department of Health,Guys and St Thomas NHS Foundation Trust,18/05/2020,(81700) Lab Equipment Purchase,(id:42265) Haematology,NHS SUPPLY CHAIN (MAIDSTONE),id:13003941   ,  65.72
Department of Health,Guys and St Thomas NHS Foundation Trust,07/05/2020,(81700) Lab Equipment Purchase,(id:42265) Haematology,NHS SUPPLY CHAIN (MAIDSTONE),id:12997837   ,  78.89
Department of Health,Guys and St Thomas NHS Foundation Trust,01/05/2020,(83400) Office Equipment,(id:42272) Haematology,NHS SUPPLY CHAIN (MAIDSTONE),id:12945257    , 609.50
Department of Health,Guys and St Thomas NHS Foundation Trust,01/05/2020,(81200) Medical Surgical Supplies & Equipment,(id:42272) Haematology,NHS SUPPLY CHAIN (MAIDSTONE),id:12945257   ,1644.36
Department of Health,Guys and St Thomas NHS Foundation Trust,07/05/2020,(81000) Surgical Appliances,(id:42272) Haematology,MEDI UK LTD,id:13012996   ,  52.03
Department of Health,Guys and St Thomas NHS Foundation Trust,01/05/2020,(81700) Lab Equipment Purchase,(id:42272) Haematology,NHS SUPPLY CHAIN (MAIDSTONE),id:12957217   ,  39.60
Department of Health,Guys and St Thomas NHS Foundation Trust,28/05/2020,(81900) Lab Equipment Purchase,(id:42272) Haematology,VIAPATH ANALYTICS LLP,id:12671992,2213.59
Department of Health,Guys and St Thomas NHS Foundation Trust,07/05/2020,(80205) Drug Costs,(id:42273) Haematology,HEALTHCARE AT HOME LTD,id:13011374 ,9125.00
Department of Health,Guys and St Thomas NHS Foundation Trust,07/05/2020,(80205) Drug Costs,(id:42273) Haematology,HEALTHCARE AT HOME LTD,id:13011494 ,4925.00
Department of Health,Guys and St Thomas NHS Foundation Trust,07/05/2020,(80205) Drug Costs,(id:42273) Haematology,BAXALTA UK LTD,id:13011655    ,5435.20
Department of Health,Guys and St Thomas NHS Foundation Trust,15/05/2020,(80205) Drug Costs,(id:42273) Haematology,HEALTHCARE AT HOME LTD,id:13025453 ,2125.00
Department of Health,Guys and St Thomas NHS Foundation Trust,15/05/2020,(80205) Drug Costs,(id:42273) Haematology,HEALTHCARE AT HOME LTD,id:13025415 ,6425.00
Department of Health,Guys and St Thomas NHS Foundation Trust,28/05/2020,(80205) Drug Costs,(id:42273) Haematology,SHIRE PHARMACEUTICALS LTD,id:13046136   ,2797.60
Department of Health,Guys and St Thomas NHS Foundation Trust,01/05/2020,(89200) Other - Patient travel,(id:42130) Haematology,F A ALBIN & SONS,id:13001882, 860.00
Department of Health,Guys and St Thomas NHS Foundation Trust,18/05/2020,(82800) Bedding & Linen,(id:42130) Haematology,NHS SUPPLY CHAIN (MAIDSTONE),id:13003941, 200.76
Department of Health,Guys and St Thomas NHS Foundation Trust,15/05/2020,(54052) Technical Officers,(id:42128) Haematology,TOTAL ASSIST RECRUITMENT LTD,id:13031199  , 768.42
Department of Health,Guys and St Thomas NHS Foundation Trust,22/05/2020,(54052) Technical Officers,(id:42128) Haematology,TOTAL ASSIST RECRUITMENT LTD,id:13043920  , 700.12
Department of Health,Guys and St Thomas NHS Foundation Trust,07/05/2020,(54052) Technical Officers,(id:42128) Haematology,TOTAL ASSIST RECRUITMENT LTD,id:13018114  , 956.26
Department of Health,Guys and St Thomas NHS Foundation Trust,07/05/2020,(81700) Lab Equipment Purchase,(id:42128) Haematology,CHEMSOL LIMITED,id:12953319 ,1321.74
Department of Health,Guys and St Thomas NHS Foundation Trust,07/05/2020,(81700) Lab Equipment Purchase,(id:42128) Haematology,CHEMSOL LIMITED,id:12943375 , 755.58
Department of Health,Guys and St Thomas NHS Foundation Trust,01/05/2020,(81700) Lab Equipment Purchase,(id:42128) Haematology,NHS SUPPLY CHAIN (MAIDSTONE),id:12957217   , 136.20
Department of Health,Guys and St Thomas NHS Foundation Trust,22/05/2020,(84500) Establishment,(id:42258) Oncology Services,CDP  PRINT MANAGEMENT,id:13040917   ,   9.30
Department of Health,Guys and St Thomas NHS Foundation Trust,01/05/2020,(83400) Office Equipment,(id:42258) Oncology Services,NHS SUPPLY CHAIN (MAIDSTONE),id:12957217   ,  35.73
Department of Health,Guys and St Thomas NHS Foundation Trust,01/05/2020,(82800) Bedding & Linen,(id:42258) Oncology Services,NHS SUPPLY CHAIN (MAIDSTONE),id:12984936    , 572.11
Department of Health,Guys and St Thomas NHS Foundation Trust,25/05/2020,(52062) Radiographers,(id:42258) Oncology Services,PRICEWATERHOUSECOOPERS LLP,id:13047794   ,2275.62
Department of Health,Guys and St Thomas NHS Foundation Trust,18/05/2020,(81100) Dressings,(id:42258) Oncology Services,NHS SUPPLY CHAIN (MAIDSTONE),id:12976194, 625.00
Department of Health,Guys and St Thomas NHS Foundation Trust,18/05/2020,(81700) Lab Equipment Purchase,(id:42258) Oncology Services,NHS SUPPLY CHAIN (MAIDSTONE),id:12976194  ,   5.93
Department of Health,Guys and St Thomas NHS Foundation Trust,01/05/2020,(81700) Lab Equipment Purchase,(id:42258) Oncology Services,NHS SUPPLY CHAIN (MAIDSTONE),id:12957217  ,  11.86
Department of Health,Guys and St Thomas NHS Foundation Trust,22/05/2020,(81000) Surgical Appliances,(id:42257) Oncology Services,MEDI UK LTD,id:13032770  ,  90.02
Department of Health,Guys and St Thomas NHS Foundation Trust,01/05/2020,(83610) IT Costs,(id:42257) Oncology Services,CCS MEDIA LTD,id:12996152 ,1008.00
Department of Health,Guys and St Thomas NHS Foundation Trust,15/05/2020,(81700) Lab Equipment Purchase,(id:42261) Oncology Services,EXACT SCIENCES UK LTD,id:13020781    ,2700.00
Department of Health,Guys and St Thomas NHS Foundation Trust,07/05/2020,(83400) Office Equipment,(id:42261) Oncology Services,ICOM TELECOMMUNICATIONS LTD,id:12976676    , 748.06
Department of Health,Guys and St Thomas NHS Foundation Trust,22/05/2020,(89120) Other - Legal fees,(id:42261) Oncology Services,BEACHCROFT LLP OFFICE ACCOUNT,id:13039122,3032.90
Department of Health,Guys and St Thomas NHS Foundation Trust,15/05/2020,(81000) Surgical Appliances,(id:42261) Oncology Services,TALAR MADE ORTHOTICS LTD,id:13020839    , 252.00
Department of Health,Guys and St Thomas NHS Foundation Trust,07/05/2020,(82600) Uniforms & Clothing,(id:42260) Oncology Services,NHS SUPPLY CHAIN (MAIDSTONE),id:12997837, 611.90
Department of Health,Guys and St Thomas NHS Foundation Trust,01/05/2020,(82800) Bedding & Linen,(id:42260) Oncology Services,NHS SUPPLY CHAIN (MAIDSTONE),id:12984936    , 176.10
Department of Health,Guys and St Thomas NHS Foundation Trust,01/05/2020,(82800) Bedding & Linen,(id:42260) Oncology Services,NHS SUPPLY CHAIN (MAIDSTONE),id:12945257    ,  10.56
Department of Health,Guys and St Thomas NHS Foundation Trust,28/05/2020,(55632) Maintenance Staff,(id:42260) Oncology Services,PAXMAN COOLERS LTD,id:12943648  ,2684.40
Department of Health,Guys and St Thomas NHS Foundation Trust,01/05/2020,(83400) Office Equipment,(id:42260) Oncology Services,NHS SUPPLY CHAIN (MAIDSTONE),id:12945257   , 407.38
Department of Health,Guys and St Thomas NHS Foundation Trust,01/05/2020,(81700) Lab Equipment Purchase,(id:42260) Oncology Services,NHS SUPPLY CHAIN (MAIDSTONE),id:12945257  , 108.19
Department of Health,Guys and St Thomas NHS Foundation Trust,01/05/2020,(82600) Uniforms & Clothing,(id:42259) Oncology Services,NHS SUPPLY CHAIN (MAIDSTONE),id:12945257,  18.53
Department of Health,Guys and St Thomas NHS Foundation Trust,18/05/2020,(81100) Dressings,(id:42259) Oncology Services,NHS SUPPLY CHAIN (MAIDSTONE),id:12976194,  37.24
Department of Health,Guys and St Thomas NHS Foundation Trust,28/05/2020,(81200) Medical Surgical Supplies & Equipment,(id:42259) Oncology Services,BARD LTD,id:13007424  , 765.00
Department of Health,Guys and St Thomas NHS Foundation Trust,22/05/2020,(83410) Office Equipment,(id:42259) Oncology Services,RICOH UK LTD,id:13037336    , 161.35
Department of Health,Guys and St Thomas NHS Foundation Trust,07/05/2020,(83400) Office Equipment,(id:42259) Oncology Services,NHS SUPPLY CHAIN (MAIDSTONE),id:12997837   ,  36.34
Department of Health,Guys and St Thomas NHS Foundation Trust,18/05/2020,(83400) Office Equipment,(id:42259) Oncology Services,NHS SUPPLY CHAIN (MAIDSTONE),id:13003941   , 212.95
Department of Health,Guys and St Thomas NHS Foundation Trust,18/05/2020,(81255) Medical Surgical Supplies & Equipment,(id:42259) Oncology Services,NHS SUPPLY CHAIN (MAIDSTONE),id:13003941  ,   4.32
Department of Health,Guys and St Thomas NHS Foundation Trust,01/05/2020,(81700) Lab Equipment Purchase,(id:243406) Surgical Oncology,NHS SUPPLY CHAIN (MAIDSTONE),id:12984936 ,  18.63
Department of Health,Guys and St Thomas NHS Foundation Trust,07/05/2020,(81100) Dressings,(id:243406) Surgical Oncology,NHS SUPPLY CHAIN (MAIDSTONE),id:12997837    ,  13.21
Department of Health,Guys and St Thomas NHS Foundation Trust,01/05/2020,(81100) Dressings,(id:243406) Surgical Oncology,NHS SUPPLY CHAIN (MAIDSTONE),id:12984936    ,  39.25
Department of Health,Guys and St Thomas NHS Foundation Trust,01/05/2020,(82800) Bedding & Linen,(id:243406) Surgical Oncology,NHS SUPPLY CHAIN (MAIDSTONE),id:12984936   ,  10.01
Department of Health,Guys and St Thomas NHS Foundation Trust,01/05/2020,(81225) Medical Surgical Supplies & Equipment,(id:243406) Surgical Oncology,NHS SUPPLY CHAIN (MAIDSTONE),id:12957217 ,  20.16
Department of Health,Guys and St Thomas NHS Foundation Trust,18/05/2020,(82000) Provisions & Kitchens,(id:243406) Surgical Oncology,NHS SUPPLY CHAIN (MAIDSTONE),id:12976194  , 136.74
Department of Health,Guys and St Thomas NHS Foundation Trust,18/05/2020,(82600) Uniforms & Clothing,(id:243406) Surgical Oncology,NHS SUPPLY CHAIN (MAIDSTONE),id:13003941    ,  60.23
Department of Health,Guys and St Thomas NHS Foundation Trust,01/05/2020,(81200) Medical Surgical Supplies & Equipment,(id:42474) Surgical Oncology,NHS SUPPLY CHAIN (MAIDSTONE),id:12957217  ,  52.20
Department of Health,Guys and St Thomas NHS Foundation Trust,15/05/2020,(83400) Office Equipment,(id:42474) Surgical Oncology,OFFICE DEPOT UK LTD,id:13008361  ,  31.61
Department of Health,Guys and St Thomas NHS Foundation Trust,01/05/2020,(83400) Office Equipment,(id:42474) Surgical Oncology,NHS SUPPLY CHAIN (MAIDSTONE),id:12945257   , 144.08
Department of Health,Guys and St Thomas NHS Foundation Trust,01/05/2020,(81200) Medical Surgical Supplies & Equipment,(id:42473) Surgical Oncology,LINDSAY SURGICAL SUPPLIES LIMITED,id:12890158  ,2360.40
Department of Health,Guys and St Thomas NHS Foundation Trust,07/05/2020,(81200) Medical Surgical Supplies & Equipment,(id:42473) Surgical Oncology,NHS SUPPLY CHAIN (MAIDSTONE),id:12997837  , 220.25
Department of Health,Guys and St Thomas NHS Foundation Trust,28/05/2020,(81200) Medical Surgical Supplies & Equipment,(id:42473) Surgical Oncology,MERCIAN SURGICAL SUPPLY CO LTD,id:13044554, 696.00
Department of Health,Guys and St Thomas NHS Foundation Trust,28/05/2020,(81200) Medical Surgical Supplies & Equipment,(id:42473) Surgical Oncology,MERCIAN SURGICAL SUPPLY CO LTD,id:13043970, 862.20
Department of Health,Guys and St Thomas NHS Foundation Trust,22/05/2020,(83410) Office Equipment,(id:42475) Surgical Oncology,RICOH UK LTD,id:13037413    , 661.57
Department of Health,Guys and St Thomas NHS Foundation Trust,28/05/2020,(81215) Medical Surgical Supplies & Equipment,(id:42475) Surgical Oncology,ADVANCED BIONICS SARL (AND UK LTD),id:13053860 ,6840.00
Department of Health,Guys and St Thomas NHS Foundation Trust,28/05/2020,(81215) Medical Surgical Supplies & Equipment,(id:42475) Surgical Oncology,ADVANCED BIONICS SARL (AND UK LTD),id:13053881 ,7800.00
Department of Health,Guys and St Thomas NHS Foundation Trust,18/05/2020,(81225) Medical Surgical Supplies & Equipment,(id:42475) Surgical Oncology,NHS SUPPLY CHAIN (MAIDSTONE),id:12976194  ,5717.38
Department of Health,Guys and St Thomas NHS Foundation Trust,01/05/2020,(82800) Bedding & Linen,(id:42286) Surgical Oncology,NHS SUPPLY CHAIN (MAIDSTONE),id:12945257    ,  55.20
Department of Health,Guys and St Thomas NHS Foundation Trust,01/05/2020,(81200) Medical Surgical Supplies & Equipment,(id:42286) Surgical Oncology,FREELANCE SURGICAL PROMOTIONS,id:12984955 , 679.20
Department of Health,Guys and St Thomas NHS Foundation Trust,01/05/2020,(82000) Provisions & Kitchens,(id:42284) Surgical Oncology,NHS SUPPLY CHAIN (MAIDSTONE),id:12984936   ,   8.40
Department of Health,Guys and St Thomas NHS Foundation Trust,01/05/2020,(82800) Bedding & Linen,(id:42284) Surgical Oncology,NHS SUPPLY CHAIN (MAIDSTONE),id:12945257    ,  71.56
Department of Health,Guys and St Thomas NHS Foundation Trust,07/05/2020,(83400) Office Equipment,(id:42284) Surgical Oncology,NHS SUPPLY CHAIN (MAIDSTONE),id:12997837   ,  65.66
Department of Health,Guys and St Thomas NHS Foundation Trust,18/05/2020,(81700) Lab Equipment Purchase,(id:42284) Surgical Oncology,NHS SUPPLY CHAIN (MAIDSTONE),id:13003941  ,  44.33
Department of Health,Guys and St Thomas NHS Foundation Trust,18/05/2020,(81255) Medical Surgical Supplies & Equipment,(id:42284) Surgical Oncology,NHS SUPPLY CHAIN (MAIDSTONE),id:13003941  ,   3.12
Department of Health,Guys and St Thomas NHS Foundation Trust,18/05/2020,(81255) Medical Surgical Supplies & Equipment,(id:42284) Surgical Oncology,NHS SUPPLY CHAIN (MAIDSTONE),id:12976194  ,   4.80
Department of Health,Guys and St Thomas NHS Foundation Trust,01/05/2020,(81255) Medical Surgical Supplies & Equipment,(id:42284) Surgical Oncology,NHS SUPPLY CHAIN (MAIDSTONE),id:12945257  ,   9.48
Department of Health,Guys and St Thomas NHS Foundation Trust,07/05/2020,(83500) Furniture & Fittings,(id:42470) Surgical Oncology,TECHNIBLINDS LTD,id:13004354 , 834.00
Department of Health,Guys and St Thomas NHS Foundation Trust,18/05/2020,(82800) Bedding & Linen,(id:42470) Surgical Oncology,NHS SUPPLY CHAIN (MAIDSTONE),id:12976194    , 117.27
Department of Health,Guys and St Thomas NHS Foundation Trust,22/05/2020,(84500) Establishment,(id:42470) Surgical Oncology,CDP  PRINT MANAGEMENT,id:13041994   ,  74.82
Department of Health,Guys and St Thomas NHS Foundation Trust,18/05/2020,(81100) Dressings,(id:42470) Surgical Oncology,NHS SUPPLY CHAIN (MAIDSTONE),id:13003941, 272.15
Department of Health,Guys and St Thomas NHS Foundation Trust,01/05/2020,(81200) Medical Surgical Supplies & Equipment,(id:42470) Surgical Oncology,KAPITEX HEALTHCARE LTD,id:13006694   , 541.93
Department of Health,Guys and St Thomas NHS Foundation Trust,18/05/2020,(81200) Medical Surgical Supplies & Equipment,(id:42470) Surgical Oncology,NHS SUPPLY CHAIN (MAIDSTONE),id:12976194  ,2690.82
Department of Health,Guys and St Thomas NHS Foundation Trust,15/05/2020,(50552) Qualified Nursing Staff,(id:42470) Surgical Oncology,MSI GROUP LTD,id:13030933 , 349.41
Department of Health,Guys and St Thomas NHS Foundation Trust,01/05/2020,(83400) Office Equipment,(id:42470) Surgical Oncology,NHS SUPPLY CHAIN (MAIDSTONE),id:12945257   , 229.87
Department of Health,Guys and St Thomas NHS Foundation Trust,18/05/2020,(81225) Medical Surgical Supplies & Equipment,(id:42470) Surgical Oncology,NHS SUPPLY CHAIN (MAIDSTONE),id:13003941  ,  20.16
Department of Health,Guys and St Thomas NHS Foundation Trust,22/05/2020,(84500) Establishment,(id:42232) Integrated Therapies and Medicine,CDP  PRINT MANAGEMENT,id:13040918  ,  40.20
Department of Health,Guys and St Thomas NHS Foundation Trust,22/05/2020,(84500) Establishment,(id:42232) Integrated Therapies and Medicine,CDP  PRINT MANAGEMENT,id:13040917  ,  28.80
Department of Health,Guys and St Thomas NHS Foundation Trust,18/05/2020,(81200) Medical Surgical Supplies & Equipment,(id:42232) Integrated Therapies and Medicine,NHS SUPPLY CHAIN (MAIDSTONE),id:12976194 , 174.00
Department of Health,Guys and St Thomas NHS Foundation Trust,15/05/2020,(81200) Medical Surgical Supplies & Equipment,(id:42231) Integrated Therapies and Medicine,INVACARE LTD,id:13032734  ,1761.60
Department of Health,Guys and St Thomas NHS Foundation Trust,22/05/2020,(84500) Establishment,(id:42240) Integrated Therapies and Medicine,CDP  PRINT MANAGEMENT,id:13041994  ,  33.80
Department of Health,Guys and St Thomas NHS Foundation Trust,25/05/2020,(51872) Physiotherapists,(id:42240) Integrated Therapies and Medicine,PRICEWATERHOUSECOOPERS LLP,id:13047754    ,1042.64
Department of Health,Guys and St Thomas NHS Foundation Trust,25/05/2020,(51872) Physiotherapists,(id:42240) Integrated Therapies and Medicine,PRICEWATERHOUSECOOPERS LLP,id:13047774    ,1061.68
Department of Health,Guys and St Thomas NHS Foundation Trust,15/05/2020,(81100) Dressings,(id:42239) Integrated Therapies and Medicine,PERFORMANCE HEALTH INTERNATIONAL LTD (PATTERSON),id:12913985    ,  36.06
Department of Health,Guys and St Thomas NHS Foundation Trust,18/05/2020,(83400) Office Equipment,(id:42239) Integrated Therapies and Medicine,NHS SUPPLY CHAIN (MAIDSTONE),id:13003941  ,   1.80
Department of Health,Guys and St Thomas NHS Foundation Trust,01/05/2020,(81100) Dressings,(id:590530) Integrated Therapies and Medicine,NHS SUPPLY CHAIN (MAIDSTONE),id:12984936   ,  25.52
Department of Health,Guys and St Thomas NHS Foundation Trust,01/05/2020,(81200) Medical Surgical Supplies & Equipment,(id:590530) Integrated Therapies and Medicine,NHS SUPPLY CHAIN (MAIDSTONE),id:12945257,  27.84
Department of Health,Guys and St Thomas NHS Foundation Trust,18/05/2020,(82600) Uniforms & Clothing,(id:590490) Integrated Therapies and Medicine,NHS SUPPLY CHAIN (MAIDSTONE),id:12976194   ,  14.34
Department of Health,Guys and St Thomas NHS Foundation Trust,18/05/2020,(81100) Dressings,(id:42243) Integrated Therapies and Medicine,NHS SUPPLY CHAIN (MAIDSTONE),id:13003941    , 311.55
Department of Health,Guys and St Thomas NHS Foundation Trust,27/05/2020,(53072) Speech Therapists,(id:42248) Integrated Therapies and Medicine,PRICEWATERHOUSECOOPERS LLP,id:13050033   ,2808.65
Department of Health,Guys and St Thomas NHS Foundation Trust,27/05/2020,(53062) Speech Therapists,(id:42248) Integrated Therapies and Medicine,PRICEWATERHOUSECOOPERS LLP,id:13050033   ,2407.66
Department of Health,Guys and St Thomas NHS Foundation Trust,25/05/2020,(53062) Speech Therapists,(id:42248) Integrated Therapies and Medicine,PRICEWATERHOUSECOOPERS LLP,id:13047774   ,3549.28
Department of Health,Guys and St Thomas NHS Foundation Trust,01/05/2020,(81200) Medical Surgical Supplies & Equipment,(id:590499) Integrated Therapies and Medicine,INVACARE LTD,id:12984334 , 668.40
Department of Health,Guys and St Thomas NHS Foundation Trust,01/05/2020,(81200) Medical Surgical Supplies & Equipment,(id:590499) Integrated Therapies and Medicine,INVACARE LTD,id:12984326 ,3002.40
Department of Health,Guys and St Thomas NHS Foundation Trust,22/05/2020,(81200) Medical Surgical Supplies & Equipment,(id:590499) Integrated Therapies and Medicine,INVACARE LTD,id:13007458 , 521.10
Department of Health,Guys and St Thomas NHS Foundation Trust,22/05/2020,(81200) Medical Surgical Supplies & Equipment,(id:590499) Integrated Therapies and Medicine,INVACARE LTD,id:13007548 ,1496.40
Department of Health,Guys and St Thomas NHS Foundation Trust,22/05/2020,(81200) Medical Surgical Supplies & Equipment,(id:590499) Integrated Therapies and Medicine,SUNRISE MEDICAL LIMITED,id:12941778,1664.40
Department of Health,Guys and St Thomas NHS Foundation Trust,22/05/2020,(81200) Medical Surgical Supplies & Equipment,(id:590499) Integrated Therapies and Medicine,INVACARE LTD,id:13007439 ,2509.20
Department of Health,Guys and St Thomas NHS Foundation Trust,01/05/2020,(81225) Medical Surgical Supplies & Equipment,(id:590499) Integrated Therapies and Medicine,SUNRISE MEDICAL LIMITED,id:12990193, 509.76
Department of Health,Guys and St Thomas NHS Foundation Trust,01/05/2020,(81225) Medical Surgical Supplies & Equipment,(id:590499) Integrated Therapies and Medicine,GERALD SIMONDS HEALTHCARE LTD,id:12993902    ,3474.00
Department of Health,Guys and St Thomas NHS Foundation Trust,22/05/2020,(81225) Medical Surgical Supplies & Equipment,(id:590499) Integrated Therapies and Medicine,MANUTAN UK,id:13008089   ,1279.20
Department of Health,Guys and St Thomas NHS Foundation Trust,07/05/2020,(81225) Medical Surgical Supplies & Equipment,(id:590498) Integrated Therapies and Medicine,JANE SAUNDERS & MANNING LTD,id:12990794 , 699.13
Department of Health,Guys and St Thomas NHS Foundation Trust,07/05/2020,(81225) Medical Surgical Supplies & Equipment,(id:590498) Integrated Therapies and Medicine,JANE SAUNDERS & MANNING LTD,id:12990768 , 781.96
Department of Health,Guys and St Thomas NHS Foundation Trust,07/05/2020,(81225) Medical Surgical Supplies & Equipment,(id:590498) Integrated Therapies and Medicine,JANE SAUNDERS & MANNING LTD,id:12990773 , 549.72
Department of Health,Guys and St Thomas NHS Foundation Trust,01/05/2020,(81200) Medical Surgical Supplies & Equipment,(id:590496) Integrated Therapies and Medicine,NHS SUPPLY CHAIN (MAIDSTONE),id:12945257,  18.00
Department of Health,Guys and St Thomas NHS Foundation Trust,01/05/2020,(81100) Dressings,(id:590496) Integrated Therapies and Medicine,NHS SUPPLY CHAIN (MAIDSTONE),id:12945257   ,  88.77
Department of Health,Guys and St Thomas NHS Foundation Trust,15/05/2020,(81225) Medical Surgical Supplies & Equipment,(id:42242) Integrated Therapies and Medicine,BROWNS MORE HAIR NOW LIMITED,id:12951890 ,3926.99
Department of Health,Guys and St Thomas NHS Foundation Trust,22/05/2020,(83500) Furniture & Fittings,(id:42242) Integrated Therapies and Medicine,HOSPITAL METALCRAFT LTD,id:13037925   ,1240.85
Department of Health,Guys and St Thomas NHS Foundation Trust,01/05/2020,(81100) Dressings,(id:1042419) Integrated Therapies and Medicine,NHS SUPPLY CHAIN (MAIDSTONE),id:12984936  , 486.48
Department of Health,Guys and St Thomas NHS Foundation Trust,01/05/2020,(81200) Medical Surgical Supplies & Equipment,(id:1042419) Integrated Therapies and Medicine,STANLEY SECURITY SOLUTIONS LTD,id:13001695  , 932.83
Department of Health,Guys and St Thomas NHS Foundation Trust,18/05/2020,(83400) Office Equipment,(id:1042419) Integrated Therapies and Medicine,NHS SUPPLY CHAIN (MAIDSTONE),id:13003941,  11.82
Department of Health,Guys and St Thomas NHS Foundation Trust,01/05/2020,(81400) Medical Surgical Supplies & Equipment,(id:1042419) Integrated Therapies and Medicine,NHS SUPPLY CHAIN (MAIDSTONE),id:12984936    , 142.80
Department of Health,Guys and St Thomas NHS Foundation Trust,01/05/2020,(50552) Qualified Nursing Staff,(id:41848) Integrated Therapies and Medicine,CARE PROVIDERS HEALTHCARE,id:13006189   , 755.25
Department of Health,Guys and St Thomas NHS Foundation Trust,01/05/2020,(81700) Lab Equipment Purchase,(id:2182419) Integrated Therapies and Medicine,NHS SUPPLY CHAIN (MAIDSTONE),id:12945257    , 105.23
Department of Health,Guys and St Thomas NHS Foundation Trust,18/05/2020,(81700) Lab Equipment Purchase,(id:2182419) Integrated Therapies and Medicine,NHS SUPPLY CHAIN (MAIDSTONE),id:12976194    , 141.12
Department of Health,Guys and St Thomas NHS Foundation Trust,01/05/2020,(82600) Uniforms & Clothing,(id:2182419) Integrated Therapies and Medicine,NHS SUPPLY CHAIN (MAIDSTONE),id:12957217  ,  18.54
Department of Health,Guys and St Thomas NHS Foundation Trust,18/05/2020,(81255) Medical Surgical Supplies & Equipment,(id:2182419) Integrated Therapies and Medicine,NHS SUPPLY CHAIN (MAIDSTONE),id:13003941    ,  68.33
Department of Health,Guys and St Thomas NHS Foundation Trust,01/05/2020,(82800) Bedding & Linen,(id:2182419) Integrated Therapies and Medicine,NHS SUPPLY CHAIN (MAIDSTONE),id:12945257 , 145.06
Department of Health,Guys and St Thomas NHS Foundation Trust,22/05/2020,(50552) Qualified Nursing Staff,(id:2182419) Integrated Therapies and Medicine,MSI GROUP LTD,id:13043611   , 339.44
Department of Health,Guys and St Thomas NHS Foundation Trust,28/05/2020,(50552) Qualified Nursing Staff,(id:2182419) Integrated Therapies and Medicine,CARE PROVIDERS HEALTHCARE,id:13053525 , 897.30
Department of Health,Guys and St Thomas NHS Foundation Trust,28/05/2020,(50552) Qualified Nursing Staff,(id:2182419) Integrated Therapies and Medicine,GLOBE LOCUMS LTD,id:13053480, 347.84
Department of Health,Guys and St Thomas NHS Foundation Trust,07/05/2020,(81100) Dressings,(id:2182419) Integrated Therapies and Medicine,NHS SUPPLY CHAIN (MAIDSTONE),id:12997837  , 271.98
Department of Health,Guys and St Thomas NHS Foundation Trust,18/05/2020,(82000) Provisions & Kitchens,(id:2182419) Integrated Therapies and Medicine,NHS SUPPLY CHAIN (MAIDSTONE),id:12976194,  91.47
Department of Health,Guys and St Thomas NHS Foundation Trust,18/05/2020,(82000) Provisions & Kitchens,(id:2182419) Integrated Therapies and Medicine,NHS SUPPLY CHAIN (MAIDSTONE),id:13003941, 175.30
Department of Health,Guys and St Thomas NHS Foundation Trust,01/05/2020,(83400) Office Equipment,(id:2182419) Integrated Therapies and Medicine,NHS SUPPLY CHAIN (MAIDSTONE),id:12984936, 446.59
Department of Health,Guys and St Thomas NHS Foundation Trust,01/05/2020,(82600) Uniforms & Clothing,(id:41860) Integrated Therapies and Medicine,NHS SUPPLY CHAIN (MAIDSTONE),id:12945257    ,  13.47
Department of Health,Guys and St Thomas NHS Foundation Trust,01/05/2020,(82000) Provisions & Kitchens,(id:41860) Integrated Therapies and Medicine,NHS SUPPLY CHAIN (MAIDSTONE),id:12945257  ,  53.12
Department of Health,Guys and St Thomas NHS Foundation Trust,01/05/2020,(82800) Bedding & Linen,(id:41860) Integrated Therapies and Medicine,NHS SUPPLY CHAIN (MAIDSTONE),id:12984936   , 118.90
Department of Health,Guys and St Thomas NHS Foundation Trust,18/05/2020,(82800) Bedding & Linen,(id:41860) Integrated Therapies and Medicine,NHS SUPPLY CHAIN (MAIDSTONE),id:13003941   , 209.47
Department of Health,Guys and St Thomas NHS Foundation Trust,22/05/2020,(84500) Establishment,(id:41860) Integrated Therapies and Medicine,CDP  PRINT MANAGEMENT,id:13041994  ,  10.80
Department of Health,Guys and St Thomas NHS Foundation Trust,28/05/2020,(50552) Qualified Nursing Staff,(id:41860) Integrated Therapies and Medicine,GLOBE LOCUMS LTD,id:13052044  , 322.99
Department of Health,Guys and St Thomas NHS Foundation Trust,01/05/2020,(82700) Uniforms & Clothing,(id:41859) Integrated Therapies and Medicine,NHS SUPPLY CHAIN (MAIDSTONE),id:12984936    ,  31.68
Department of Health,Guys and St Thomas NHS Foundation Trust,22/05/2020,(50552) Qualified Nursing Staff,(id:41859) Integrated Therapies and Medicine,CARE PROVIDERS HEALTHCARE,id:13045522   ,1015.22
Department of Health,Guys and St Thomas NHS Foundation Trust,22/05/2020,(50522) Unqualified Nursing Staff,(id:41859) Integrated Therapies and Medicine,MSI GROUP LTD,id:13043585   , 311.62
Department of Health,Guys and St Thomas NHS Foundation Trust,07/05/2020,(81700) Lab Equipment Purchase,(id:41859) Integrated Therapies and Medicine,NHS SUPPLY CHAIN (MAIDSTONE),id:12997837 ,   9.46
Department of Health,Guys and St Thomas NHS Foundation Trust,18/05/2020,(81700) Lab Equipment Purchase,(id:41859) Integrated Therapies and Medicine,NHS SUPPLY CHAIN (MAIDSTONE),id:13003941 ,  25.22
Department of Health,Guys and St Thomas NHS Foundation Trust,01/05/2020,(83400) Office Equipment,(id:41858) Integrated Therapies and Medicine,NHS SUPPLY CHAIN (MAIDSTONE),id:12984936  ,  33.03
Department of Health,Guys and St Thomas NHS Foundation Trust,07/05/2020,(83400) Office Equipment,(id:41858) Integrated Therapies and Medicine,NHS SUPPLY CHAIN (MAIDSTONE),id:12997837  ,  40.87
Department of Health,Guys and St Thomas NHS Foundation Trust,07/05/2020,(82800) Bedding & Linen,(id:41858) Integrated Therapies and Medicine,NHS SUPPLY CHAIN (MAIDSTONE),id:12997837   ,  16.92
Department of Health,Guys and St Thomas NHS Foundation Trust,22/05/2020,(84500) Establishment,(id:41858) Integrated Therapies and Medicine,CDP  PRINT MANAGEMENT,id:13040917  ,   9.30
Department of Health,Guys and St Thomas NHS Foundation Trust,28/05/2020,(50552) Qualified Nursing Staff,(id:41858) Integrated Therapies and Medicine,CONTINENTAL NURSE LTD,id:13053512  ,2385.88
Department of Health,Guys and St Thomas NHS Foundation Trust,01/05/2020,(81255) Medical Surgical Supplies & Equipment,(id:41858) Integrated Therapies and Medicine,NHS SUPPLY CHAIN (MAIDSTONE),id:12984936 ,  37.15
Department of Health,Guys and St Thomas NHS Foundation Trust,01/05/2020,(50522) Unqualified Nursing Staff,(id:41858) Integrated Therapies and Medicine,CARE PROVIDERS HEALTHCARE,id:13007516 , 504.12
Department of Health,Guys and St Thomas NHS Foundation Trust,18/05/2020,(81225) Medical Surgical Supplies & Equipment,(id:41858) Integrated Therapies and Medicine,NHS SUPPLY CHAIN (MAIDSTONE),id:12976194 ,   9.84
Department of Health,Guys and St Thomas NHS Foundation Trust,01/05/2020,(81700) Lab Equipment Purchase,(id:41858) Integrated Therapies and Medicine,NHS SUPPLY CHAIN (MAIDSTONE),id:12957217 ,  47.44
Department of Health,Guys and St Thomas NHS Foundation Trust,22/05/2020,(50532) Unqualified Nursing Staff,(id:41872) Integrated Therapies and Medicine,CONTINENTAL NURSE LTD,id:13043715, 939.35
Department of Health,Guys and St Thomas NHS Foundation Trust,07/05/2020,(50552) Qualified Nursing Staff,(id:41872) Integrated Therapies and Medicine,GLOBE LOCUMS LTD,id:13017864  , 313.82
Department of Health,Guys and St Thomas NHS Foundation Trust,01/05/2020,(50552) Qualified Nursing Staff,(id:41872) Integrated Therapies and Medicine,GLOBE LOCUMS LTD,id:13001091  , 721.22
Department of Health,Guys and St Thomas NHS Foundation Trust,28/05/2020,(50552) Qualified Nursing Staff,(id:41872) Integrated Therapies and Medicine,GLOBE LOCUMS LTD,id:13053534  , 664.98
Department of Health,Guys and St Thomas NHS Foundation Trust,22/05/2020,(50522) Unqualified Nursing Staff,(id:41872) Integrated Therapies and Medicine,MSI GROUP LTD,id:13043526   , 511.94
Department of Health,Guys and St Thomas NHS Foundation Trust,15/05/2020,(50522) Unqualified Nursing Staff,(id:41870) Integrated Therapies and Medicine,MSI GROUP LTD,id:13030937   , 224.97
Department of Health,Guys and St Thomas NHS Foundation Trust,01/05/2020,(82600) Uniforms & Clothing,(id:41869) Integrated Therapies and Medicine,NHS SUPPLY CHAIN (MAIDSTONE),id:12984936    ,   1.69
Department of Health,Guys and St Thomas NHS Foundation Trust,01/05/2020,(82600) Uniforms & Clothing,(id:41869) Integrated Therapies and Medicine,NHS SUPPLY CHAIN (MAIDSTONE),id:12945257    , 317.16
Department of Health,Guys and St Thomas NHS Foundation Trust,15/05/2020,(83400) Office Equipment,(id:41869) Integrated Therapies and Medicine,SQUADRON MEDICAL LTD,id:13010738,  13.49
Department of Health,Guys and St Thomas NHS Foundation Trust,15/05/2020,(83400) Office Equipment,(id:41869) Integrated Therapies and Medicine,SQUADRON MEDICAL LTD,id:12996838,  26.98
Department of Health,Guys and St Thomas NHS Foundation Trust,01/05/2020,(83400) Office Equipment,(id:41869) Integrated Therapies and Medicine,SQUADRON MEDICAL LTD,id:12980910,  88.80
Department of Health,Guys and St Thomas NHS Foundation Trust,22/05/2020,(83400) Office Equipment,(id:41869) Integrated Therapies and Medicine,SQUADRON MEDICAL LTD,id:13021145, 148.37
Department of Health,Guys and St Thomas NHS Foundation Trust,07/05/2020,(83500) Furniture & Fittings,(id:41869) Integrated Therapies and Medicine,TECHNIBLINDS LTD,id:13002397, 834.00
Department of Health,Guys and St Thomas NHS Foundation Trust,07/05/2020,(82800) Bedding & Linen,(id:41869) Integrated Therapies and Medicine,NHS SUPPLY CHAIN (MAIDSTONE),id:12997837   ,   7.44
Department of Health,Guys and St Thomas NHS Foundation Trust,07/05/2020,(81200) Medical Surgical Supplies & Equipment,(id:41869) Integrated Therapies and Medicine,SQUADRON MEDICAL LTD,id:12994678    , 512.63
Department of Health,Guys and St Thomas NHS Foundation Trust,22/05/2020,(81200) Medical Surgical Supplies & Equipment,(id:41869) Integrated Therapies and Medicine,SQUADRON MEDICAL LTD,id:13021145    , 766.65
Department of Health,Guys and St Thomas NHS Foundation Trust,15/05/2020,(81200) Medical Surgical Supplies & Equipment,(id:41869) Integrated Therapies and Medicine,SQUADRON MEDICAL LTD,id:13018774    ,1582.21
Department of Health,Guys and St Thomas NHS Foundation Trust,15/05/2020,(81200) Medical Surgical Supplies & Equipment,(id:41869) Integrated Therapies and Medicine,SQUADRON MEDICAL LTD,id:13007583    , 540.80
Department of Health,Guys and St Thomas NHS Foundation Trust,01/05/2020,(83400) Office Equipment,(id:41868) Integrated Therapies and Medicine,NHS SUPPLY CHAIN (MAIDSTONE),id:12984936  ,  54.55
Department of Health,Guys and St Thomas NHS Foundation Trust,18/05/2020,(82000) Provisions & Kitchens,(id:41882) Integrated Therapies and Medicine,NHS SUPPLY CHAIN (MAIDSTONE),id:12976194  ,  11.19
Department of Health,Guys and St Thomas NHS Foundation Trust,01/05/2020,(82800) Bedding & Linen,(id:41882) Integrated Therapies and Medicine,NHS SUPPLY CHAIN (MAIDSTONE),id:12957217   ,   7.03
Department of Health,Guys and St Thomas NHS Foundation Trust,18/05/2020,(81100) Dressings,(id:41882) Integrated Therapies and Medicine,NHS SUPPLY CHAIN (MAIDSTONE),id:12976194    ,   4.90
Department of Health,Guys and St Thomas NHS Foundation Trust,22/05/2020,(84500) Establishment,(id:41882) Integrated Therapies and Medicine,CDP  PRINT MANAGEMENT,id:13041994  ,  18.00
Department of Health,Guys and St Thomas NHS Foundation Trust,01/05/2020,(82000) Provisions & Kitchens,(id:41880) Integrated Therapies and Medicine,NHS SUPPLY CHAIN (MAIDSTONE),id:12945257  , 194.02
Department of Health,Guys and St Thomas NHS Foundation Trust,01/05/2020,(82000) Provisions & Kitchens,(id:41880) Integrated Therapies and Medicine,NHS SUPPLY CHAIN (MAIDSTONE),id:12957217  ,  31.20
Department of Health,Guys and St Thomas NHS Foundation Trust,22/05/2020,(84500) Establishment,(id:41880) Integrated Therapies and Medicine,CDP  PRINT MANAGEMENT,id:13040918  , 138.60
Department of Health,Guys and St Thomas NHS Foundation Trust,01/05/2020,(81225) Medical Surgical Supplies & Equipment,(id:41880) Integrated Therapies and Medicine,NHS SUPPLY CHAIN (MAIDSTONE),id:12984936 ,  10.08
Department of Health,Guys and St Thomas NHS Foundation Trust,18/05/2020,(81700) Lab Equipment Purchase,(id:41880) Integrated Therapies and Medicine,NHS SUPPLY CHAIN (MAIDSTONE),id:12976194 ,  33.94
Department of Health,Guys and St Thomas NHS Foundation Trust,07/05/2020,(50522) Unqualified Nursing Staff,(id:41880) Integrated Therapies and Medicine,GLOBE LOCUMS LTD,id:13018115, 221.76
Department of Health,Guys and St Thomas NHS Foundation Trust,28/05/2020,(50522) Unqualified Nursing Staff,(id:41880) Integrated Therapies and Medicine,MSI GROUP LTD,id:13052009   , 260.09
Department of Health,Guys and St Thomas NHS Foundation Trust,15/05/2020,(50522) Unqualified Nursing Staff,(id:41880) Integrated Therapies and Medicine,GLOBE LOCUMS LTD,id:13031033, 174.81
Department of Health,Guys and St Thomas NHS Foundation Trust,18/05/2020,(82600) Uniforms & Clothing,(id:41879) Integrated Therapies and Medicine,NHS SUPPLY CHAIN (MAIDSTONE),id:13003941    , 408.97
Department of Health,Guys and St Thomas NHS Foundation Trust,01/05/2020,(82700) Uniforms & Clothing,(id:41879) Integrated Therapies and Medicine,NHS SUPPLY CHAIN (MAIDSTONE),id:12945257    ,  63.36
Department of Health,Guys and St Thomas NHS Foundation Trust,18/05/2020,(82000) Provisions & Kitchens,(id:41879) Integrated Therapies and Medicine,NHS SUPPLY CHAIN (MAIDSTONE),id:13003941  ,   1.98
Department of Health,Guys and St Thomas NHS Foundation Trust,18/05/2020,(82800) Bedding & Linen,(id:41879) Integrated Therapies and Medicine,NHS SUPPLY CHAIN (MAIDSTONE),id:13003941   , 112.54
Department of Health,Guys and St Thomas NHS Foundation Trust,18/05/2020,(81275) Medical Surgical Supplies & Equipment,(id:41879) Integrated Therapies and Medicine,NHS SUPPLY CHAIN (MAIDSTONE),id:12976194 ,  14.14
Department of Health,Guys and St Thomas NHS Foundation Trust,22/05/2020,(50522) Unqualified Nursing Staff,(id:41879) Integrated Therapies and Medicine,MSI GROUP LTD,id:13043719   , 456.56
Department of Health,Guys and St Thomas NHS Foundation Trust,01/05/2020,(81255) Medical Surgical Supplies & Equipment,(id:41879) Integrated Therapies and Medicine,NHS SUPPLY CHAIN (MAIDSTONE),id:12984936 ,  33.78
Department of Health,Guys and St Thomas NHS Foundation Trust,18/05/2020,(81255) Medical Surgical Supplies & Equipment,(id:41879) Integrated Therapies and Medicine,NHS SUPPLY CHAIN (MAIDSTONE),id:12976194 ,   9.36
Department of Health,Guys and St Thomas NHS Foundation Trust,18/05/2020,(81200) Medical Surgical Supplies & Equipment,(id:41879) Integrated Therapies and Medicine,NHS SUPPLY CHAIN (MAIDSTONE),id:12976194 ,1623.10
Department of Health,Guys and St Thomas NHS Foundation Trust,01/05/2020,(50552) Qualified Nursing Staff,(id:41879) Integrated Therapies and Medicine,MSI GROUP LTD,id:13009585,1018.31
Department of Health,Guys and St Thomas NHS Foundation Trust,07/05/2020,(83400) Office Equipment,(id:41878) Integrated Therapies and Medicine,NHS SUPPLY CHAIN (MAIDSTONE),id:12997837  ,  36.46
Department of Health,Guys and St Thomas NHS Foundation Trust,18/05/2020,(82800) Bedding & Linen,(id:41878) Integrated Therapies and Medicine,NHS SUPPLY CHAIN (MAIDSTONE),id:12976194   , 153.39
Department of Health,Guys and St Thomas NHS Foundation Trust,07/05/2020,(81100) Dressings,(id:41878) Integrated Therapies and Medicine,NHS SUPPLY CHAIN (MAIDSTONE),id:12997837    ,  80.07
Department of Health,Guys and St Thomas NHS Foundation Trust,22/05/2020,(50552) Qualified Nursing Staff,(id:41878) Integrated Therapies and Medicine,CONTINENTAL NURSE LTD,id:13043534  ,2106.27
Department of Health,Guys and St Thomas NHS Foundation Trust,01/05/2020,(50522) Unqualified Nursing Staff,(id:41878) Integrated Therapies and Medicine,CARE PROVIDERS HEALTHCARE,id:13001093 , 947.41
Department of Health,Guys and St Thomas NHS Foundation Trust,01/05/2020,(50522) Unqualified Nursing Staff,(id:41878) Integrated Therapies and Medicine,MSI GROUP LTD,id:13006142   , 229.47
Department of Health,Guys and St Thomas NHS Foundation Trust,01/05/2020,(50522) Unqualified Nursing Staff,(id:41878) Integrated Therapies and Medicine,MSI GROUP LTD,id:13006036   , 249.44
Department of Health,Guys and St Thomas NHS Foundation Trust,01/05/2020,(81255) Medical Surgical Supplies & Equipment,(id:41878) Integrated Therapies and Medicine,NHS SUPPLY CHAIN (MAIDSTONE),id:12984936 ,   6.24
Department of Health,Guys and St Thomas NHS Foundation Trust,18/05/2020,(81255) Medical Surgical Supplies & Equipment,(id:41878) Integrated Therapies and Medicine,NHS SUPPLY CHAIN (MAIDSTONE),id:13003941 ,   2.49
Department of Health,Guys and St Thomas NHS Foundation Trust,15/05/2020,(50200) Consultants,(id:41876) Integrated Therapies and Medicine,KINGS COLLEGE LONDON:03529700,id:12782647 ,3001.45
Department of Health,Guys and St Thomas NHS Foundation Trust,07/05/2020,(83400) Office Equipment,(id:41881) Integrated Therapies and Medicine,NHS SUPPLY CHAIN (MAIDSTONE),id:12997837  ,  50.84
Department of Health,Guys and St Thomas NHS Foundation Trust,01/05/2020,(83400) Office Equipment,(id:41881) Integrated Therapies and Medicine,NHS SUPPLY CHAIN (MAIDSTONE),id:12957217  , 110.38
Department of Health,Guys and St Thomas NHS Foundation Trust,18/05/2020,(83400) Office Equipment,(id:41881) Integrated Therapies and Medicine,NHS SUPPLY CHAIN (MAIDSTONE),id:13003941  , 203.57
Department of Health,Guys and St Thomas NHS Foundation Trust,07/05/2020,(82800) Bedding & Linen,(id:41881) Integrated Therapies and Medicine,NHS SUPPLY CHAIN (MAIDSTONE),id:12997837   ,  90.91
Department of Health,Guys and St Thomas NHS Foundation Trust,15/05/2020,(50552) Qualified Nursing Staff,(id:41881) Integrated Therapies and Medicine,GLOBE LOCUMS LTD,id:13031200  , 510.00
Department of Health,Guys and St Thomas NHS Foundation Trust,01/05/2020,(50522) Unqualified Nursing Staff,(id:41881) Integrated Therapies and Medicine,GLOBE LOCUMS LTD,id:13001017, 202.70
Department of Health,Guys and St Thomas NHS Foundation Trust,01/05/2020,(81200) Medical Surgical Supplies & Equipment,(id:41881) Integrated Therapies and Medicine,NHS SUPPLY CHAIN (MAIDSTONE),id:12945257 , 847.31
Department of Health,Guys and St Thomas NHS Foundation Trust,01/05/2020,(81225) Medical Surgical Supplies & Equipment,(id:41881) Integrated Therapies and Medicine,NHS SUPPLY CHAIN (MAIDSTONE),id:12945257 ,   7.55
Department of Health,Guys and St Thomas NHS Foundation Trust,22/05/2020,(89595) Non-Healthcare from Foundation Trusts,(id:1435419) Integrated Therapies and Medicine,ST MUNGO'S BROADWAY,id:12971122   ,    23000.00
Department of Health,Guys and St Thomas NHS Foundation Trust,18/05/2020,(81200) Medical Surgical Supplies & Equipment,(id:42255) Integrated Local Services,NHS SUPPLY CHAIN (MAIDSTONE),id:12976194    , 146.35
Department of Health,Guys and St Thomas NHS Foundation Trust,07/05/2020,(83400) Office Equipment,(id:42255) Integrated Local Services,BLACKWELLS LONDON BOOKSHOP,id:12991257  , 699.00
Department of Health,Guys and St Thomas NHS Foundation Trust,07/05/2020,(82600) Uniforms & Clothing,(id:42255) Integrated Local Services,NHS SUPPLY CHAIN (MAIDSTONE),id:12997837  , 113.88
Department of Health,Guys and St Thomas NHS Foundation Trust,22/05/2020,(83410) Office Equipment,(id:590598) Integrated Local Services,RICOH UK LTD,id:13037294, 517.65
Department of Health,Guys and St Thomas NHS Foundation Trust,22/05/2020,(84500) Establishment,(id:590466) Integrated Local Services,CDP  PRINT MANAGEMENT,id:13040917    ,  12.40
Department of Health,Guys and St Thomas NHS Foundation Trust,18/05/2020,(83400) Office Equipment,(id:590466) Integrated Local Services,NHS SUPPLY CHAIN (MAIDSTONE),id:13003941    ,  28.94
Department of Health,Guys and St Thomas NHS Foundation Trust,01/05/2020,(82000) Provisions & Kitchens,(id:590464) Integrated Local Services,NHS SUPPLY CHAIN (MAIDSTONE),id:12945257    ,  28.80
Department of Health,Guys and St Thomas NHS Foundation Trust,01/05/2020,(82000) Provisions & Kitchens,(id:590425) Integrated Local Services,NHS SUPPLY CHAIN (MAIDSTONE),id:12984936    ,   3.63
Department of Health,Guys and St Thomas NHS Foundation Trust,15/05/2020,(86300) Healthcare from non-NHS bodies,(id:590579) Integrated Local Services,MONTE FIELDS,id:13010481 , 952.00
Department of Health,Guys and St Thomas NHS Foundation Trust,18/05/2020,(81100) Dressings,(id:590563) Integrated Local Services,NHS SUPPLY CHAIN (MAIDSTONE),id:12976194 ,  21.07
Department of Health,Guys and St Thomas NHS Foundation Trust,01/05/2020,(81225) Medical Surgical Supplies & Equipment,(id:590563) Integrated Local Services,NHS SUPPLY CHAIN (MAIDSTONE),id:12945257   ,  60.73
Department of Health,Guys and St Thomas NHS Foundation Trust,18/05/2020,(83400) Office Equipment,(id:590562) Integrated Local Services,NHS SUPPLY CHAIN (MAIDSTONE),id:13003941    ,  13.26
Department of Health,Guys and St Thomas NHS Foundation Trust,15/05/2020,(84200) Rental under Operating Lease,(id:590575) Integrated Local Services,MARSH LTD,id:13014517 ,1345.23
Department of Health,Guys and St Thomas NHS Foundation Trust,18/05/2020,(82800) Bedding & Linen,(id:839420) Integrated Local Services,NHS SUPPLY CHAIN (MAIDSTONE),id:13003941, 177.07
Department of Health,Guys and St Thomas NHS Foundation Trust,01/05/2020,(81200) Medical Surgical Supplies & Equipment,(id:1885422) Integrated Local Services,NHS SUPPLY CHAIN (MAIDSTONE),id:12957217  , 176.78
Department of Health,Guys and St Thomas NHS Foundation Trust,27/05/2020,(51872) Physiotherapists,(id:1885422) Integrated Local Services,PRICEWATERHOUSECOOPERS LLP,id:13050033,1942.83
Department of Health,Guys and St Thomas NHS Foundation Trust,01/05/2020,(81200) Medical Surgical Supplies & Equipment,(id:1885424) Integrated Local Services,NHS SUPPLY CHAIN (MAIDSTONE),id:12984936  ,  23.25
Department of Health,Guys and St Thomas NHS Foundation Trust,01/05/2020,(81700) Lab Equipment Purchase,(id:1885424) Integrated Local Services,NHS SUPPLY CHAIN (MAIDSTONE),id:12984936  ,   5.34
Department of Health,Guys and St Thomas NHS Foundation Trust,25/05/2020,(51862) Physiotherapists,(id:1885424) Integrated Local Services,PRICEWATERHOUSECOOPERS LLP,id:13047794,6183.07
Department of Health,Guys and St Thomas NHS Foundation Trust,25/05/2020,(51462) Occupational Therapists,(id:1371419) Integrated Local Services,PRICEWATERHOUSECOOPERS LLP,id:13047794   ,2343.96
Department of Health,Guys and St Thomas NHS Foundation Trust,25/05/2020,(51872) Physiotherapists,(id:1371419) Integrated Local Services,PRICEWATERHOUSECOOPERS LLP,id:13047794,2485.00
Department of Health,Guys and St Thomas NHS Foundation Trust,01/05/2020,(81200) Medical Surgical Supplies & Equipment,(id:699422) Integrated Local Services,NHS SUPPLY CHAIN (MAIDSTONE),id:12984936   , 180.00
Department of Health,Guys and St Thomas NHS Foundation Trust,22/05/2020,(84500) Establishment,(id:590523) Integrated Local Services,CDP  PRINT MANAGEMENT,id:13040918    ,  18.60
Department of Health,Guys and St Thomas NHS Foundation Trust,15/05/2020,(84200) Rental under Operating Lease,(id:1913419) Integrated Local Services,MARSH LTD,id:13014517,1345.23
Department of Health,Guys and St Thomas NHS Foundation Trust,18/05/2020,(82800) Bedding & Linen,(id:1913419) Integrated Local Services,NHS SUPPLY CHAIN (MAIDSTONE),id:13003941    ,  20.09
Department of Health,Guys and St Thomas NHS Foundation Trust,25/05/2020,(51862) Physiotherapists,(id:684420) Integrated Local Services,PRICEWATERHOUSECOOPERS LLP,id:13047774 ,1002.12
Department of Health,Guys and St Thomas NHS Foundation Trust,18/05/2020,(81200) Medical Surgical Supplies & Equipment,(id:590503) Integrated Local Services,NHS SUPPLY CHAIN (MAIDSTONE),id:13003941   , 194.40
Department of Health,Guys and St Thomas NHS Foundation Trust,22/05/2020,(51842) Physiotherapists,(id:590503) Integrated Local Services,GLOBE LOCUMS LTD,id:13043642 , 939.60
Department of Health,Guys and St Thomas NHS Foundation Trust,15/05/2020,(50552) Qualified Nursing Staff,(id:4460419) Integrated Local Services,YOUR WORLD RECRUITMENT LIMITED(YOUR WORLD HEALTHCARE),id:13031014 ,1079.93
Department of Health,Guys and St Thomas NHS Foundation Trust,22/05/2020,(50552) Qualified Nursing Staff,(id:4460419) Integrated Local Services,MSI GROUP LTD,id:13043911 , 887.09
Department of Health,Guys and St Thomas NHS Foundation Trust,01/05/2020,(50552) Qualified Nursing Staff,(id:4460419) Integrated Local Services,YOUR WORLD RECRUITMENT LIMITED(YOUR WORLD HEALTHCARE),id:13007508 , 790.20
Department of Health,Guys and St Thomas NHS Foundation Trust,28/05/2020,(50552) Qualified Nursing Staff,(id:4460419) Integrated Local Services,MSI GROUP LTD,id:13052169 , 804.00
Department of Health,Guys and St Thomas NHS Foundation Trust,22/05/2020,(50552) Qualified Nursing Staff,(id:590522) Integrated Local Services,MSI GROUP LTD,id:13043609  , 624.90
Department of Health,Guys and St Thomas NHS Foundation Trust,15/05/2020,(84200) Rental under Operating Lease,(id:590522) Integrated Local Services,MARSH LTD,id:13014517 ,1345.23
Department of Health,Guys and St Thomas NHS Foundation Trust,01/05/2020,(81200) Medical Surgical Supplies & Equipment,(id:590521) Integrated Local Services,NHS SUPPLY CHAIN (MAIDSTONE),id:12945257   , 107.00
Department of Health,Guys and St Thomas NHS Foundation Trust,01/05/2020,(81100) Dressings,(id:590521) Integrated Local Services,NHS SUPPLY CHAIN (MAIDSTONE),id:12984936 , 268.44
Department of Health,Guys and St Thomas NHS Foundation Trust,18/05/2020,(81100) Dressings,(id:590521) Integrated Local Services,NHS SUPPLY CHAIN (MAIDSTONE),id:13003941 , 332.51
Department of Health,Guys and St Thomas NHS Foundation Trust,01/05/2020,(83400) Office Equipment,(id:590521) Integrated Local Services,NHS SUPPLY CHAIN (MAIDSTONE),id:12984936    ,  67.78
Department of Health,Guys and St Thomas NHS Foundation Trust,01/05/2020,(89120) Other - Legal fees,(id:590521) Integrated Local Services,BEACHCROFT LLP OFFICE ACCOUNT,id:13002155 ,3800.00
Department of Health,Guys and St Thomas NHS Foundation Trust,15/05/2020,(50552) Qualified Nursing Staff,(id:590521) Integrated Local Services,NURSING 2000 LTD,id:13019892    , 692.14
Department of Health,Guys and St Thomas NHS Foundation Trust,22/05/2020,(50552) Qualified Nursing Staff,(id:590521) Integrated Local Services,NURSING 2000 LTD,id:13043709    ,1106.67
Department of Health,Guys and St Thomas NHS Foundation Trust,22/05/2020,(50552) Qualified Nursing Staff,(id:590521) Integrated Local Services,NURSING 2000 LTD,id:13043760    ,1106.67
Department of Health,Guys and St Thomas NHS Foundation Trust,22/05/2020,(50552) Qualified Nursing Staff,(id:590521) Integrated Local Services,NURSING 2000 LTD,id:13045545    , 684.60
Department of Health,Guys and St Thomas NHS Foundation Trust,22/05/2020,(50552) Qualified Nursing Staff,(id:590521) Integrated Local Services,NURSING 2000 LTD,id:13045553    , 812.80
Department of Health,Guys and St Thomas NHS Foundation Trust,22/05/2020,(50552) Qualified Nursing Staff,(id:590521) Integrated Local Services,MSI GROUP LTD,id:13043582  ,1033.29
Department of Health,Guys and St Thomas NHS Foundation Trust,22/05/2020,(84500) Establishment,(id:590520) Integrated Local Services,CDP  PRINT MANAGEMENT,id:13041994    ,  20.50
Department of Health,Guys and St Thomas NHS Foundation Trust,15/05/2020,(50552) Qualified Nursing Staff,(id:590520) Integrated Local Services,YOUR WORLD RECRUITMENT LIMITED(YOUR WORLD HEALTHCARE),id:13031268  , 790.20
Department of Health,Guys and St Thomas NHS Foundation Trust,22/05/2020,(50552) Qualified Nursing Staff,(id:590520) Integrated Local Services,YOUR WORLD RECRUITMENT LIMITED(YOUR WORLD HEALTHCARE),id:13043893  , 987.75
Department of Health,Guys and St Thomas NHS Foundation Trust,22/05/2020,(50552) Qualified Nursing Staff,(id:590520) Integrated Local Services,YOUR WORLD RECRUITMENT LIMITED(YOUR WORLD HEALTHCARE),id:13043898  , 671.66
Department of Health,Guys and St Thomas NHS Foundation Trust,01/05/2020,(81200) Medical Surgical Supplies & Equipment,(id:590471) Integrated Local Services,NHS SUPPLY CHAIN (MAIDSTONE),id:12984936   ,1617.60
Department of Health,Guys and St Thomas NHS Foundation Trust,22/05/2020,(84500) Establishment,(id:590470) Integrated Local Services,CDP  PRINT MANAGEMENT,id:13040918    ,   9.30
Department of Health,Guys and St Thomas NHS Foundation Trust,07/05/2020,(81700) Lab Equipment Purchase,(id:590535) Integrated Local Services,NHS SUPPLY CHAIN (MAIDSTONE),id:12997837   ,   8.07
Department of Health,Guys and St Thomas NHS Foundation Trust,07/05/2020,(81200) Medical Surgical Supplies & Equipment,(id:590481) Integrated Local Services,NHS SUPPLY CHAIN (MAIDSTONE),id:12920584   ,4198.98
Department of Health,Guys and St Thomas NHS Foundation Trust,07/05/2020,(81200) Medical Surgical Supplies & Equipment,(id:590481) Integrated Local Services,NHS SUPPLY CHAIN (MAIDSTONE),id:13011847   ,7948.49
Department of Health,Guys and St Thomas NHS Foundation Trust,22/05/2020,(84500) Establishment,(id:590477) Integrated Local Services,CDP  PRINT MANAGEMENT,id:13040918    ,   4.10
Department of Health,Guys and St Thomas NHS Foundation Trust,18/05/2020,(81200) Medical Surgical Supplies & Equipment,(id:590463) Integrated Local Services,NHS SUPPLY CHAIN (MAIDSTONE),id:12976194   , 876.00
Department of Health,Guys and St Thomas NHS Foundation Trust,01/05/2020,(82800) Bedding & Linen,(id:590527) Integrated Local Services,NHS SUPPLY CHAIN (MAIDSTONE),id:12945257, 513.24
Department of Health,Guys and St Thomas NHS Foundation Trust,01/05/2020,(82800) Bedding & Linen,(id:590527) Integrated Local Services,NHS SUPPLY CHAIN (MAIDSTONE),id:12984936,  25.74
Department of Health,Guys and St Thomas NHS Foundation Trust,18/05/2020,(82700) Uniforms & Clothing,(id:590527) Integrated Local Services,NHS SUPPLY CHAIN (MAIDSTONE),id:12976194 , 180.88
Department of Health,Guys and St Thomas NHS Foundation Trust,07/05/2020,(50552) Qualified Nursing Staff,(id:590527) Integrated Local Services,GENEVA HEALTH INTERNATIONAL LIMITED,id:13018018, 836.04
Department of Health,Guys and St Thomas NHS Foundation Trust,01/05/2020,(82000) Provisions & Kitchens,(id:590526) Integrated Local Services,NHS SUPPLY CHAIN (MAIDSTONE),id:12957217    ,  82.32
Department of Health,Guys and St Thomas NHS Foundation Trust,18/05/2020,(82000) Provisions & Kitchens,(id:590526) Integrated Local Services,NHS SUPPLY CHAIN (MAIDSTONE),id:12976194    ,  39.34
Department of Health,Guys and St Thomas NHS Foundation Trust,18/05/2020,(81100) Dressings,(id:903421) Integrated Local Services,NHS SUPPLY CHAIN (MAIDSTONE),id:12976194 ,  65.23
Department of Health,Guys and St Thomas NHS Foundation Trust,15/05/2020,(89270) Establishment,(id:903421) Integrated Local Services,SELDOC LTD,id:13021873,    23962.00
Department of Health,Guys and St Thomas NHS Foundation Trust,01/05/2020,(81225) Medical Surgical Supplies & Equipment,(id:903421) Integrated Local Services,NHS SUPPLY CHAIN (MAIDSTONE),id:12945257   ,  38.38
Department of Health,Guys and St Thomas NHS Foundation Trust,01/05/2020,(81200) Medical Surgical Supplies & Equipment,(id:903421) Integrated Local Services,NHS SUPPLY CHAIN (MAIDSTONE),id:12957217   , 357.05
Department of Health,Guys and St Thomas NHS Foundation Trust,25/05/2020,(51862) Physiotherapists,(id:903421) Integrated Local Services,PRICEWATERHOUSECOOPERS LLP,id:13047774 ,4605.86
Department of Health,Guys and St Thomas NHS Foundation Trust,01/05/2020,(89120) Other - Legal fees,(id:699421) Integrated Local Services,BEACHCROFT LLP OFFICE ACCOUNT,id:12998035 ,1532.00
Department of Health,Guys and St Thomas NHS Foundation Trust,15/05/2020,(89120) Other - Legal fees,(id:699421) Integrated Local Services,BEACHCROFT LLP OFFICE ACCOUNT,id:13030438 , 779.00
Department of Health,Guys and St Thomas NHS Foundation Trust,15/05/2020,(84200) Rental under Operating Lease,(id:590491) Integrated Local Services,MARSH LTD,id:13014517 ,1345.23
Department of Health,Guys and St Thomas NHS Foundation Trust,01/05/2020,(83400) Office Equipment,(id:4263422) Integrated Local Services,NHS SUPPLY CHAIN (MAIDSTONE),id:12984936   ,   1.02
Department of Health,Guys and St Thomas NHS Foundation Trust,01/05/2020,(81100) Dressings,(id:4263422) Integrated Local Services,NHS SUPPLY CHAIN (MAIDSTONE),id:12984936,   5.16
Department of Health,Guys and St Thomas NHS Foundation Trust,18/05/2020,(82700) Uniforms & Clothing,(id:42518) Evelina Womens Services,NHS SUPPLY CHAIN (MAIDSTONE),id:13003941    ,  19.60
Department of Health,Guys and St Thomas NHS Foundation Trust,01/05/2020,(81100) Dressings,(id:42518) Evelina Womens Services,NHS SUPPLY CHAIN (MAIDSTONE),id:12984936    ,  12.61
Department of Health,Guys and St Thomas NHS Foundation Trust,01/05/2020,(80010) Drug Costs,(id:42517) Evelina Womens Services,IRVINE SCIENTIFIC SALES COMPANY INC,id:13003697 ,1240.45
Department of Health,Guys and St Thomas NHS Foundation Trust,22/05/2020,(84500) Establishment,(id:42517) Evelina Womens Services,CDP  PRINT MANAGEMENT,id:13041994  ,  25.20
Department of Health,Guys and St Thomas NHS Foundation Trust,28/05/2020,(81200) Medical Surgical Supplies & Equipment,(id:42517) Evelina Womens Services,COOK UK LTD,id:13035065   ,1650.00
Department of Health,Guys and St Thomas NHS Foundation Trust,18/05/2020,(81700) Lab Equipment Purchase,(id:42517) Evelina Womens Services,NHS SUPPLY CHAIN (MAIDSTONE),id:13003941 , 101.42
Department of Health,Guys and St Thomas NHS Foundation Trust,01/05/2020,(81200) Medical Surgical Supplies & Equipment,(id:42513) Evelina Womens Services,NHS SUPPLY CHAIN (MAIDSTONE),id:12957217 , 561.05
Department of Health,Guys and St Thomas NHS Foundation Trust,18/05/2020,(81200) Medical Surgical Supplies & Equipment,(id:42513) Evelina Womens Services,NHS SUPPLY CHAIN (MAIDSTONE),id:13003941 , 507.75
Department of Health,Guys and St Thomas NHS Foundation Trust,01/05/2020,(82800) Bedding & Linen,(id:42513) Evelina Womens Services,NHS SUPPLY CHAIN (MAIDSTONE),id:12957217   ,  22.46
Department of Health,Guys and St Thomas NHS Foundation Trust,01/05/2020,(82000) Provisions & Kitchens,(id:42513) Evelina Womens Services,NHS SUPPLY CHAIN (MAIDSTONE),id:12957217  ,  24.48
Department of Health,Guys and St Thomas NHS Foundation Trust,07/05/2020,(82000) Provisions & Kitchens,(id:42513) Evelina Womens Services,NHS SUPPLY CHAIN (MAIDSTONE),id:12997837  ,  42.04
Department of Health,Guys and St Thomas NHS Foundation Trust,18/05/2020,(83400) Office Equipment,(id:42510) Evelina Womens Services,NHS SUPPLY CHAIN (MAIDSTONE),id:13003941  , 196.25
Department of Health,Guys and St Thomas NHS Foundation Trust,01/05/2020,(82800) Bedding & Linen,(id:42510) Evelina Womens Services,NHS SUPPLY CHAIN (MAIDSTONE),id:12957217   ,   5.62
Department of Health,Guys and St Thomas NHS Foundation Trust,01/05/2020,(82800) Bedding & Linen,(id:42510) Evelina Womens Services,NHS SUPPLY CHAIN (MAIDSTONE),id:12984936   ,  53.78
Department of Health,Guys and St Thomas NHS Foundation Trust,18/05/2020,(82800) Bedding & Linen,(id:42510) Evelina Womens Services,NHS SUPPLY CHAIN (MAIDSTONE),id:12976194   , 232.80
Department of Health,Guys and St Thomas NHS Foundation Trust,01/05/2020,(81200) Medical Surgical Supplies & Equipment,(id:42510) Evelina Womens Services,NHS SUPPLY CHAIN (MAIDSTONE),id:12957217 ,  81.41
Department of Health,Guys and St Thomas NHS Foundation Trust,01/05/2020,(81200) Medical Surgical Supplies & Equipment,(id:42510) Evelina Womens Services,NHS SUPPLY CHAIN (MAIDSTONE),id:12984936 ,  69.11
Department of Health,Guys and St Thomas NHS Foundation Trust,01/05/2020,(82800) Bedding & Linen,(id:42509) Evelina Womens Services,NHS SUPPLY CHAIN (MAIDSTONE),id:12984936   ,  68.16
Department of Health,Guys and St Thomas NHS Foundation Trust,18/05/2020,(81200) Medical Surgical Supplies & Equipment,(id:42509) Evelina Womens Services,NHS SUPPLY CHAIN (MAIDSTONE),id:13003941 , 945.14
Department of Health,Guys and St Thomas NHS Foundation Trust,22/05/2020,(84500) Establishment,(id:42506) Evelina Womens Services,CDP  PRINT MANAGEMENT,id:13041994  ,   6.70
Department of Health,Guys and St Thomas NHS Foundation Trust,07/05/2020,(81400) Medical Surgical Supplies & Equipment,(id:42506) Evelina Womens Services,NHS SUPPLY CHAIN ( CAPITAL FUND ONLY),id:13012154  ,    38046.04
Department of Health,Guys and St Thomas NHS Foundation Trust,18/05/2020,(81200) Medical Surgical Supplies & Equipment,(id:42486) Evelina Womens Services,NHS SUPPLY CHAIN (MAIDSTONE),id:13003941 ,  67.51
Department of Health,Guys and St Thomas NHS Foundation Trust,01/05/2020,(83400) Office Equipment,(id:42486) Evelina Womens Services,NHS SUPPLY CHAIN (MAIDSTONE),id:12945257  ,  79.15
Department of Health,Guys and St Thomas NHS Foundation Trust,28/05/2020,(89270) Establishment,(id:42486) Evelina Womens Services,VIAPATH ANALYTICS LLP,id:10286751  ,4121.00
Department of Health,Guys and St Thomas NHS Foundation Trust,01/05/2020,(82600) Uniforms & Clothing,(id:42486) Evelina Womens Services,NHS SUPPLY CHAIN (MAIDSTONE),id:12957217    ,  35.76
Department of Health,Guys and St Thomas NHS Foundation Trust,18/05/2020,(82600) Uniforms & Clothing,(id:42497) Evelina Womens Services,NHS SUPPLY CHAIN (MAIDSTONE),id:13003941    ,  22.60
Department of Health,Guys and St Thomas NHS Foundation Trust,01/05/2020,(81200) Medical Surgical Supplies & Equipment,(id:42496) Evelina Womens Services,NHS SUPPLY CHAIN (MAIDSTONE),id:12945257 , 275.69
Department of Health,Guys and St Thomas NHS Foundation Trust,18/05/2020,(81700) Lab Equipment Purchase,(id:42496) Evelina Womens Services,NHS SUPPLY CHAIN (MAIDSTONE),id:12976194 ,  12.75
Department of Health,Guys and St Thomas NHS Foundation Trust,18/05/2020,(81700) Lab Equipment Purchase,(id:42496) Evelina Womens Services,NHS SUPPLY CHAIN (MAIDSTONE),id:13003941 ,  68.61
Department of Health,Guys and St Thomas NHS Foundation Trust,01/05/2020,(81700) Lab Equipment Purchase,(id:42496) Evelina Womens Services,NHS SUPPLY CHAIN (MAIDSTONE),id:12984936 ,  37.08
Department of Health,Guys and St Thomas NHS Foundation Trust,01/05/2020,(81700) Lab Equipment Purchase,(id:42496) Evelina Womens Services,NHS SUPPLY CHAIN (MAIDSTONE),id:12957217 ,  42.22
Department of Health,Guys and St Thomas NHS Foundation Trust,01/05/2020,(81100) Dressings,(id:42496) Evelina Womens Services,NHS SUPPLY CHAIN (MAIDSTONE),id:12957217    ,   7.34
Department of Health,Guys and St Thomas NHS Foundation Trust,01/05/2020,(82000) Provisions & Kitchens,(id:42493) Evelina Womens Services,NHS SUPPLY CHAIN (MAIDSTONE),id:12957217  ,  38.12
Department of Health,Guys and St Thomas NHS Foundation Trust,01/05/2020,(83400) Office Equipment,(id:42493) Evelina Womens Services,NHS SUPPLY CHAIN (MAIDSTONE),id:12984936  ,  56.38
Department of Health,Guys and St Thomas NHS Foundation Trust,18/05/2020,(83400) Office Equipment,(id:42493) Evelina Womens Services,NHS SUPPLY CHAIN (MAIDSTONE),id:12976194  ,  84.82
Department of Health,Guys and St Thomas NHS Foundation Trust,07/05/2020,(82800) Bedding & Linen,(id:42492) Evelina Womens Services,NHS SUPPLY CHAIN (MAIDSTONE),id:12997837   , 114.84
Department of Health,Guys and St Thomas NHS Foundation Trust,01/05/2020,(81200) Medical Surgical Supplies & Equipment,(id:42492) Evelina Womens Services,NHS SUPPLY CHAIN (MAIDSTONE),id:12984936 ,6935.11
Department of Health,Guys and St Thomas NHS Foundation Trust,18/05/2020,(81200) Medical Surgical Supplies & Equipment,(id:42492) Evelina Womens Services,NHS SUPPLY CHAIN (MAIDSTONE),id:12976194 ,3717.38
Department of Health,Guys and St Thomas NHS Foundation Trust,22/05/2020,(81200) Medical Surgical Supplies & Equipment,(id:42492) Evelina Womens Services,CARDIAC SERVICES LTD,id:13030294    ,5182.80
Department of Health,Guys and St Thomas NHS Foundation Trust,01/05/2020,(81700) Lab Equipment Purchase,(id:42492) Evelina Womens Services,NHS SUPPLY CHAIN (MAIDSTONE),id:12957217 ,  41.80
Department of Health,Guys and St Thomas NHS Foundation Trust,18/05/2020,(82600) Uniforms & Clothing,(id:42491) Evelina Womens Services,NHS SUPPLY CHAIN (MAIDSTONE),id:12976194    ,  32.47
Department of Health,Guys and St Thomas NHS Foundation Trust,01/05/2020,(83400) Office Equipment,(id:42491) Evelina Womens Services,NHS SUPPLY CHAIN (MAIDSTONE),id:12945257  , 122.58
Department of Health,Guys and St Thomas NHS Foundation Trust,01/05/2020,(83400) Office Equipment,(id:42491) Evelina Womens Services,NHS SUPPLY CHAIN (MAIDSTONE),id:12984936  ,  55.68
Department of Health,Guys and St Thomas NHS Foundation Trust,18/05/2020,(82800) Bedding & Linen,(id:42491) Evelina Womens Services,NHS SUPPLY CHAIN (MAIDSTONE),id:13003941   ,  31.21
Department of Health,Guys and St Thomas NHS Foundation Trust,18/05/2020,(81275) Medical Surgical Supplies & Equipment,(id:42491) Evelina Womens Services,NHS SUPPLY CHAIN (MAIDSTONE),id:13003941 ,   5.93
Department of Health,Guys and St Thomas NHS Foundation Trust,01/05/2020,(81100) Dressings,(id:42491) Evelina Womens Services,NHS SUPPLY CHAIN (MAIDSTONE),id:12945257    , 102.62
Department of Health,Guys and St Thomas NHS Foundation Trust,18/05/2020,(81700) Lab Equipment Purchase,(id:42491) Evelina Womens Services,NHS SUPPLY CHAIN (MAIDSTONE),id:13003941 ,   9.55
Department of Health,Guys and St Thomas NHS Foundation Trust,07/05/2020,(89595) Non-Healthcare from Foundation Trusts,(id:42504) Evelina Womens Services,EAST KENT HOSPITALS UNIVERSITY NHS FOUNDATION TRUST,id:7921053    ,1299.00
Department of Health,Guys and St Thomas NHS Foundation Trust,15/05/2020,(89595) Non-Healthcare from Foundation Trusts,(id:42504) Evelina Womens Services,HOMERTON UNIVERSITY HOSPITAL NHS FOUNDATION TRUST,id:12962054, 629.04
Department of Health,Guys and St Thomas NHS Foundation Trust,15/05/2020,(89595) Non-Healthcare from Foundation Trusts,(id:42504) Evelina Womens Services,CHELSEA AND WESTMINSTER HOSPITAL NHS FOUNDATION TRUST,id:12932929 , 977.13
Department of Health,Guys and St Thomas NHS Foundation Trust,15/05/2020,(89595) Non-Healthcare from Foundation Trusts,(id:42504) Evelina Womens Services,ST GEORGE'S UNIVERSITY HOSPITALS NHS FOUNDATION TRUST,id:12471718 ,1317.06
Department of Health,Guys and St Thomas NHS Foundation Trust,15/05/2020,(89595) Non-Healthcare from Foundation Trusts,(id:42504) Evelina Womens Services,KINGSTON HOSPITAL NHS FOUNDATION TRUST,id:12779965 ,    12714.60
Department of Health,Guys and St Thomas NHS Foundation Trust,22/05/2020,(89595) Non-Healthcare from Foundation Trusts,(id:42504) Evelina Womens Services,ST GEORGE'S UNIVERSITY HOSPITALS NHS FOUNDATION TRUST,id:12962472 ,6849.66
Department of Health,Guys and St Thomas NHS Foundation Trust,07/05/2020,(89640) Non-Healthcare from NHS Trusts,(id:42504) Evelina Womens Services,BARTS HEALTH NHS TRUST,id:12385271    ,3954.95
Department of Health,Guys and St Thomas NHS Foundation Trust,07/05/2020,(89640) Non-Healthcare from NHS Trusts,(id:42504) Evelina Womens Services,BARTS HEALTH NHS TRUST,id:12691637    ,7076.27
Department of Health,Guys and St Thomas NHS Foundation Trust,22/05/2020,(89640) Non-Healthcare from NHS Trusts,(id:42504) Evelina Womens Services,CROYDON HEALTH SERVICES NHS TRUST,id:13005376   , 635.79
Department of Health,Guys and St Thomas NHS Foundation Trust,22/05/2020,(89640) Non-Healthcare from NHS Trusts,(id:42504) Evelina Womens Services,CROYDON HEALTH SERVICES NHS TRUST,id:13005174   ,1356.44
Department of Health,Guys and St Thomas NHS Foundation Trust,01/05/2020,(82700) Uniforms & Clothing,(id:42348) Evelina Central,NHS SUPPLY CHAIN (MAIDSTONE),id:12945257  , 148.98
Department of Health,Guys and St Thomas NHS Foundation Trust,18/05/2020,(82700) Uniforms & Clothing,(id:42348) Evelina Central,NHS SUPPLY CHAIN (MAIDSTONE),id:12976194  ,  25.92
Department of Health,Guys and St Thomas NHS Foundation Trust,18/05/2020,(82700) Uniforms & Clothing,(id:42348) Evelina Central,NHS SUPPLY CHAIN (MAIDSTONE),id:13003941  ,   5.43
Department of Health,Guys and St Thomas NHS Foundation Trust,18/05/2020,(82000) Provisions & Kitchens,(id:42348) Evelina Central,NHS SUPPLY CHAIN (MAIDSTONE),id:12976194,  28.04
Department of Health,Guys and St Thomas NHS Foundation Trust,01/05/2020,(82600) Uniforms & Clothing,(id:42348) Evelina Central,NHS SUPPLY CHAIN (MAIDSTONE),id:12945257  ,  24.48
Department of Health,Guys and St Thomas NHS Foundation Trust,01/05/2020,(81100) Dressings,(id:42348) Evelina Central,NHS SUPPLY CHAIN (MAIDSTONE),id:12957217  , 105.63
Department of Health,Guys and St Thomas NHS Foundation Trust,07/05/2020,(81200) Medical Surgical Supplies & Equipment,(id:42331) Evelina Central,NHS SUPPLY CHAIN (MAIDSTONE),id:12997837    , 215.24
Department of Health,Guys and St Thomas NHS Foundation Trust,01/05/2020,(83400) Office Equipment,(id:42331) Evelina Central,NHS SUPPLY CHAIN (MAIDSTONE),id:12945257, 480.29
Department of Health,Guys and St Thomas NHS Foundation Trust,01/05/2020,(83400) Office Equipment,(id:42331) Evelina Central,NHS SUPPLY CHAIN (MAIDSTONE),id:12957217, 160.98
Department of Health,Guys and St Thomas NHS Foundation Trust,07/05/2020,(81100) Dressings,(id:42331) Evelina Central,NHS SUPPLY CHAIN (MAIDSTONE),id:12997837  , 109.20
Department of Health,Guys and St Thomas NHS Foundation Trust,18/05/2020,(81700) Lab Equipment Purchase,(id:42331) Evelina Central,NHS SUPPLY CHAIN (MAIDSTONE),id:12976194    ,  52.22
Department of Health,Guys and St Thomas NHS Foundation Trust,01/05/2020,(81200) Medical Surgical Supplies & Equipment,(id:42325) Evelina Central,NHS SUPPLY CHAIN (MAIDSTONE),id:12984936    , 599.78
Department of Health,Guys and St Thomas NHS Foundation Trust,22/05/2020,(89270) Establishment,(id:2972420) Evelina Central,KINGS COLLEGE LONDON:03529700,id:12921326,    28221.88
Department of Health,Guys and St Thomas NHS Foundation Trust,22/05/2020,(89270) Establishment,(id:2972420) Evelina Central,KINGS COLLEGE LONDON:03529700,id:13036577,   -23729.04
Department of Health,Guys and St Thomas NHS Foundation Trust,07/05/2020,(83400) Office Equipment,(id:2967419) Evelina Central,BAXTER STOREY LIMITED,id:13013914,3762.00
Department of Health,Guys and St Thomas NHS Foundation Trust,18/05/2020,(81200) Medical Surgical Supplies & Equipment,(id:42319) Evelina Central,NHS SUPPLY CHAIN (MAIDSTONE),id:13003941    , 163.86
Department of Health,Guys and St Thomas NHS Foundation Trust,18/05/2020,(83400) Office Equipment,(id:590444) Evelina Community Services,NHS SUPPLY CHAIN (MAIDSTONE),id:12976194   ,  66.56
Department of Health,Guys and St Thomas NHS Foundation Trust,15/05/2020,(84200) Rental under Operating Lease,(id:590450) Evelina Community Services,MARSH LTD,id:13014517,1345.23
Department of Health,Guys and St Thomas NHS Foundation Trust,27/05/2020,(51462) Occupational Therapists,(id:706419) Evelina Community Services,PRICEWATERHOUSECOOPERS LLP,id:13050033   ,2799.77
Department of Health,Guys and St Thomas NHS Foundation Trust,15/05/2020,(89000) Other - Training courses and conferences,(id:590451) Evelina Community Services,MIME CONSULTING LTD,id:13017817   ,1450.00
Department of Health,Guys and St Thomas NHS Foundation Trust,07/05/2020,(84501) Establishment,(id:590451) Evelina Community Services,313Y LIMITED,id:13018161  ,2751.00
Department of Health,Guys and St Thomas NHS Foundation Trust,01/05/2020,(82000) Provisions & Kitchens,(id:1831419) Evelina Community Services,NHS SUPPLY CHAIN (MAIDSTONE),id:12957217  , 144.96
Department of Health,Guys and St Thomas NHS Foundation Trust,01/05/2020,(84655) Establishment,(id:590548) Evelina Community Services,LANGUAGE CONNECT,id:12914434   ,3504.68
Department of Health,Guys and St Thomas NHS Foundation Trust,15/05/2020,(89270) Establishment,(id:590548) Evelina Community Services,THE NATIONAL AUTISTIC SOCIETY,id:13027234,    18075.00
Department of Health,Guys and St Thomas NHS Foundation Trust,18/05/2020,(82600) Uniforms & Clothing,(id:590557) Evelina Community Services,NHS SUPPLY CHAIN (MAIDSTONE),id:12976194,  33.63
Department of Health,Guys and St Thomas NHS Foundation Trust,22/05/2020,(83410) Office Equipment,(id:590557) Evelina Community Services,RICOH UK LTD,id:13037538    ,1921.72
Department of Health,Guys and St Thomas NHS Foundation Trust,01/05/2020,(81200) Medical Surgical Supplies & Equipment,(id:590446) Evelina Community Services,NHS SUPPLY CHAIN (MAIDSTONE),id:12984936  ,  18.98
Department of Health,Guys and St Thomas NHS Foundation Trust,01/05/2020,(81200) Medical Surgical Supplies & Equipment,(id:590541) Evelina Community Services,NHS SUPPLY CHAIN (MAIDSTONE),id:12957217  , 139.20
Department of Health,Guys and St Thomas NHS Foundation Trust,18/05/2020,(83400) Office Equipment,(id:590539) Evelina Community Services,NHS SUPPLY CHAIN (MAIDSTONE),id:12976194   ,  89.95
Department of Health,Guys and St Thomas NHS Foundation Trust,01/05/2020,(83610) IT Costs,(id:590539) Evelina Community Services,SCC PLC)SPECIALIST COMPUTER CENTRES,id:12995828    , 675.84
Department of Health,Guys and St Thomas NHS Foundation Trust,01/05/2020,(82000) Provisions & Kitchens,(id:590539) Evelina Community Services,NHS SUPPLY CHAIN (MAIDSTONE),id:12984936   ,  38.88
Department of Health,Guys and St Thomas NHS Foundation Trust,01/05/2020,(81200) Medical Surgical Supplies & Equipment,(id:590539) Evelina Community Services,SCC PLC)SPECIALIST COMPUTER CENTRES,id:12995828,  12.00
Department of Health,Guys and St Thomas NHS Foundation Trust,01/05/2020,(83400) Office Equipment,(id:590537) Evelina Community Services,NHS SUPPLY CHAIN (MAIDSTONE),id:12945257   , 117.78
Department of Health,Guys and St Thomas NHS Foundation Trust,22/05/2020,(50562) Qualified Nursing Staff,(id:590416) Evelina Community Services,MSI GROUP LTD,id:13043851 ,1001.08
Department of Health,Guys and St Thomas NHS Foundation Trust,18/05/2020,(81100) Dressings,(id:2356419) Evelina Medicine & Neonatology,NHS SUPPLY CHAIN (MAIDSTONE),id:13003941,  82.68
Department of Health,Guys and St Thomas NHS Foundation Trust,15/05/2020,(83400) Office Equipment,(id:2356419) Evelina Medicine & Neonatology,SKYGUARD LTD,id:12935974    ,    -1592.10
Department of Health,Guys and St Thomas NHS Foundation Trust,07/05/2020,(82600) Uniforms & Clothing,(id:2356419) Evelina Medicine & Neonatology,NHS SUPPLY CHAIN (MAIDSTONE),id:12997837,   3.78
Department of Health,Guys and St Thomas NHS Foundation Trust,07/05/2020,(81200) Medical Surgical Supplies & Equipment,(id:42350) Evelina Medicine & Neonatology,BAXTER HEALTHCARE LTD,id:12979961 ,2291.52
Department of Health,Guys and St Thomas NHS Foundation Trust,28/05/2020,(80150) Drug Costs,(id:42350) Evelina Medicine & Neonatology,LINC MEDICAL SYSTEMS  LTD,id:13045834    ,2700.00
Department of Health,Guys and St Thomas NHS Foundation Trust,15/05/2020,(50200) Consultants,(id:42349) Evelina Medicine & Neonatology,KINGS COLLEGE LONDON:03529700,id:12844134    ,6247.93
Department of Health,Guys and St Thomas NHS Foundation Trust,01/05/2020,(81200) Medical Surgical Supplies & Equipment,(id:42349) Evelina Medicine & Neonatology,NHS SUPPLY CHAIN (MAIDSTONE),id:12984936    , 480.00
Department of Health,Guys and St Thomas NHS Foundation Trust,01/05/2020,(89640) Non-Healthcare from NHS Trusts,(id:42336) Evelina Medicine & Neonatology,PORTSMOUTH HOSPITALS NHS TRUST,id:12972974    , 512.17
Department of Health,Guys and St Thomas NHS Foundation Trust,15/05/2020,(50200) Consultants,(id:42335) Evelina Medicine & Neonatology,SOUTH LONDON AND MAUDSLEY NHS FOUNDATION TRUST,id:13008003  ,    17754.51
Department of Health,Guys and St Thomas NHS Foundation Trust,01/05/2020,(83400) Office Equipment,(id:42335) Evelina Medicine & Neonatology,NHS SUPPLY CHAIN (MAIDSTONE),id:12945257,  79.63
Department of Health,Guys and St Thomas NHS Foundation Trust,01/05/2020,(83610) IT Costs,(id:42335) Evelina Medicine & Neonatology,SCC PLC)SPECIALIST COMPUTER CENTRES,id:12995808 , 727.44
Department of Health,Guys and St Thomas NHS Foundation Trust,07/05/2020,(89595) Non-Healthcare from Foundation Trusts,(id:42335) Evelina Medicine & Neonatology,GREAT ORMOND STREET HOSPITAL FOR CHILDREN NHS FOUNDATION TRUST,id:12996234, 825.00
Department of Health,Guys and St Thomas NHS Foundation Trust,01/05/2020,(82800) Bedding & Linen,(id:42327) Evelina Medicine & Neonatology,NHS SUPPLY CHAIN (MAIDSTONE),id:12945257 ,  54.72
Department of Health,Guys and St Thomas NHS Foundation Trust,22/05/2020,(50200) Consultants,(id:42327) Evelina Medicine & Neonatology,KINGS COLLEGE LONDON:03529700,id:13003706    ,6653.05
Department of Health,Guys and St Thomas NHS Foundation Trust,18/05/2020,(81400) Medical Surgical Supplies & Equipment,(id:42327) Evelina Medicine & Neonatology,NHS SUPPLY CHAIN (MAIDSTONE),id:13003941    , 838.20
Department of Health,Guys and St Thomas NHS Foundation Trust,18/05/2020,(81100) Dressings,(id:42327) Evelina Medicine & Neonatology,NHS SUPPLY CHAIN (MAIDSTONE),id:12976194  , 387.88
Department of Health,Guys and St Thomas NHS Foundation Trust,01/05/2020,(81200) Medical Surgical Supplies & Equipment,(id:42327) Evelina Medicine & Neonatology,NHS SUPPLY CHAIN (MAIDSTONE),id:12957217    ,4281.45
Department of Health,Guys and St Thomas NHS Foundation Trust,07/05/2020,(81200) Medical Surgical Supplies & Equipment,(id:42327) Evelina Medicine & Neonatology,NHS SUPPLY CHAIN (MAIDSTONE),id:12997837    ,2981.07
Department of Health,Guys and St Thomas NHS Foundation Trust,22/05/2020,(81200) Medical Surgical Supplies & Equipment,(id:42327) Evelina Medicine & Neonatology,MEDTRONIC LTD,id:13021096    ,1900.80
Department of Health,Guys and St Thomas NHS Foundation Trust,01/05/2020,(81200) Medical Surgical Supplies & Equipment,(id:42327) Evelina Medicine & Neonatology,TECHNO SYSTEMS AS,id:12996035,4683.60
Department of Health,Guys and St Thomas NHS Foundation Trust,15/05/2020,(81200) Medical Surgical Supplies & Equipment,(id:42327) Evelina Medicine & Neonatology,AEROGEN LIFESCIENCES UK LTD,id:13020440, 873.60
Department of Health,Guys and St Thomas NHS Foundation Trust,22/05/2020,(81200) Medical Surgical Supplies & Equipment,(id:42327) Evelina Medicine & Neonatology,VYGON (UK) LTD,id:13043255   ,  59.88
Department of Health,Guys and St Thomas NHS Foundation Trust,22/05/2020,(50552) Qualified Nursing Staff,(id:42327) Evelina Medicine & Neonatology,CONTINENTAL NURSE LTD,id:13043862,1782.06
Department of Health,Guys and St Thomas NHS Foundation Trust,22/05/2020,(50552) Qualified Nursing Staff,(id:42327) Evelina Medicine & Neonatology,CONTINENTAL NURSE LTD,id:13043699,2549.85
Department of Health,Guys and St Thomas NHS Foundation Trust,07/05/2020,(50552) Qualified Nursing Staff,(id:42327) Evelina Medicine & Neonatology,CONTINENTAL NURSE LTD,id:13018150,2011.76
Department of Health,Guys and St Thomas NHS Foundation Trust,01/05/2020,(89640) Non-Healthcare from NHS Trusts,(id:42327) Evelina Medicine & Neonatology,LONDON AMBULANCE SERVICE NHS TRUST,id:12975861,1116.44
Department of Health,Guys and St Thomas NHS Foundation Trust,22/05/2020,(50203) Consultants,(id:42327) Evelina Medicine & Neonatology,KINGS COLLEGE LONDON:03529700,id:13003706    ,5206.07
Department of Health,Guys and St Thomas NHS Foundation Trust,01/05/2020,(83400) Office Equipment,(id:42327) Evelina Medicine & Neonatology,NHS SUPPLY CHAIN (MAIDSTONE),id:12984936, 299.96
Department of Health,Guys and St Thomas NHS Foundation Trust,01/05/2020,(81200) Medical Surgical Supplies & Equipment,(id:2496419) Evelina Medicine & Neonatology,NHS SUPPLY CHAIN (MAIDSTONE),id:12945257  ,1736.42
Department of Health,Guys and St Thomas NHS Foundation Trust,01/05/2020,(82700) Uniforms & Clothing,(id:2496419) Evelina Medicine & Neonatology,NHS SUPPLY CHAIN (MAIDSTONE),id:12945257,  70.33
Department of Health,Guys and St Thomas NHS Foundation Trust,22/05/2020,(84500) Establishment,(id:2496419) Evelina Medicine & Neonatology,CDP  PRINT MANAGEMENT,id:13041994   ,  18.60
Department of Health,Guys and St Thomas NHS Foundation Trust,07/05/2020,(50552) Qualified Nursing Staff,(id:41874) Evelina Medicine & Neonatology,CONTINENTAL NURSE LTD,id:13018062,2228.11
Department of Health,Guys and St Thomas NHS Foundation Trust,22/05/2020,(84500) Establishment,(id:42326) Evelina Medicine & Neonatology,CDP  PRINT MANAGEMENT,id:13040917,  15.50
Department of Health,Guys and St Thomas NHS Foundation Trust,18/05/2020,(82800) Bedding & Linen,(id:1561419) Evelina Medicine & Neonatology,NHS SUPPLY CHAIN (MAIDSTONE),id:13003941    ,  40.18
Department of Health,Guys and St Thomas NHS Foundation Trust,01/05/2020,(82600) Uniforms & Clothing,(id:42323) Evelina Medicine & Neonatology,NHS SUPPLY CHAIN (MAIDSTONE),id:12945257  ,  16.13
Department of Health,Guys and St Thomas NHS Foundation Trust,22/05/2020,(50552) Qualified Nursing Staff,(id:42323) Evelina Medicine & Neonatology,CONTINENTAL NURSE LTD,id:13043588, 960.38
Department of Health,Guys and St Thomas NHS Foundation Trust,18/05/2020,(82800) Bedding & Linen,(id:42315) Evelina Medicine & Neonatology,NHS SUPPLY CHAIN (MAIDSTONE),id:13003941 ,  47.12
Department of Health,Guys and St Thomas NHS Foundation Trust,01/05/2020,(81100) Dressings,(id:42315) Evelina Medicine & Neonatology,NHS SUPPLY CHAIN (MAIDSTONE),id:12957217  ,  97.20
Department of Health,Guys and St Thomas NHS Foundation Trust,07/05/2020,(81100) Dressings,(id:42315) Evelina Medicine & Neonatology,NHS SUPPLY CHAIN (MAIDSTONE),id:12997837  , 171.39
Department of Health,Guys and St Thomas NHS Foundation Trust,07/05/2020,(81200) Medical Surgical Supplies & Equipment,(id:42315) Evelina Medicine & Neonatology,NHS SUPPLY CHAIN (MAIDSTONE),id:12997837    , 392.67
Department of Health,Guys and St Thomas NHS Foundation Trust,01/05/2020,(81255) Medical Surgical Supplies & Equipment,(id:42315) Evelina Medicine & Neonatology,NHS SUPPLY CHAIN (MAIDSTONE),id:12984936    ,   5.28
Department of Health,Guys and St Thomas NHS Foundation Trust,01/05/2020,(81225) Medical Surgical Supplies & Equipment,(id:42315) Evelina Medicine & Neonatology,NHS SUPPLY CHAIN (MAIDSTONE),id:12984936    ,  17.66
Department of Health,Guys and St Thomas NHS Foundation Trust,07/05/2020,(81700) Lab Equipment Purchase,(id:42315) Evelina Medicine & Neonatology,NHS SUPPLY CHAIN (MAIDSTONE),id:12997837    ,  15.14
Department of Health,Guys and St Thomas NHS Foundation Trust,01/05/2020,(81100) Dressings,(id:2499419) Evelina Surgery Theatres & PICU,NHS SUPPLY CHAIN (MAIDSTONE),id:12984936    ,  41.52
Department of Health,Guys and St Thomas NHS Foundation Trust,07/05/2020,(81200) Medical Surgical Supplies & Equipment,(id:2499419) Evelina Surgery Theatres & PICU,NHS SUPPLY CHAIN (MAIDSTONE),id:12997837 ,  58.86
Department of Health,Guys and St Thomas NHS Foundation Trust,18/05/2020,(82000) Provisions & Kitchens,(id:2499419) Evelina Surgery Theatres & PICU,NHS SUPPLY CHAIN (MAIDSTONE),id:13003941  ,  64.06
Department of Health,Guys and St Thomas NHS Foundation Trust,01/05/2020,(82000) Provisions & Kitchens,(id:2499419) Evelina Surgery Theatres & PICU,NHS SUPPLY CHAIN (MAIDSTONE),id:12945257  ,   4.20
Department of Health,Guys and St Thomas NHS Foundation Trust,15/05/2020,(50200) Consultants,(id:42312) Evelina Surgery Theatres & PICU,KINGS COLLEGE LONDON:03529700,id:12846875   ,1917.63
Department of Health,Guys and St Thomas NHS Foundation Trust,07/05/2020,(81200) Medical Surgical Supplies & Equipment,(id:42312) Evelina Surgery Theatres & PICU,JOHNSON & JOHNSON MEDICAL LTD,id:13001167  ,5222.18
Department of Health,Guys and St Thomas NHS Foundation Trust,15/05/2020,(81200) Medical Surgical Supplies & Equipment,(id:42312) Evelina Surgery Theatres & PICU,JOHNSON & JOHNSON MEDICAL LTD,id:13008412  ,1062.78
Department of Health,Guys and St Thomas NHS Foundation Trust,15/05/2020,(81200) Medical Surgical Supplies & Equipment,(id:42312) Evelina Surgery Theatres & PICU,OCCLUTECH UK LTD,id:13020842,1140.00
Department of Health,Guys and St Thomas NHS Foundation Trust,15/05/2020,(81200) Medical Surgical Supplies & Equipment,(id:42312) Evelina Surgery Theatres & PICU,MEDTRONIC LTD,id:13010685   ,2640.00
Department of Health,Guys and St Thomas NHS Foundation Trust,28/05/2020,(81280) Medical Surgical Supplies & Equipment,(id:42312) Evelina Surgery Theatres & PICU,ROYAL BROMPTON AND HAREFIELD NHS FOUNDATION TRUST,id:13049599  ,3896.56
Department of Health,Guys and St Thomas NHS Foundation Trust,28/05/2020,(81250) Medical Surgical Supplies & Equipment,(id:42312) Evelina Surgery Theatres & PICU,BENTLEY INNOMED GMBH,id:13040356 ,2040.00
Department of Health,Guys and St Thomas NHS Foundation Trust,07/05/2020,(81100) Dressings,(id:42351) Evelina Surgery Theatres & PICU,JEWEL MANAGEMENT LTD T/A GENERAL MEDICAL,id:13019765    , 785.94
Department of Health,Guys and St Thomas NHS Foundation Trust,18/05/2020,(82600) Uniforms & Clothing,(id:41914) Evelina Surgery Theatres & PICU,NHS SUPPLY CHAIN (MAIDSTONE),id:12976194 , 100.70
Department of Health,Guys and St Thomas NHS Foundation Trust,18/05/2020,(83400) Office Equipment,(id:41914) Evelina Surgery Theatres & PICU,NHS SUPPLY CHAIN (MAIDSTONE),id:13003941    , 232.45
Department of Health,Guys and St Thomas NHS Foundation Trust,01/05/2020,(82800) Bedding & Linen,(id:41914) Evelina Surgery Theatres & PICU,NHS SUPPLY CHAIN (MAIDSTONE),id:12957217,  36.00
Department of Health,Guys and St Thomas NHS Foundation Trust,15/05/2020,(50562) Qualified Nursing Staff,(id:41914) Evelina Surgery Theatres & PICU,YOUR WORLD RECRUITMENT LIMITED(YOUR WORLD HEALTHCARE),id:13031093  ,1297.00
Department of Health,Guys and St Thomas NHS Foundation Trust,15/05/2020,(50562) Qualified Nursing Staff,(id:41914) Evelina Surgery Theatres & PICU,YOUR WORLD RECRUITMENT LIMITED(YOUR WORLD HEALTHCARE),id:13032629  , 574.60
Department of Health,Guys and St Thomas NHS Foundation Trust,15/05/2020,(81100) Dressings,(id:41914) Evelina Surgery Theatres & PICU,ELIS UK LIMITED,id:12865334    , 869.00
Department of Health,Guys and St Thomas NHS Foundation Trust,01/05/2020,(81100) Dressings,(id:41914) Evelina Surgery Theatres & PICU,NHS SUPPLY CHAIN (MAIDSTONE),id:12984936 , 548.30
Department of Health,Guys and St Thomas NHS Foundation Trust,01/05/2020,(81225) Medical Surgical Supplies & Equipment,(id:41914) Evelina Surgery Theatres & PICU,NHS SUPPLY CHAIN (MAIDSTONE),id:12945257   ,  14.68
Department of Health,Guys and St Thomas NHS Foundation Trust,15/05/2020,(50552) Qualified Nursing Staff,(id:41914) Evelina Surgery Theatres & PICU,YOUR WORLD RECRUITMENT LIMITED(YOUR WORLD HEALTHCARE),id:13032629  , 287.30
Department of Health,Guys and St Thomas NHS Foundation Trust,22/05/2020,(81200) Medical Surgical Supplies & Equipment,(id:41910) Evelina Surgery Theatres & PICU,SQUADRON MEDICAL LTD,id:13024411 , 160.10
Department of Health,Guys and St Thomas NHS Foundation Trust,18/05/2020,(82600) Uniforms & Clothing,(id:41910) Evelina Surgery Theatres & PICU,NHS SUPPLY CHAIN (MAIDSTONE),id:13003941 ,  77.13
Department of Health,Guys and St Thomas NHS Foundation Trust,01/05/2020,(81230) Medical Surgical Supplies & Equipment,(id:41910) Evelina Surgery Theatres & PICU,NHS SUPPLY CHAIN (MAIDSTONE),id:12957217   ,  70.99
Department of Health,Guys and St Thomas NHS Foundation Trust,01/05/2020,(83400) Office Equipment,(id:41910) Evelina Surgery Theatres & PICU,NHS SUPPLY CHAIN (MAIDSTONE),id:12945257    ,  13.17
Department of Health,Guys and St Thomas NHS Foundation Trust,18/05/2020,(81100) Dressings,(id:431409) Evelina Surgery Theatres & PICU,NHS SUPPLY CHAIN (MAIDSTONE),id:12976194,   6.72
Department of Health,Guys and St Thomas NHS Foundation Trust,01/05/2020,(81100) Dressings,(id:431409) Evelina Surgery Theatres & PICU,NHS SUPPLY CHAIN (MAIDSTONE),id:12957217,   6.05
Department of Health,Guys and St Thomas NHS Foundation Trust,15/05/2020,(81400) Medical Surgical Supplies & Equipment,(id:431409) Evelina Surgery Theatres & PICU,PHARMED UK LTD (FORMERLY NEUROTECHNICS LTD),id:13018218  ,3782.00
Department of Health,Guys and St Thomas NHS Foundation Trust,01/05/2020,(81200) Medical Surgical Supplies & Equipment,(id:431409) Evelina Surgery Theatres & PICU,SMITH & NEPHEW ORTHOPAEDICS LTD.,id:12980443   ,3097.40
Department of Health,Guys and St Thomas NHS Foundation Trust,07/05/2020,(81000) Surgical Appliances,(id:431409) Evelina Surgery Theatres & PICU,JOHN FLORENCE LTD,id:13016661 , 744.67
Department of Health,Guys and St Thomas NHS Foundation Trust,07/05/2020,(81000) Surgical Appliances,(id:431409) Evelina Surgery Theatres & PICU,JOHN FLORENCE LTD,id:13016709 , 894.88
Department of Health,Guys and St Thomas NHS Foundation Trust,28/05/2020,(81000) Surgical Appliances,(id:431409) Evelina Surgery Theatres & PICU,JOHN FLORENCE LTD,id:13053900 , 910.98
Department of Health,Guys and St Thomas NHS Foundation Trust,18/05/2020,(81200) Medical Surgical Supplies & Equipment,(id:468409) Evelina Surgery Theatres & PICU,NHS SUPPLY CHAIN (MAIDSTONE),id:13003941  , 251.33
Department of Health,Guys and St Thomas NHS Foundation Trust,22/05/2020,(81400) Medical Surgical Supplies & Equipment,(id:468409) Evelina Surgery Theatres & PICU,LITEOPTICS LTD,id:13039208 ,    14372.00
Department of Health,Guys and St Thomas NHS Foundation Trust,01/05/2020,(82600) Uniforms & Clothing,(id:42347) Evelina Surgery Theatres & PICU,NHS SUPPLY CHAIN (MAIDSTONE),id:12957217 ,  21.30
Department of Health,Guys and St Thomas NHS Foundation Trust,22/05/2020,(84400) Transport,(id:42344) Evelina Surgery Theatres & PICU,ST JOHN AMBULANCE ASSOCIATION,id:13037915,    50388.00
Department of Health,Guys and St Thomas NHS Foundation Trust,01/05/2020,(82000) Provisions & Kitchens,(id:42339) Evelina Surgery Theatres & PICU,NHS SUPPLY CHAIN (MAIDSTONE),id:12957217    ,  70.71
Department of Health,Guys and St Thomas NHS Foundation Trust,01/05/2020,(81255) Medical Surgical Supplies & Equipment,(id:42339) Evelina Surgery Theatres & PICU,NHS SUPPLY CHAIN (MAIDSTONE),id:12984936   , 785.76
Department of Health,Guys and St Thomas NHS Foundation Trust,01/05/2020,(81200) Medical Surgical Supplies & Equipment,(id:42339) Evelina Surgery Theatres & PICU,NHS SUPPLY CHAIN (MAIDSTONE),id:12984936   ,4266.73
Department of Health,Guys and St Thomas NHS Foundation Trust,01/05/2020,(81200) Medical Surgical Supplies & Equipment,(id:42339) Evelina Surgery Theatres & PICU,MEDTRONIC LTD,id:12989370   , 832.32
Department of Health,Guys and St Thomas NHS Foundation Trust,15/05/2020,(81200) Medical Surgical Supplies & Equipment,(id:42339) Evelina Surgery Theatres & PICU,FISHER & PAYKEL HEALTHCARE LTD,id:13029714 ,1204.20
Department of Health,Guys and St Thomas NHS Foundation Trust,28/05/2020,(83610) IT Costs,(id:42339) Evelina Surgery Theatres & PICU,OFFICE DEPOT UK LTD,id:13031939 , 583.10
Department of Health,Guys and St Thomas NHS Foundation Trust,01/05/2020,(80010) Drug Costs,(id:42339) Evelina Surgery Theatres & PICU,NHS SUPPLY CHAIN (MAIDSTONE),id:12945257,  34.08
Department of Health,Guys and St Thomas NHS Foundation Trust,15/05/2020,(50200) Consultants,(id:1202419) Evelina R&D and Charity,KINGS COLLEGE LONDON:03529700,id:12846886    ,2387.64
Department of Health,Guys and St Thomas NHS Foundation Trust,15/05/2020,(50552) Qualified Nursing Staff,(id:2634419) Evelina R&D and Charity,KING'S COLLEGE HOSPITAL NHS FOUNDATION TRUST,id:13027401  ,    17840.00
Department of Health,Guys and St Thomas NHS Foundation Trust,01/05/2020,(82600) Uniforms & Clothing,(id:41958) Gastrointestinal Medicine & Surgery,NHS SUPPLY CHAIN (MAIDSTONE),id:12945257  ,  79.73
Department of Health,Guys and St Thomas NHS Foundation Trust,01/05/2020,(83400) Office Equipment,(id:41958) Gastrointestinal Medicine & Surgery,NHS SUPPLY CHAIN (MAIDSTONE),id:12984936, 130.31
Department of Health,Guys and St Thomas NHS Foundation Trust,01/05/2020,(81100) Dressings,(id:41958) Gastrointestinal Medicine & Surgery,NHS SUPPLY CHAIN (MAIDSTONE),id:12945257  ,  49.87
Department of Health,Guys and St Thomas NHS Foundation Trust,01/05/2020,(81100) Dressings,(id:41958) Gastrointestinal Medicine & Surgery,NHS SUPPLY CHAIN (MAIDSTONE),id:12984936  , 219.03
Department of Health,Guys and St Thomas NHS Foundation Trust,15/05/2020,(81000) Surgical Appliances,(id:41955) Gastrointestinal Medicine & Surgery,TALAR MADE ORTHOTICS LTD,id:12933154 ,  58.80
Department of Health,Guys and St Thomas NHS Foundation Trust,22/05/2020,(84500) Establishment,(id:41954) Gastrointestinal Medicine & Surgery,CDP  PRINT MANAGEMENT,id:13040918,   7.70
Department of Health,Guys and St Thomas NHS Foundation Trust,18/05/2020,(81700) Lab Equipment Purchase,(id:41954) Gastrointestinal Medicine & Surgery,NHS SUPPLY CHAIN (MAIDSTONE),id:13003941    ,  63.95
Department of Health,Guys and St Thomas NHS Foundation Trust,07/05/2020,(81700) Lab Equipment Purchase,(id:41954) Gastrointestinal Medicine & Surgery,NHS SUPPLY CHAIN (MAIDSTONE),id:12997837    ,   5.93
Department of Health,Guys and St Thomas NHS Foundation Trust,01/05/2020,(81225) Medical Surgical Supplies & Equipment,(id:41954) Gastrointestinal Medicine & Surgery,NHS SUPPLY CHAIN (MAIDSTONE),id:12957217    , 139.28
Department of Health,Guys and St Thomas NHS Foundation Trust,07/05/2020,(83400) Office Equipment,(id:41951) Gastrointestinal Medicine & Surgery,DICT8 LIMITED,id:13017065,1303.56
Department of Health,Guys and St Thomas NHS Foundation Trust,01/05/2020,(81200) Medical Surgical Supplies & Equipment,(id:41949) Gastrointestinal Medicine & Surgery,NHS SUPPLY CHAIN (MAIDSTONE),id:12957217    , 108.00
Department of Health,Guys and St Thomas NHS Foundation Trust,01/05/2020,(81700) Lab Equipment Purchase,(id:2367419) Gastrointestinal Medicine & Surgery,NHS SUPPLY CHAIN (MAIDSTONE),id:12984936  ,   6.28
Department of Health,Guys and St Thomas NHS Foundation Trust,22/05/2020,(84500) Establishment,(id:2367419) Gastrointestinal Medicine & Surgery,CDP  PRINT MANAGEMENT,id:13041994   ,  82.50
Department of Health,Guys and St Thomas NHS Foundation Trust,18/05/2020,(82800) Bedding & Linen,(id:2367419) Gastrointestinal Medicine & Surgery,NHS SUPPLY CHAIN (MAIDSTONE),id:13003941    ,  11.23
Department of Health,Guys and St Thomas NHS Foundation Trust,07/05/2020,(83400) Office Equipment,(id:2367419) Gastrointestinal Medicine & Surgery,NHS SUPPLY CHAIN (MAIDSTONE),id:12997837   ,   5.49
Department of Health,Guys and St Thomas NHS Foundation Trust,18/05/2020,(81100) Dressings,(id:2367419) Gastrointestinal Medicine & Surgery,NHS SUPPLY CHAIN (MAIDSTONE),id:12976194,  84.69
Department of Health,Guys and St Thomas NHS Foundation Trust,01/05/2020,(81100) Dressings,(id:2367419) Gastrointestinal Medicine & Surgery,NHS SUPPLY CHAIN (MAIDSTONE),id:12945257, 199.53
Department of Health,Guys and St Thomas NHS Foundation Trust,01/05/2020,(81100) Dressings,(id:2367419) Gastrointestinal Medicine & Surgery,NHS SUPPLY CHAIN (MAIDSTONE),id:12984936,  98.99
Department of Health,Guys and St Thomas NHS Foundation Trust,07/05/2020,(81100) Dressings,(id:2367419) Gastrointestinal Medicine & Surgery,NHS SUPPLY CHAIN (MAIDSTONE),id:12997837,  36.72
Department of Health,Guys and St Thomas NHS Foundation Trust,01/05/2020,(83400) Office Equipment,(id:41957) Gastrointestinal Medicine & Surgery,NHS SUPPLY CHAIN (MAIDSTONE),id:12945257,  28.94
Department of Health,Guys and St Thomas NHS Foundation Trust,18/05/2020,(83400) Office Equipment,(id:41917) Gastrointestinal Medicine & Surgery,NHS SUPPLY CHAIN (MAIDSTONE),id:13003941, 926.14
Department of Health,Guys and St Thomas NHS Foundation Trust,28/05/2020,(81200) Medical Surgical Supplies & Equipment,(id:41917) Gastrointestinal Medicine & Surgery,BOSTON SCIENTIFIC LTD,id:13036985 ,2701.98
Department of Health,Guys and St Thomas NHS Foundation Trust,18/05/2020,(81200) Medical Surgical Supplies & Equipment,(id:41917) Gastrointestinal Medicine & Surgery,NHS SUPPLY CHAIN (MAIDSTONE),id:12976194    ,  11.14
Department of Health,Guys and St Thomas NHS Foundation Trust,15/05/2020,(89440) Research and Development,(id:4207419) Cardiovascular Services,KINGS COLLEGE LONDON:03529700,id:13006024 ,1233.00
Department of Health,Guys and St Thomas NHS Foundation Trust,01/05/2020,(81230) Medical Surgical Supplies & Equipment,(id:639421) Cardiovascular Services,PHILIPS HEALTHCARE,id:13005905,    -1080.00
Department of Health,Guys and St Thomas NHS Foundation Trust,15/05/2020,(81200) Medical Surgical Supplies & Equipment,(id:639421) Cardiovascular Services,MEDTRONIC LTD,id:13015568, 600.00
Department of Health,Guys and St Thomas NHS Foundation Trust,07/05/2020,(81200) Medical Surgical Supplies & Equipment,(id:639421) Cardiovascular Services,COOK UK LTD,id:12994994  ,9600.00
Department of Health,Guys and St Thomas NHS Foundation Trust,18/05/2020,(82700) Uniforms & Clothing,(id:41953) Cardiovascular Services,NHS SUPPLY CHAIN (MAIDSTONE),id:13003941    ,  31.68
Department of Health,Guys and St Thomas NHS Foundation Trust,01/05/2020,(82800) Bedding & Linen,(id:41953) Cardiovascular Services,NHS SUPPLY CHAIN (MAIDSTONE),id:12984936   , 162.94
Department of Health,Guys and St Thomas NHS Foundation Trust,01/05/2020,(81200) Medical Surgical Supplies & Equipment,(id:41953) Cardiovascular Services,NHS SUPPLY CHAIN (MAIDSTONE),id:12984936 , 927.41
Department of Health,Guys and St Thomas NHS Foundation Trust,18/05/2020,(81200) Medical Surgical Supplies & Equipment,(id:41953) Cardiovascular Services,NHS SUPPLY CHAIN (MAIDSTONE),id:13003941 , 943.44
Department of Health,Guys and St Thomas NHS Foundation Trust,01/05/2020,(81100) Dressings,(id:41953) Cardiovascular Services,NHS SUPPLY CHAIN (MAIDSTONE),id:12957217    ,   7.31
Department of Health,Guys and St Thomas NHS Foundation Trust,18/05/2020,(81225) Medical Surgical Supplies & Equipment,(id:41953) Cardiovascular Services,NHS SUPPLY CHAIN (MAIDSTONE),id:13003941 ,  65.52
Department of Health,Guys and St Thomas NHS Foundation Trust,18/05/2020,(81700) Lab Equipment Purchase,(id:41953) Cardiovascular Services,NHS SUPPLY CHAIN (MAIDSTONE),id:12976194 ,  30.01
Department of Health,Guys and St Thomas NHS Foundation Trust,01/05/2020,(81700) Lab Equipment Purchase,(id:41953) Cardiovascular Services,NHS SUPPLY CHAIN (MAIDSTONE),id:12984936 ,  24.90
Department of Health,Guys and St Thomas NHS Foundation Trust,18/05/2020,(82600) Uniforms & Clothing,(id:41952) Cardiovascular Services,NHS SUPPLY CHAIN (MAIDSTONE),id:12976194    , 511.34
Department of Health,Guys and St Thomas NHS Foundation Trust,01/05/2020,(81200) Medical Surgical Supplies & Equipment,(id:41952) Cardiovascular Services,NHS SUPPLY CHAIN (MAIDSTONE),id:12984936 ,  50.14
Department of Health,Guys and St Thomas NHS Foundation Trust,18/05/2020,(82800) Bedding & Linen,(id:41952) Cardiovascular Services,NHS SUPPLY CHAIN (MAIDSTONE),id:12976194   ,  35.45
Department of Health,Guys and St Thomas NHS Foundation Trust,07/05/2020,(81100) Dressings,(id:41952) Cardiovascular Services,NHS SUPPLY CHAIN (MAIDSTONE),id:12997837    ,1114.08
Department of Health,Guys and St Thomas NHS Foundation Trust,07/05/2020,(83400) Office Equipment,(id:41952) Cardiovascular Services,NHS SUPPLY CHAIN (MAIDSTONE),id:12997837  ,  11.00
Department of Health,Guys and St Thomas NHS Foundation Trust,15/05/2020,(81200) Medical Surgical Supplies & Equipment,(id:41950) Cardiovascular Services,ABBOTT MEDICAL UK LTD,id:13025481   ,1896.00
Department of Health,Guys and St Thomas NHS Foundation Trust,15/05/2020,(81200) Medical Surgical Supplies & Equipment,(id:41950) Cardiovascular Services,WL GORE & ASSOCIATES (UK) LTD,id:13025214,-972.00
Department of Health,Guys and St Thomas NHS Foundation Trust,15/05/2020,(81000) Surgical Appliances,(id:41950) Cardiovascular Services,MEDI UK LTD,id:13032767 , 812.72
Department of Health,Guys and St Thomas NHS Foundation Trust,18/05/2020,(81100) Dressings,(id:41950) Cardiovascular Services,NHS SUPPLY CHAIN (MAIDSTONE),id:13003941    ,1339.68
Department of Health,Guys and St Thomas NHS Foundation Trust,01/05/2020,(82800) Bedding & Linen,(id:41947) Cardiovascular Services,NHS SUPPLY CHAIN (MAIDSTONE),id:12945257   ,  24.00
Department of Health,Guys and St Thomas NHS Foundation Trust,18/05/2020,(83400) Office Equipment,(id:42305) Cardiovascular Services,NHS SUPPLY CHAIN (MAIDSTONE),id:13003941  ,  13.26
Department of Health,Guys and St Thomas NHS Foundation Trust,07/05/2020,(89270) Establishment,(id:42305) Cardiovascular Services,CIVICA UK LTD,id:13015275, 469.97
Department of Health,Guys and St Thomas NHS Foundation Trust,15/05/2020,(89270) Establishment,(id:42305) Cardiovascular Services,KINGS COLLEGE LONDON:03529700,id:12843999    ,2119.48
Department of Health,Guys and St Thomas NHS Foundation Trust,01/05/2020,(80010) Drug Costs,(id:42305) Cardiovascular Services,KINGS COLLEGE LONDON:03529700,id:12504066  ,   149107.00
Department of Health,Guys and St Thomas NHS Foundation Trust,22/05/2020,(83410) Office Equipment,(id:42305) Cardiovascular Services,RICOH UK LTD,id:13037414   , 550.32
Department of Health,Guys and St Thomas NHS Foundation Trust,22/05/2020,(83410) Office Equipment,(id:42305) Cardiovascular Services,RICOH UK LTD,id:13037542   , 732.62
Department of Health,Guys and St Thomas NHS Foundation Trust,07/05/2020,(84656) Establishment,(id:42305) Cardiovascular Services,DICT8 LIMITED,id:12992883, 861.60
Department of Health,Guys and St Thomas NHS Foundation Trust,07/05/2020,(84656) Establishment,(id:42305) Cardiovascular Services,DICT8 LIMITED,id:13016838,3874.56
Department of Health,Guys and St Thomas NHS Foundation Trust,15/05/2020,(81000) Surgical Appliances,(id:42305) Cardiovascular Services,TALAR MADE ORTHOTICS LTD,id:13032683   , 324.00
Department of Health,Guys and St Thomas NHS Foundation Trust,22/05/2020,(84656) Establishment,(id:1664419) Cardiovascular Services,DICTATE IT,id:13028157 , 544.50
Department of Health,Guys and St Thomas NHS Foundation Trust,01/05/2020,(54072) Technical Officers,(id:1243420) Cardiovascular Services,GLOBE LOCUMS LTD,id:13001085,1512.00
Department of Health,Guys and St Thomas NHS Foundation Trust,15/05/2020,(81200) Medical Surgical Supplies & Equipment,(id:1243420) Cardiovascular Services,ISTORAGE LTD,id:13027813,   6.00
Department of Health,Guys and St Thomas NHS Foundation Trust,01/05/2020,(82800) Bedding & Linen,(id:1243420) Cardiovascular Services,NHS SUPPLY CHAIN (MAIDSTONE),id:12945257 , 389.38
Department of Health,Guys and St Thomas NHS Foundation Trust,28/05/2020,(81500) X Ray Equipment Purchase,(id:1243419) Cardiovascular Services,GE HEALTHCARE (50652318),id:13039144 ,6690.00
Department of Health,Guys and St Thomas NHS Foundation Trust,07/05/2020,(50200) Consultants,(id:42304) Cardiovascular Services,MEDWAY NHS FOUNDATION TRUST,id:12918757   , 949.00
Department of Health,Guys and St Thomas NHS Foundation Trust,07/05/2020,(50200) Consultants,(id:42304) Cardiovascular Services,LEWISHAM AND GREENWICH NHS TRUST,id:12918734   ,1112.68
Department of Health,Guys and St Thomas NHS Foundation Trust,25/05/2020,(54052) Technical Officers,(id:42303) Cardiovascular Services,PRICEWATERHOUSECOOPERS LLP,id:13047754  , 422.64
Department of Health,Guys and St Thomas NHS Foundation Trust,18/05/2020,(81200) Medical Surgical Supplies & Equipment,(id:42302) Cardiovascular Services,NHS SUPPLY CHAIN (MAIDSTONE),id:12976194 , 289.83
Department of Health,Guys and St Thomas NHS Foundation Trust,01/05/2020,(81200) Medical Surgical Supplies & Equipment,(id:42302) Cardiovascular Services,XAVIOURMED LLP,id:12997775, 510.00
Department of Health,Guys and St Thomas NHS Foundation Trust,07/05/2020,(81200) Medical Surgical Supplies & Equipment,(id:42302) Cardiovascular Services,CARDINAL HEALTH UK 432 LIMITED,id:12980794    , 540.00
Department of Health,Guys and St Thomas NHS Foundation Trust,15/05/2020,(81200) Medical Surgical Supplies & Equipment,(id:42302) Cardiovascular Services,MEDTRONIC LTD,id:13008403 , 703.20
Department of Health,Guys and St Thomas NHS Foundation Trust,15/05/2020,(81200) Medical Surgical Supplies & Equipment,(id:42302) Cardiovascular Services,XAVIOURMED LLP,id:13027384,2040.00
Department of Health,Guys and St Thomas NHS Foundation Trust,22/05/2020,(81200) Medical Surgical Supplies & Equipment,(id:42302) Cardiovascular Services,ABBOTT MEDICAL UK LTD,id:13030747   ,3150.00
Department of Health,Guys and St Thomas NHS Foundation Trust,18/05/2020,(81100) Dressings,(id:42302) Cardiovascular Services,NHS SUPPLY CHAIN (MAIDSTONE),id:12976194    ,   4.61
Department of Health,Guys and St Thomas NHS Foundation Trust,28/05/2020,(81235) Medical Surgical Supplies & Equipment,(id:42302) Cardiovascular Services,BOSTON SCIENTIFIC LTD,id:13031783   , 259.20
Department of Health,Guys and St Thomas NHS Foundation Trust,01/05/2020,(81235) Medical Surgical Supplies & Equipment,(id:42302) Cardiovascular Services,BOSTON SCIENTIFIC LTD,id:12980886   , 252.00
Department of Health,Guys and St Thomas NHS Foundation Trust,18/05/2020,(83400) Office Equipment,(id:42301) Cardiovascular Services,NHS SUPPLY CHAIN (MAIDSTONE),id:13003941  , 143.78
Department of Health,Guys and St Thomas NHS Foundation Trust,01/05/2020,(82800) Bedding & Linen,(id:42301) Cardiovascular Services,NHS SUPPLY CHAIN (MAIDSTONE),id:12945257   ,   6.94
Department of Health,Guys and St Thomas NHS Foundation Trust,18/05/2020,(82800) Bedding & Linen,(id:42301) Cardiovascular Services,NHS SUPPLY CHAIN (MAIDSTONE),id:13003941   ,  60.26
Department of Health,Guys and St Thomas NHS Foundation Trust,18/05/2020,(81100) Dressings,(id:42301) Cardiovascular Services,NHS SUPPLY CHAIN (MAIDSTONE),id:13003941    ,  15.91
Department of Health,Guys and St Thomas NHS Foundation Trust,18/05/2020,(81700) Lab Equipment Purchase,(id:42301) Cardiovascular Services,NHS SUPPLY CHAIN (MAIDSTONE),id:13003941 ,  69.76
Department of Health,Guys and St Thomas NHS Foundation Trust,01/05/2020,(83400) Office Equipment,(id:42300) Cardiovascular Services,NHS SUPPLY CHAIN (MAIDSTONE),id:12945257  ,  65.52
Department of Health,Guys and St Thomas NHS Foundation Trust,18/05/2020,(83400) Office Equipment,(id:42300) Cardiovascular Services,NHS SUPPLY CHAIN (MAIDSTONE),id:13003941  , 156.64
Department of Health,Guys and St Thomas NHS Foundation Trust,18/05/2020,(81225) Medical Surgical Supplies & Equipment,(id:42300) Cardiovascular Services,NHS SUPPLY CHAIN (MAIDSTONE),id:13003941 ,  20.16
Department of Health,Guys and St Thomas NHS Foundation Trust,18/05/2020,(81200) Medical Surgical Supplies & Equipment,(id:42300) Cardiovascular Services,NHS SUPPLY CHAIN (MAIDSTONE),id:13003941 ,1173.02
Department of Health,Guys and St Thomas NHS Foundation Trust,07/05/2020,(81200) Medical Surgical Supplies & Equipment,(id:42300) Cardiovascular Services,NHS SUPPLY CHAIN (MAIDSTONE),id:12997837 , 110.77
Department of Health,Guys and St Thomas NHS Foundation Trust,22/05/2020,(83410) Office Equipment,(id:42300) Cardiovascular Services,RICOH UK LTD,id:13037336   , 130.55
Department of Health,Guys and St Thomas NHS Foundation Trust,07/05/2020,(81235) Medical Surgical Supplies & Equipment,(id:42298) Cardiovascular Services,AQUILANT LTD,id:12993934  , 720.00
Department of Health,Guys and St Thomas NHS Foundation Trust,18/05/2020,(81200) Medical Surgical Supplies & Equipment,(id:42298) Cardiovascular Services,NHS SUPPLY CHAIN (MAIDSTONE),id:12976194 ,  98.41
Department of Health,Guys and St Thomas NHS Foundation Trust,07/05/2020,(81200) Medical Surgical Supplies & Equipment,(id:42298) Cardiovascular Services,MEDTRONIC LTD,id:12991931 ,1920.00
Department of Health,Guys and St Thomas NHS Foundation Trust,18/05/2020,(81400) Medical Surgical Supplies & Equipment,(id:42298) Cardiovascular Services,NHS SUPPLY CHAIN (MAIDSTONE),id:12976194 , 154.87
Department of Health,Guys and St Thomas NHS Foundation Trust,01/05/2020,(82800) Bedding & Linen,(id:42298) Cardiovascular Services,NHS SUPPLY CHAIN (MAIDSTONE),id:12945257   , 190.44
Department of Health,Guys and St Thomas NHS Foundation Trust,28/05/2020,(81240) Medical Surgical Supplies & Equipment,(id:42298) Cardiovascular Services,MEDTRONIC LTD,id:13039732 ,5040.00
Department of Health,Guys and St Thomas NHS Foundation Trust,01/05/2020,(82600) Uniforms & Clothing,(id:42291) Cardiovascular Services,NHS SUPPLY CHAIN (MAIDSTONE),id:12945257    , 290.93
Department of Health,Guys and St Thomas NHS Foundation Trust,01/05/2020,(83400) Office Equipment,(id:42291) Cardiovascular Services,NHS SUPPLY CHAIN (MAIDSTONE),id:12984936  ,  19.08
Department of Health,Guys and St Thomas NHS Foundation Trust,18/05/2020,(83400) Office Equipment,(id:42291) Cardiovascular Services,NHS SUPPLY CHAIN (MAIDSTONE),id:13003941  , 158.54
Department of Health,Guys and St Thomas NHS Foundation Trust,01/05/2020,(82800) Bedding & Linen,(id:42291) Cardiovascular Services,NHS SUPPLY CHAIN (MAIDSTONE),id:12957217   ,   1.45
Department of Health,Guys and St Thomas NHS Foundation Trust,07/05/2020,(82700) Uniforms & Clothing,(id:42291) Cardiovascular Services,NHS SUPPLY CHAIN (MAIDSTONE),id:12997837    ,  24.58
Department of Health,Guys and St Thomas NHS Foundation Trust,01/05/2020,(81200) Medical Surgical Supplies & Equipment,(id:42291) Cardiovascular Services,NHS SUPPLY CHAIN (MAIDSTONE),id:12957217 ,  89.65
Department of Health,Guys and St Thomas NHS Foundation Trust,01/05/2020,(81100) Dressings,(id:42291) Cardiovascular Services,NHS SUPPLY CHAIN (MAIDSTONE),id:12984936    ,  15.70
Department of Health,Guys and St Thomas NHS Foundation Trust,01/05/2020,(50552) Qualified Nursing Staff,(id:42291) Cardiovascular Services,CONTINENTAL NURSE LTD,id:13006246  ,2068.70
Department of Health,Guys and St Thomas NHS Foundation Trust,18/05/2020,(81255) Medical Surgical Supplies & Equipment,(id:42291) Cardiovascular Services,NHS SUPPLY CHAIN (MAIDSTONE),id:13003941 ,   1.56
Department of Health,Guys and St Thomas NHS Foundation Trust,18/05/2020,(82600) Uniforms & Clothing,(id:42290) Cardiovascular Services,NHS SUPPLY CHAIN (MAIDSTONE),id:13003941    , 413.60
Department of Health,Guys and St Thomas NHS Foundation Trust,01/05/2020,(82000) Provisions & Kitchens,(id:42290) Cardiovascular Services,NHS SUPPLY CHAIN (MAIDSTONE),id:12957217  , 249.28
Department of Health,Guys and St Thomas NHS Foundation Trust,07/05/2020,(83400) Office Equipment,(id:42290) Cardiovascular Services,NHS SUPPLY CHAIN (MAIDSTONE),id:12997837  ,  38.91
Department of Health,Guys and St Thomas NHS Foundation Trust,01/05/2020,(81200) Medical Surgical Supplies & Equipment,(id:42290) Cardiovascular Services,NHS SUPPLY CHAIN (MAIDSTONE),id:12984936 , 596.39
Department of Health,Guys and St Thomas NHS Foundation Trust,07/05/2020,(81100) Dressings,(id:42290) Cardiovascular Services,NHS SUPPLY CHAIN (MAIDSTONE),id:12997837    ,  76.20
Department of Health,Guys and St Thomas NHS Foundation Trust,01/05/2020,(81700) Lab Equipment Purchase,(id:42290) Cardiovascular Services,NHS SUPPLY CHAIN (MAIDSTONE),id:12957217 ,  34.46
Department of Health,Guys and St Thomas NHS Foundation Trust,01/05/2020,(81700) Lab Equipment Purchase,(id:42290) Cardiovascular Services,NHS SUPPLY CHAIN (MAIDSTONE),id:12984936 ,   9.07
Department of Health,Guys and St Thomas NHS Foundation Trust,18/05/2020,(81255) Medical Surgical Supplies & Equipment,(id:42290) Cardiovascular Services,NHS SUPPLY CHAIN (MAIDSTONE),id:13003941 ,   1.56
Department of Health,Guys and St Thomas NHS Foundation Trust,01/05/2020,(81255) Medical Surgical Supplies & Equipment,(id:42290) Cardiovascular Services,NHS SUPPLY CHAIN (MAIDSTONE),id:12984936 ,  15.67
Department of Health,Guys and St Thomas NHS Foundation Trust,22/05/2020,(84500) Establishment,(id:42293) Cardiovascular Services,CDP  PRINT MANAGEMENT,id:13041994  ,  50.40
Department of Health,Guys and St Thomas NHS Foundation Trust,18/05/2020,(83400) Office Equipment,(id:42293) Cardiovascular Services,NHS SUPPLY CHAIN (MAIDSTONE),id:12976194  ,  82.96
Department of Health,Guys and St Thomas NHS Foundation Trust,01/05/2020,(81200) Medical Surgical Supplies & Equipment,(id:42293) Cardiovascular Services,MEDTRONIC LTD,id:12977429 , 918.00
Department of Health,Guys and St Thomas NHS Foundation Trust,07/05/2020,(81200) Medical Surgical Supplies & Equipment,(id:42293) Cardiovascular Services,SQUADRON MEDICAL LTD,id:12996672    , 506.40
Department of Health,Guys and St Thomas NHS Foundation Trust,15/05/2020,(81200) Medical Surgical Supplies & Equipment,(id:42293) Cardiovascular Services,SQUADRON MEDICAL LTD,id:13010877    ,1403.40
Department of Health,Guys and St Thomas NHS Foundation Trust,28/05/2020,(81200) Medical Surgical Supplies & Equipment,(id:42293) Cardiovascular Services,APC CARDIOVASCULAR LTD,id:13044258  ,1564.10
Department of Health,Guys and St Thomas NHS Foundation Trust,18/05/2020,(82600) Uniforms & Clothing,(id:42287) Cardiovascular Services,NHS SUPPLY CHAIN (MAIDSTONE),id:13003941    , 443.38
Department of Health,Guys and St Thomas NHS Foundation Trust,01/05/2020,(83400) Office Equipment,(id:42287) Cardiovascular Services,NHS SUPPLY CHAIN (MAIDSTONE),id:12945257  , 119.36
Department of Health,Guys and St Thomas NHS Foundation Trust,18/05/2020,(82800) Bedding & Linen,(id:42287) Cardiovascular Services,NHS SUPPLY CHAIN (MAIDSTONE),id:12976194   , 687.79
Department of Health,Guys and St Thomas NHS Foundation Trust,07/05/2020,(82800) Bedding & Linen,(id:42287) Cardiovascular Services,NHS SUPPLY CHAIN (MAIDSTONE),id:12997837   ,   8.58
Department of Health,Guys and St Thomas NHS Foundation Trust,01/05/2020,(82800) Bedding & Linen,(id:42287) Cardiovascular Services,NHS SUPPLY CHAIN (MAIDSTONE),id:12984936   ,  81.19
Department of Health,Guys and St Thomas NHS Foundation Trust,01/05/2020,(81200) Medical Surgical Supplies & Equipment,(id:42287) Cardiovascular Services,NHS SUPPLY CHAIN (MAIDSTONE),id:12984936 ,  55.31
Department of Health,Guys and St Thomas NHS Foundation Trust,07/05/2020,(81200) Medical Surgical Supplies & Equipment,(id:42287) Cardiovascular Services,NHS SUPPLY CHAIN (MAIDSTONE),id:12997837 ,  90.54
Department of Health,Guys and St Thomas NHS Foundation Trust,01/05/2020,(81100) Dressings,(id:42287) Cardiovascular Services,NHS SUPPLY CHAIN (MAIDSTONE),id:12945257    , 173.87
Department of Health,Guys and St Thomas NHS Foundation Trust,27/05/2020,(52072) Radiographers,(id:42368) Clinical Imaging & Med Physics,PRICEWATERHOUSECOOPERS LLP,id:13050033,3502.66
Department of Health,Guys and St Thomas NHS Foundation Trust,01/05/2020,(82600) Uniforms & Clothing,(id:42367) Clinical Imaging & Med Physics,NHS SUPPLY CHAIN (MAIDSTONE),id:12957217  ,  91.88
Department of Health,Guys and St Thomas NHS Foundation Trust,01/05/2020,(82800) Bedding & Linen,(id:42367) Clinical Imaging & Med Physics,NHS SUPPLY CHAIN (MAIDSTONE),id:12957217 , 782.93
Department of Health,Guys and St Thomas NHS Foundation Trust,01/05/2020,(81100) Dressings,(id:42367) Clinical Imaging & Med Physics,NHS SUPPLY CHAIN (MAIDSTONE),id:12957217  ,  56.24
Department of Health,Guys and St Thomas NHS Foundation Trust,01/05/2020,(81100) Dressings,(id:42367) Clinical Imaging & Med Physics,NHS SUPPLY CHAIN (MAIDSTONE),id:12945257  , 113.34
Department of Health,Guys and St Thomas NHS Foundation Trust,01/05/2020,(81400) Medical Surgical Supplies & Equipment,(id:42367) Clinical Imaging & Med Physics,FUJIFILM UK LTD,id:12993577  ,   -23919.30
Department of Health,Guys and St Thomas NHS Foundation Trust,15/05/2020,(81400) Medical Surgical Supplies & Equipment,(id:42367) Clinical Imaging & Med Physics,WARDRAY PREMISE LTD,id:13031436   ,1038.00
Department of Health,Guys and St Thomas NHS Foundation Trust,18/05/2020,(81240) Medical Surgical Supplies & Equipment,(id:42367) Clinical Imaging & Med Physics,NHS SUPPLY CHAIN (MAIDSTONE),id:13003941    , 480.00
Department of Health,Guys and St Thomas NHS Foundation Trust,01/05/2020,(81200) Medical Surgical Supplies & Equipment,(id:42367) Clinical Imaging & Med Physics,SQUADRON MEDICAL LTD,id:12987363  ,2023.68
Department of Health,Guys and St Thomas NHS Foundation Trust,07/05/2020,(81200) Medical Surgical Supplies & Equipment,(id:42367) Clinical Imaging & Med Physics,SQUADRON MEDICAL LTD,id:13001240  , 521.93
Department of Health,Guys and St Thomas NHS Foundation Trust,15/05/2020,(81200) Medical Surgical Supplies & Equipment,(id:42367) Clinical Imaging & Med Physics,SQUADRON MEDICAL LTD,id:13013745  ,2374.84
Department of Health,Guys and St Thomas NHS Foundation Trust,15/05/2020,(81200) Medical Surgical Supplies & Equipment,(id:42367) Clinical Imaging & Med Physics,SQUADRON MEDICAL LTD,id:13018786  , 689.02
Department of Health,Guys and St Thomas NHS Foundation Trust,15/05/2020,(81200) Medical Surgical Supplies & Equipment,(id:42367) Clinical Imaging & Med Physics,SQUADRON MEDICAL LTD,id:13013882  ,1037.14
Department of Health,Guys and St Thomas NHS Foundation Trust,15/05/2020,(81200) Medical Surgical Supplies & Equipment,(id:42367) Clinical Imaging & Med Physics,MEDTRONIC LTD,id:13010689    ,1440.00
Department of Health,Guys and St Thomas NHS Foundation Trust,22/05/2020,(81200) Medical Surgical Supplies & Equipment,(id:42367) Clinical Imaging & Med Physics,WL GORE & ASSOCIATES (UK) LTD,id:13037857   ,5766.00
Department of Health,Guys and St Thomas NHS Foundation Trust,22/05/2020,(81200) Medical Surgical Supplies & Equipment,(id:42367) Clinical Imaging & Med Physics,WL GORE & ASSOCIATES (UK) LTD,id:13037865   ,    -5766.00
Department of Health,Guys and St Thomas NHS Foundation Trust,28/05/2020,(81200) Medical Surgical Supplies & Equipment,(id:42367) Clinical Imaging & Med Physics,SQUADRON MEDICAL LTD,id:13039803  , 243.85
Department of Health,Guys and St Thomas NHS Foundation Trust,28/05/2020,(81200) Medical Surgical Supplies & Equipment,(id:42367) Clinical Imaging & Med Physics,SQUADRON MEDICAL LTD,id:13037097  ,1044.91
Department of Health,Guys and St Thomas NHS Foundation Trust,28/05/2020,(81200) Medical Surgical Supplies & Equipment,(id:42367) Clinical Imaging & Med Physics,BOSTON SCIENTIFIC LTD,id:13008394 ,9600.00
Department of Health,Guys and St Thomas NHS Foundation Trust,07/05/2020,(81200) Medical Surgical Supplies & Equipment,(id:42367) Clinical Imaging & Med Physics,BOSTON SCIENTIFIC LTD,id:13001166 ,2136.00
Department of Health,Guys and St Thomas NHS Foundation Trust,22/05/2020,(81500) X Ray Equipment Purchase,(id:42367) Clinical Imaging & Med Physics,BAYER PLC,id:13039184 ,1680.00
Department of Health,Guys and St Thomas NHS Foundation Trust,01/05/2020,(82000) Provisions & Kitchens,(id:42366) Clinical Imaging & Med Physics,NHS SUPPLY CHAIN (MAIDSTONE),id:12984936,   5.15
Department of Health,Guys and St Thomas NHS Foundation Trust,18/05/2020,(82800) Bedding & Linen,(id:42366) Clinical Imaging & Med Physics,NHS SUPPLY CHAIN (MAIDSTONE),id:13003941 , 559.88
Department of Health,Guys and St Thomas NHS Foundation Trust,01/05/2020,(81200) Medical Surgical Supplies & Equipment,(id:42366) Clinical Imaging & Med Physics,NHS SUPPLY CHAIN (MAIDSTONE),id:12945257    ,3533.71
Department of Health,Guys and St Thomas NHS Foundation Trust,07/05/2020,(81200) Medical Surgical Supplies & Equipment,(id:42366) Clinical Imaging & Med Physics,NHS SUPPLY CHAIN (MAIDSTONE),id:12997837    , 180.00
Department of Health,Guys and St Thomas NHS Foundation Trust,01/05/2020,(83610) IT Costs,(id:42366) Clinical Imaging & Med Physics,OFFICE DEPOT UK LTD,id:12977374  , 590.39
Department of Health,Guys and St Thomas NHS Foundation Trust,01/05/2020,(82700) Uniforms & Clothing,(id:42366) Clinical Imaging & Med Physics,NHS SUPPLY CHAIN (MAIDSTONE),id:12945257  ,  31.68
Department of Health,Guys and St Thomas NHS Foundation Trust,01/05/2020,(81500) X Ray Equipment Purchase,(id:42366) Clinical Imaging & Med Physics,NHS SUPPLY CHAIN (MAIDSTONE),id:12945257  , 310.80
Department of Health,Guys and St Thomas NHS Foundation Trust,01/05/2020,(81700) Lab Equipment Purchase,(id:42366) Clinical Imaging & Med Physics,NHS SUPPLY CHAIN (MAIDSTONE),id:12945257    ,  23.00
Department of Health,Guys and St Thomas NHS Foundation Trust,18/05/2020,(81255) Medical Surgical Supplies & Equipment,(id:42366) Clinical Imaging & Med Physics,NHS SUPPLY CHAIN (MAIDSTONE),id:13003941    ,   6.24
Department of Health,Guys and St Thomas NHS Foundation Trust,15/05/2020,(81200) Medical Surgical Supplies & Equipment,(id:4187419) Clinical Imaging & Med Physics,ADVANCED ACCELERATOR APPLICATIONS (UK & IRELAND) LTD,id:12940106   ,    13908.75
Department of Health,Guys and St Thomas NHS Foundation Trust,15/05/2020,(81200) Medical Surgical Supplies & Equipment,(id:4187419) Clinical Imaging & Med Physics,ADVANCED ACCELERATOR APPLICATIONS (UK & IRELAND) LTD,id:13009859   ,    -7829.24
Department of Health,Guys and St Thomas NHS Foundation Trust,01/05/2020,(83400) Office Equipment,(id:42372) Clinical Imaging & Med Physics,NHS SUPPLY CHAIN (MAIDSTONE),id:12957217,  74.95
Department of Health,Guys and St Thomas NHS Foundation Trust,22/05/2020,(83400) Office Equipment,(id:42372) Clinical Imaging & Med Physics,AQUILANT DISTRIBUTION,id:13030350  , 764.83
Department of Health,Guys and St Thomas NHS Foundation Trust,15/05/2020,(50203) Consultants,(id:42372) Clinical Imaging & Med Physics,KINGS COLLEGE LONDON:03529700,id:12846905    ,    12374.25
Department of Health,Guys and St Thomas NHS Foundation Trust,22/05/2020,(84500) Establishment,(id:42372) Clinical Imaging & Med Physics,CDP  PRINT MANAGEMENT,id:13041994,   3.60
Department of Health,Guys and St Thomas NHS Foundation Trust,22/05/2020,(81400) Medical Surgical Supplies & Equipment,(id:42372) Clinical Imaging & Med Physics,ISOCOUNT UK LTD,id:13040914  ,1800.00
Department of Health,Guys and St Thomas NHS Foundation Trust,22/05/2020,(83410) Office Equipment,(id:42372) Clinical Imaging & Med Physics,RICOH UK LTD,id:13037505 ,  54.09
Department of Health,Guys and St Thomas NHS Foundation Trust,01/05/2020,(82800) Bedding & Linen,(id:42372) Clinical Imaging & Med Physics,NHS SUPPLY CHAIN (MAIDSTONE),id:12984936 ,   7.03
Department of Health,Guys and St Thomas NHS Foundation Trust,01/05/2020,(81700) Lab Equipment Purchase,(id:42372) Clinical Imaging & Med Physics,NHS SUPPLY CHAIN (MAIDSTONE),id:12984936    , 164.30
Department of Health,Guys and St Thomas NHS Foundation Trust,01/05/2020,(81700) Lab Equipment Purchase,(id:42372) Clinical Imaging & Med Physics,NHS SUPPLY CHAIN (MAIDSTONE),id:12957217    ,   4.60
Department of Health,Guys and St Thomas NHS Foundation Trust,18/05/2020,(81200) Medical Surgical Supplies & Equipment,(id:42372) Clinical Imaging & Med Physics,NHS SUPPLY CHAIN (MAIDSTONE),id:12976194    , 368.35
Department of Health,Guys and St Thomas NHS Foundation Trust,22/05/2020,(81500) X Ray Equipment Purchase,(id:42372) Clinical Imaging & Med Physics,LAZERBEAM FIRE AND SECURITY LTD,id:12967917    , 930.00
Department of Health,Guys and St Thomas NHS Foundation Trust,15/05/2020,(50200) Consultants,(id:42372) Clinical Imaging & Med Physics,KINGS COLLEGE LONDON:03529700,id:12846905    ,4045.95
Department of Health,Guys and St Thomas NHS Foundation Trust,28/05/2020,(81400) Medical Surgical Supplies & Equipment,(id:42379) Clinical Imaging & Med Physics,WELCH ALLYN UK LTD,id:13043494    , 620.40
Department of Health,Guys and St Thomas NHS Foundation Trust,01/05/2020,(82600) Uniforms & Clothing,(id:42379) Clinical Imaging & Med Physics,NHS SUPPLY CHAIN (MAIDSTONE),id:12957217  ,  10.73
Department of Health,Guys and St Thomas NHS Foundation Trust,07/05/2020,(81200) Medical Surgical Supplies & Equipment,(id:42379) Clinical Imaging & Med Physics,RS COMPONENTS LTD,id:13015502,1448.77
Department of Health,Guys and St Thomas NHS Foundation Trust,15/05/2020,(81200) Medical Surgical Supplies & Equipment,(id:42379) Clinical Imaging & Med Physics,MASIMO EUROPE LTD,id:13028139,3600.00
Department of Health,Guys and St Thomas NHS Foundation Trust,18/05/2020,(83400) Office Equipment,(id:42376) Clinical Imaging & Med Physics,NHS SUPPLY CHAIN (MAIDSTONE),id:13003941,   4.92
Department of Health,Guys and St Thomas NHS Foundation Trust,28/05/2020,(81200) Medical Surgical Supplies & Equipment,(id:1348419) Clinical Imaging & Med Physics,BOSTON SCIENTIFIC LTD,id:13036979    ,1224.00
Department of Health,Guys and St Thomas NHS Foundation Trust,01/05/2020,(83400) Office Equipment,(id:1348419) Clinical Imaging & Med Physics,NHS SUPPLY CHAIN (MAIDSTONE),id:12945257   , 537.30
Department of Health,Guys and St Thomas NHS Foundation Trust,01/05/2020,(82800) Bedding & Linen,(id:1348419) Clinical Imaging & Med Physics,NHS SUPPLY CHAIN (MAIDSTONE),id:12945257    , 700.15
Department of Health,Guys and St Thomas NHS Foundation Trust,01/05/2020,(83400) Office Equipment,(id:42423) Transplant Renal and Urology,NHS SUPPLY CHAIN (MAIDSTONE),id:12957217  ,  24.79
Department of Health,Guys and St Thomas NHS Foundation Trust,18/05/2020,(81200) Medical Surgical Supplies & Equipment,(id:42419) Transplant Renal and Urology,NHS SUPPLY CHAIN (MAIDSTONE),id:12976194 ,2716.99
Department of Health,Guys and St Thomas NHS Foundation Trust,01/05/2020,(81200) Medical Surgical Supplies & Equipment,(id:42449) Transplant Renal and Urology,NHS SUPPLY CHAIN (MAIDSTONE),id:12984936 ,  63.72
Department of Health,Guys and St Thomas NHS Foundation Trust,28/05/2020,(81400) Medical Surgical Supplies & Equipment,(id:42449) Transplant Renal and Urology,NHS SUPPLY CHAIN ( CAPITAL FUND ONLY),id:13049075  ,    24789.55
Department of Health,Guys and St Thomas NHS Foundation Trust,22/05/2020,(50552) Qualified Nursing Staff,(id:42449) Transplant Renal and Urology,CONTINENTAL NURSE LTD,id:13043931  ,1762.43
Department of Health,Guys and St Thomas NHS Foundation Trust,18/05/2020,(82800) Bedding & Linen,(id:42447) Transplant Renal and Urology,NHS SUPPLY CHAIN (MAIDSTONE),id:13003941   , 116.73
Department of Health,Guys and St Thomas NHS Foundation Trust,22/05/2020,(84500) Establishment,(id:42447) Transplant Renal and Urology,CDP  PRINT MANAGEMENT,id:13040918  ,  24.80
Department of Health,Guys and St Thomas NHS Foundation Trust,18/05/2020,(81200) Medical Surgical Supplies & Equipment,(id:42447) Transplant Renal and Urology,NHS SUPPLY CHAIN (MAIDSTONE),id:13003941 , 859.74
Department of Health,Guys and St Thomas NHS Foundation Trust,15/05/2020,(81200) Medical Surgical Supplies & Equipment,(id:42447) Transplant Renal and Urology,OLYMPUS KEYMED,id:13002894, 684.00
Department of Health,Guys and St Thomas NHS Foundation Trust,01/05/2020,(81100) Dressings,(id:42447) Transplant Renal and Urology,NHS SUPPLY CHAIN (MAIDSTONE),id:12984936    ,   3.46
Department of Health,Guys and St Thomas NHS Foundation Trust,15/05/2020,(83500) Furniture & Fittings,(id:42446) Transplant Renal and Urology,OCURA HEALTHCARE FURNITURE,id:13030908,1901.76
Department of Health,Guys and St Thomas NHS Foundation Trust,01/05/2020,(81225) Medical Surgical Supplies & Equipment,(id:42446) Transplant Renal and Urology,NHS SUPPLY CHAIN (MAIDSTONE),id:12984936 ,   4.25
Department of Health,Guys and St Thomas NHS Foundation Trust,07/05/2020,(81200) Medical Surgical Supplies & Equipment,(id:42446) Transplant Renal and Urology,SQUADRON MEDICAL LTD,id:13001230    ,  94.13
Department of Health,Guys and St Thomas NHS Foundation Trust,07/05/2020,(81200) Medical Surgical Supplies & Equipment,(id:42446) Transplant Renal and Urology,STRYKER UK LTD,id:12983135, 504.00
Department of Health,Guys and St Thomas NHS Foundation Trust,01/05/2020,(81200) Medical Surgical Supplies & Equipment,(id:42446) Transplant Renal and Urology,SQUADRON MEDICAL LTD,id:12986853    , 440.93
Department of Health,Guys and St Thomas NHS Foundation Trust,01/05/2020,(81200) Medical Surgical Supplies & Equipment,(id:42446) Transplant Renal and Urology,BOSTON SCIENTIFIC LTD,id:12825139   ,2922.00
Department of Health,Guys and St Thomas NHS Foundation Trust,07/05/2020,(81400) Medical Surgical Supplies & Equipment,(id:42446) Transplant Renal and Urology,KARL STORZ ENDOSCOPY UK LTD,id:13008654  , 765.13
Department of Health,Guys and St Thomas NHS Foundation Trust,22/05/2020,(81400) Medical Surgical Supplies & Equipment,(id:42446) Transplant Renal and Urology,STERIS SOLUTIONS LTD,id:13039094    ,4163.00
Department of Health,Guys and St Thomas NHS Foundation Trust,18/05/2020,(82800) Bedding & Linen,(id:42443) Transplant Renal and Urology,NHS SUPPLY CHAIN (MAIDSTONE),id:13003941   ,  94.69
Department of Health,Guys and St Thomas NHS Foundation Trust,22/05/2020,(84500) Establishment,(id:42443) Transplant Renal and Urology,CDP  PRINT MANAGEMENT,id:13040918  ,  32.00
Department of Health,Guys and St Thomas NHS Foundation Trust,22/05/2020,(84500) Establishment,(id:42443) Transplant Renal and Urology,CDP  PRINT MANAGEMENT,id:13040917  ,   3.10
Department of Health,Guys and St Thomas NHS Foundation Trust,18/05/2020,(81100) Dressings,(id:42443) Transplant Renal and Urology,NHS SUPPLY CHAIN (MAIDSTONE),id:13003941    , 267.62
Department of Health,Guys and St Thomas NHS Foundation Trust,01/05/2020,(81200) Medical Surgical Supplies & Equipment,(id:42443) Transplant Renal and Urology,NHS SUPPLY CHAIN (MAIDSTONE),id:12945257 ,1172.82
Department of Health,Guys and St Thomas NHS Foundation Trust,01/05/2020,(50552) Qualified Nursing Staff,(id:42443) Transplant Renal and Urology,CONTINENTAL NURSE LTD,id:13006056  ,2050.91
Department of Health,Guys and St Thomas NHS Foundation Trust,07/05/2020,(80010) Drug Costs,(id:42443) Transplant Renal and Urology,NHS SUPPLY CHAIN (MAIDSTONE),id:12997837   ,   2.81
Department of Health,Guys and St Thomas NHS Foundation Trust,01/05/2020,(50522) Unqualified Nursing Staff,(id:42443) Transplant Renal and Urology,MSI GROUP LTD,id:13006172   , 274.90
Department of Health,Guys and St Thomas NHS Foundation Trust,18/05/2020,(81225) Medical Surgical Supplies & Equipment,(id:42443) Transplant Renal and Urology,NHS SUPPLY CHAIN (MAIDSTONE),id:12976194 ,  74.40
Department of Health,Guys and St Thomas NHS Foundation Trust,07/05/2020,(81255) Medical Surgical Supplies & Equipment,(id:42443) Transplant Renal and Urology,NHS SUPPLY CHAIN (MAIDSTONE),id:12997837 ,   4.99
Department of Health,Guys and St Thomas NHS Foundation Trust,01/05/2020,(82700) Uniforms & Clothing,(id:42442) Transplant Renal and Urology,NHS SUPPLY CHAIN (MAIDSTONE),id:12945257    ,  31.68
Department of Health,Guys and St Thomas NHS Foundation Trust,01/05/2020,(82000) Provisions & Kitchens,(id:42442) Transplant Renal and Urology,NHS SUPPLY CHAIN (MAIDSTONE),id:12945257  , 133.66
Department of Health,Guys and St Thomas NHS Foundation Trust,22/05/2020,(84500) Establishment,(id:42442) Transplant Renal and Urology,CDP  PRINT MANAGEMENT,id:13041994  ,  14.40
Department of Health,Guys and St Thomas NHS Foundation Trust,18/05/2020,(83400) Office Equipment,(id:42442) Transplant Renal and Urology,NHS SUPPLY CHAIN (MAIDSTONE),id:13003941  , 173.56
Department of Health,Guys and St Thomas NHS Foundation Trust,15/05/2020,(81200) Medical Surgical Supplies & Equipment,(id:42439) Transplant Renal and Urology,PEAKS AND DALES MEDICAL,id:13020428 ,5101.20
Department of Health,Guys and St Thomas NHS Foundation Trust,28/05/2020,(81200) Medical Surgical Supplies & Equipment,(id:42439) Transplant Renal and Urology,INTUITIVE SURGICAL LTD,id:13040355  ,    29578.80
Department of Health,Guys and St Thomas NHS Foundation Trust,01/05/2020,(81200) Medical Surgical Supplies & Equipment,(id:2653419) Transplant Renal and Urology,SQUADRON MEDICAL LTD,id:12981057  , 237.79
Department of Health,Guys and St Thomas NHS Foundation Trust,28/05/2020,(81100) Dressings,(id:2653419) Transplant Renal and Urology,SQUADRON MEDICAL LTD,id:13037153, 829.44
Department of Health,Guys and St Thomas NHS Foundation Trust,01/05/2020,(81100) Dressings,(id:2653419) Transplant Renal and Urology,SQUADRON MEDICAL LTD,id:12981057, 382.66
Department of Health,Guys and St Thomas NHS Foundation Trust,01/05/2020,(82700) Uniforms & Clothing,(id:42435) Transplant Renal and Urology,NHS SUPPLY CHAIN (MAIDSTONE),id:12945257    ,  31.68
Department of Health,Guys and St Thomas NHS Foundation Trust,07/05/2020,(82000) Provisions & Kitchens,(id:42435) Transplant Renal and Urology,NHS SUPPLY CHAIN (MAIDSTONE),id:12997837  ,   5.15
Department of Health,Guys and St Thomas NHS Foundation Trust,07/05/2020,(82600) Uniforms & Clothing,(id:42435) Transplant Renal and Urology,NHS SUPPLY CHAIN (MAIDSTONE),id:12997837    ,  10.75
Department of Health,Guys and St Thomas NHS Foundation Trust,07/05/2020,(82800) Bedding & Linen,(id:42435) Transplant Renal and Urology,NHS SUPPLY CHAIN (MAIDSTONE),id:12997837   ,  85.44
Department of Health,Guys and St Thomas NHS Foundation Trust,18/05/2020,(82800) Bedding & Linen,(id:42435) Transplant Renal and Urology,NHS SUPPLY CHAIN (MAIDSTONE),id:13003941   , 146.61
Department of Health,Guys and St Thomas NHS Foundation Trust,01/05/2020,(81200) Medical Surgical Supplies & Equipment,(id:42435) Transplant Renal and Urology,NHS SUPPLY CHAIN (MAIDSTONE),id:12957217 , 279.80
Department of Health,Guys and St Thomas NHS Foundation Trust,18/05/2020,(81200) Medical Surgical Supplies & Equipment,(id:42435) Transplant Renal and Urology,NHS SUPPLY CHAIN (MAIDSTONE),id:13003941 , 922.75
Department of Health,Guys and St Thomas NHS Foundation Trust,01/05/2020,(83400) Office Equipment,(id:42435) Transplant Renal and Urology,NHS SUPPLY CHAIN (MAIDSTONE),id:12957217  , 152.32
Department of Health,Guys and St Thomas NHS Foundation Trust,01/05/2020,(81700) Lab Equipment Purchase,(id:42435) Transplant Renal and Urology,NHS SUPPLY CHAIN (MAIDSTONE),id:12957217 ,  56.94
Department of Health,Guys and St Thomas NHS Foundation Trust,01/05/2020,(81200) Medical Surgical Supplies & Equipment,(id:42430) Transplant Renal and Urology,B.BRAUN MEDICAL LTD,id:12995854,6229.92
Department of Health,Guys and St Thomas NHS Foundation Trust,15/05/2020,(81200) Medical Surgical Supplies & Equipment,(id:42430) Transplant Renal and Urology,CAPITAL WATER TREATMENT LTD,id:13025454  ,1103.00
Department of Health,Guys and St Thomas NHS Foundation Trust,01/05/2020,(81200) Medical Surgical Supplies & Equipment,(id:42428) Transplant Renal and Urology,NHS SUPPLY CHAIN (MAIDSTONE),id:12945257 , 288.90
Department of Health,Guys and St Thomas NHS Foundation Trust,01/05/2020,(81200) Medical Surgical Supplies & Equipment,(id:42420) Transplant Renal and Urology,NHS SUPPLY CHAIN (MAIDSTONE),id:12957217 , 656.58
Department of Health,Guys and St Thomas NHS Foundation Trust,15/05/2020,(81200) Medical Surgical Supplies & Equipment,(id:42420) Transplant Renal and Urology,FRESENIUS MEDICAL CARE RENAL SERVICES LT,id:13008937    ,3129.98
Department of Health,Guys and St Thomas NHS Foundation Trust,28/05/2020,(81200) Medical Surgical Supplies & Equipment,(id:42420) Transplant Renal and Urology,SQUADRON MEDICAL LTD,id:13037007    , 635.54
Department of Health,Guys and St Thomas NHS Foundation Trust,18/05/2020,(81200) Medical Surgical Supplies & Equipment,(id:42420) Transplant Renal and Urology,NHS SUPPLY CHAIN (MAIDSTONE),id:12976194 ,2391.06
Department of Health,Guys and St Thomas NHS Foundation Trust,28/05/2020,(50562) Qualified Nursing Staff,(id:42420) Transplant Renal and Urology,PULSE HEALTHCARE LIMITED,id:13053777    , 469.13
Department of Health,Guys and St Thomas NHS Foundation Trust,01/05/2020,(82000) Provisions & Kitchens,(id:42420) Transplant Renal and Urology,NHS SUPPLY CHAIN (MAIDSTONE),id:12957217  , 108.00
Department of Health,Guys and St Thomas NHS Foundation Trust,18/05/2020,(82000) Provisions & Kitchens,(id:42420) Transplant Renal and Urology,NHS SUPPLY CHAIN (MAIDSTONE),id:12976194  ,1000.03
Department of Health,Guys and St Thomas NHS Foundation Trust,18/05/2020,(81700) Lab Equipment Purchase,(id:42420) Transplant Renal and Urology,NHS SUPPLY CHAIN (MAIDSTONE),id:13003941 , 300.00
Department of Health,Guys and St Thomas NHS Foundation Trust,01/05/2020,(81700) Lab Equipment Purchase,(id:42438) Transplant Renal and Urology,NHS SUPPLY CHAIN (MAIDSTONE),id:12945257 ,  81.38
Department of Health,Guys and St Thomas NHS Foundation Trust,28/05/2020,(50562) Qualified Nursing Staff,(id:42438) Transplant Renal and Urology,GLOBE LOCUMS LTD,id:13053511  ,1256.61
Department of Health,Guys and St Thomas NHS Foundation Trust,28/05/2020,(50562) Qualified Nursing Staff,(id:42438) Transplant Renal and Urology,CROMWELL MEDICAL STAFFING LIMITED,id:13052054, 453.63
Department of Health,Guys and St Thomas NHS Foundation Trust,28/05/2020,(83880) Building & Engineering,(id:42432) Transplant Renal and Urology,DIAVERUM UK LTD,id:12946470    ,    43832.25
Department of Health,Guys and St Thomas NHS Foundation Trust,15/05/2020,(81200) Medical Surgical Supplies & Equipment,(id:42422) Transplant Renal and Urology,NXSTAGE MEDICAL UK LIMITED,id:13017334   , 729.72
Department of Health,Guys and St Thomas NHS Foundation Trust,15/05/2020,(81200) Medical Surgical Supplies & Equipment,(id:42422) Transplant Renal and Urology,NXSTAGE MEDICAL UK LIMITED,id:12951902   ,1309.44
Department of Health,Guys and St Thomas NHS Foundation Trust,15/05/2020,(81200) Medical Surgical Supplies & Equipment,(id:42422) Transplant Renal and Urology,NXSTAGE MEDICAL UK LIMITED,id:12925383   ,1357.80
Department of Health,Guys and St Thomas NHS Foundation Trust,15/05/2020,(81200) Medical Surgical Supplies & Equipment,(id:42422) Transplant Renal and Urology,NXSTAGE MEDICAL UK LIMITED,id:12875254   ,1636.80
Department of Health,Guys and St Thomas NHS Foundation Trust,15/05/2020,(81200) Medical Surgical Supplies & Equipment,(id:42422) Transplant Renal and Urology,NXSTAGE MEDICAL UK LIMITED,id:12912951   ,1636.80
Department of Health,Guys and St Thomas NHS Foundation Trust,15/05/2020,(81200) Medical Surgical Supplies & Equipment,(id:42422) Transplant Renal and Urology,NXSTAGE MEDICAL UK LIMITED,id:12813600   , 729.72
Department of Health,Guys and St Thomas NHS Foundation Trust,15/05/2020,(81200) Medical Surgical Supplies & Equipment,(id:42422) Transplant Renal and Urology,NXSTAGE MEDICAL UK LIMITED,id:12782662   ,1309.44
Department of Health,Guys and St Thomas NHS Foundation Trust,01/05/2020,(81200) Medical Surgical Supplies & Equipment,(id:42422) Transplant Renal and Urology,NXSTAGE MEDICAL UK LIMITED,id:12553670   , 770.17
Department of Health,Guys and St Thomas NHS Foundation Trust,01/05/2020,(81200) Medical Surgical Supplies & Equipment,(id:42422) Transplant Renal and Urology,NXSTAGE MEDICAL UK LIMITED,id:12553587   , 965.66
Department of Health,Guys and St Thomas NHS Foundation Trust,01/05/2020,(81200) Medical Surgical Supplies & Equipment,(id:42422) Transplant Renal and Urology,NXSTAGE MEDICAL UK LIMITED,id:12990111   , 893.40
Department of Health,Guys and St Thomas NHS Foundation Trust,01/05/2020,(81200) Medical Surgical Supplies & Equipment,(id:42422) Transplant Renal and Urology,NXSTAGE MEDICAL UK LIMITED,id:13008006   ,1309.44
Department of Health,Guys and St Thomas NHS Foundation Trust,01/05/2020,(81200) Medical Surgical Supplies & Equipment,(id:42422) Transplant Renal and Urology,NXSTAGE MEDICAL UK LIMITED,id:13008049   ,1581.00
Department of Health,Guys and St Thomas NHS Foundation Trust,22/05/2020,(84500) Establishment,(id:42421) Transplant Renal and Urology,CDP  PRINT MANAGEMENT,id:13040917  ,  13.40
Department of Health,Guys and St Thomas NHS Foundation Trust,22/05/2020,(81200) Medical Surgical Supplies & Equipment,(id:42421) Transplant Renal and Urology,BAXTER HEALTHCARE LTD,id:12953868   , 779.38
Department of Health,Guys and St Thomas NHS Foundation Trust,22/05/2020,(81200) Medical Surgical Supplies & Equipment,(id:42421) Transplant Renal and Urology,BAXTER HEALTHCARE LTD,id:12953866   ,1213.67
Department of Health,Guys and St Thomas NHS Foundation Trust,22/05/2020,(81200) Medical Surgical Supplies & Equipment,(id:42421) Transplant Renal and Urology,BAXTER HEALTHCARE LTD,id:12953837   ,1744.51
Department of Health,Guys and St Thomas NHS Foundation Trust,22/05/2020,(83610) IT Costs,(id:4622425) Transplant Renal and Urology,SCC PLC)SPECIALIST COMPUTER CENTRES,id:13034234 ,6288.00
Department of Health,Guys and St Thomas NHS Foundation Trust,18/05/2020,(83400) Office Equipment,(id:42025) Dental Services,NHS SUPPLY CHAIN (MAIDSTONE),id:13003941,  14.10
Department of Health,Guys and St Thomas NHS Foundation Trust,07/05/2020,(81200) Medical Surgical Supplies & Equipment,(id:42037) Dental Services,QED - QUALITY ENDODONTIC DISTRIBUTORS LTD,id:13019993 , 802.92
Department of Health,Guys and St Thomas NHS Foundation Trust,01/05/2020,(83400) Office Equipment,(id:42037) Dental Services,NHS SUPPLY CHAIN (MAIDSTONE),id:12945257,  28.87
Department of Health,Guys and St Thomas NHS Foundation Trust,22/05/2020,(84500) Establishment,(id:42037) Dental Services,CDP  PRINT MANAGEMENT,id:13040918,  20.60
Department of Health,Guys and St Thomas NHS Foundation Trust,18/05/2020,(81100) Dressings,(id:42007) Dental Services,NHS SUPPLY CHAIN (MAIDSTONE),id:13003941  , 284.25
Department of Health,Guys and St Thomas NHS Foundation Trust,01/05/2020,(81200) Medical Surgical Supplies & Equipment,(id:42007) Dental Services,HENRY SCHEIN,id:12988797, 691.20
Department of Health,Guys and St Thomas NHS Foundation Trust,22/05/2020,(81200) Medical Surgical Supplies & Equipment,(id:42007) Dental Services,ZETHON LIMITED (ROSS ELECTRO MEDICAL REM LTD),id:13036563  , 912.60
Department of Health,Guys and St Thomas NHS Foundation Trust,28/05/2020,(81200) Medical Surgical Supplies & Equipment,(id:42007) Dental Services,HENRY SCHEIN,id:13020763, 895.01
Department of Health,Guys and St Thomas NHS Foundation Trust,01/05/2020,(83400) Office Equipment,(id:42007) Dental Services,BUSINESS DICTATION LTD,id:13002474 ,1070.39
Department of Health,Guys and St Thomas NHS Foundation Trust,18/05/2020,(81200) Medical Surgical Supplies & Equipment,(id:42015) Dental Services,NHS SUPPLY CHAIN (MAIDSTONE),id:13003941    , 461.54
Department of Health,Guys and St Thomas NHS Foundation Trust,18/05/2020,(82800) Bedding & Linen,(id:42027) Dental Services,NHS SUPPLY CHAIN (MAIDSTONE),id:13003941 ,  80.35
Department of Health,Guys and St Thomas NHS Foundation Trust,01/05/2020,(50200) Consultants,(id:42018) Dental Services,KINGS COLLEGE LONDON:03529700,id:12929692    , 564.46
Department of Health,Guys and St Thomas NHS Foundation Trust,01/05/2020,(50200) Consultants,(id:42018) Dental Services,KINGS COLLEGE LONDON:03529700,id:12913653    , 564.46
Department of Health,Guys and St Thomas NHS Foundation Trust,07/05/2020,(81200) Medical Surgical Supplies & Equipment,(id:42016) Dental Services,DENTSPLY IH LTD,id:12762867  , 735.76
Department of Health,Guys and St Thomas NHS Foundation Trust,07/05/2020,(81200) Medical Surgical Supplies & Equipment,(id:42016) Dental Services,DENTSPLY IH LTD,id:12979360  ,1023.31
Department of Health,Guys and St Thomas NHS Foundation Trust,07/05/2020,(81200) Medical Surgical Supplies & Equipment,(id:2884419) Dental Services,TRI-TECH ENGINEERING T/A TRI-TECH 3D,id:12988174    ,2032.80
Department of Health,Guys and St Thomas NHS Foundation Trust,01/05/2020,(50200) Consultants,(id:42022) Dental Services,KINGS COLLEGE LONDON:03529700,id:12929692    ,2823.60
Department of Health,Guys and St Thomas NHS Foundation Trust,01/05/2020,(50542) Unqualified Nursing Staff,(id:1885419) Dental Services,HAYS HEALTHCARE LTD,id:13001026   , 777.75
Department of Health,Guys and St Thomas NHS Foundation Trust,22/05/2020,(84500) Establishment,(id:42014) Dental Services,CDP  PRINT MANAGEMENT,id:13040918,   6.20
Department of Health,Guys and St Thomas NHS Foundation Trust,01/05/2020,(50203) Consultants,(id:42014) Dental Services,KINGS COLLEGE LONDON:03529700,id:12929692    ,6332.55
Department of Health,Guys and St Thomas NHS Foundation Trust,18/05/2020,(81100) Dressings,(id:42014) Dental Services,NHS SUPPLY CHAIN (MAIDSTONE),id:13003941  ,   1.62
Department of Health,Guys and St Thomas NHS Foundation Trust,22/05/2020,(81200) Medical Surgical Supplies & Equipment,(id:42014) Dental Services,SQUADRON MEDICAL LTD,id:13024630  , 557.28
Department of Health,Guys and St Thomas NHS Foundation Trust,01/05/2020,(83400) Office Equipment,(id:42014) Dental Services,NHS SUPPLY CHAIN (MAIDSTONE),id:12945257, 121.84
Department of Health,Guys and St Thomas NHS Foundation Trust,01/05/2020,(81200) Medical Surgical Supplies & Equipment,(id:42040) Dental Services,NHS SUPPLY CHAIN (MAIDSTONE),id:12984936    ,  70.80
Department of Health,Guys and St Thomas NHS Foundation Trust,07/05/2020,(83400) Office Equipment,(id:1634429) Dental Services,NHS SUPPLY CHAIN (MAIDSTONE),id:12997837   ,  50.22
Department of Health,Guys and St Thomas NHS Foundation Trust,18/05/2020,(83400) Office Equipment,(id:1634429) Dental Services,NHS SUPPLY CHAIN (MAIDSTONE),id:13003941   , 341.51
Department of Health,Guys and St Thomas NHS Foundation Trust,07/05/2020,(81200) Medical Surgical Supplies & Equipment,(id:1634429) Dental Services,HENRY SCHEIN,id:13003922   , 538.62
Department of Health,Guys and St Thomas NHS Foundation Trust,28/05/2020,(81200) Medical Surgical Supplies & Equipment,(id:1650420) Dental Services,DAVIS SCHOTTLANDER & DAVIS LTD,id:13053902, 750.84
Department of Health,Guys and St Thomas NHS Foundation Trust,01/05/2020,(82600) Uniforms & Clothing,(id:1650420) Dental Services,NHS SUPPLY CHAIN (MAIDSTONE),id:12945257,  20.52
Department of Health,Guys and St Thomas NHS Foundation Trust,15/05/2020,(83640) IT Costs,(id:334405) Specialist Ambulatory Services,MEDSCINET UK LTD,id:13023654    , 600.00
Department of Health,Guys and St Thomas NHS Foundation Trust,15/05/2020,(83640) IT Costs,(id:334405) Specialist Ambulatory Services,MEDSCINET UK LTD,id:13023574    , 600.00
Department of Health,Guys and St Thomas NHS Foundation Trust,18/05/2020,(81200) Medical Surgical Supplies & Equipment,(id:42193) Specialist Ambulatory Services,NHS SUPPLY CHAIN (MAIDSTONE),id:12976194    , 257.93
Department of Health,Guys and St Thomas NHS Foundation Trust,18/05/2020,(81700) Lab Equipment Purchase,(id:42193) Specialist Ambulatory Services,NHS SUPPLY CHAIN (MAIDSTONE),id:12976194    , 231.30
Department of Health,Guys and St Thomas NHS Foundation Trust,15/05/2020,(81000) Surgical Appliances,(id:42193) Specialist Ambulatory Services,TALAR MADE ORTHOTICS LTD,id:13020839 ,  57.70
Department of Health,Guys and St Thomas NHS Foundation Trust,01/05/2020,(81200) Medical Surgical Supplies & Equipment,(id:4586420) Specialist Ambulatory Services,NHS SUPPLY CHAIN (MAIDSTONE),id:12945257  ,  16.56
Department of Health,Guys and St Thomas NHS Foundation Trust,18/05/2020,(83400) Office Equipment,(id:4586419) Specialist Ambulatory Services,NHS SUPPLY CHAIN (MAIDSTONE),id:12976194   , 396.66
Department of Health,Guys and St Thomas NHS Foundation Trust,01/05/2020,(81200) Medical Surgical Supplies & Equipment,(id:42684) Specialist Ambulatory Services,NHS SUPPLY CHAIN (MAIDSTONE),id:12984936    ,1403.32
Department of Health,Guys and St Thomas NHS Foundation Trust,07/05/2020,(81200) Medical Surgical Supplies & Equipment,(id:42684) Specialist Ambulatory Services,NHS SUPPLY CHAIN (MAIDSTONE),id:12997837    , 158.40
Department of Health,Guys and St Thomas NHS Foundation Trust,15/05/2020,(84200) Rental under Operating Lease,(id:42682) Specialist Ambulatory Services,MARSH LTD,id:13014517  ,1345.23
Department of Health,Guys and St Thomas NHS Foundation Trust,01/05/2020,(82000) Provisions & Kitchens,(id:42358) Specialist Ambulatory Services,NHS SUPPLY CHAIN (MAIDSTONE),id:12984936,  16.51
Department of Health,Guys and St Thomas NHS Foundation Trust,22/05/2020,(89270) Establishment,(id:42358) Specialist Ambulatory Services,QUEEN MARY UNIVERSITY OF LONDON,id:12503725,3418.79
Department of Health,Guys and St Thomas NHS Foundation Trust,07/05/2020,(84656) Establishment,(id:42358) Specialist Ambulatory Services,DICT8 LIMITED,id:13017014   ,3587.76
Department of Health,Guys and St Thomas NHS Foundation Trust,22/05/2020,(89595) Non-Healthcare from Foundation Trusts,(id:42354) Specialist Ambulatory Services,CAMBRIDGE UNIVERSITY HOSPITALS NHS FOUNDATION TRUST,id:12962494 , 482.50
Department of Health,Guys and St Thomas NHS Foundation Trust,22/05/2020,(89595) Non-Healthcare from Foundation Trusts,(id:42354) Specialist Ambulatory Services,SHEFFIELD CHILDREN'S NHS FOUNDATION TRUST,id:12932937 , 900.00
Department of Health,Guys and St Thomas NHS Foundation Trust,15/05/2020,(50200) Consultants,(id:42099) Specialist Ambulatory Services,KINGS COLLEGE LONDON:03529700,id:12920101    ,5447.51
Department of Health,Guys and St Thomas NHS Foundation Trust,15/05/2020,(50203) Consultants,(id:42099) Specialist Ambulatory Services,KINGS COLLEGE LONDON:03529700,id:12920101    ,8353.45
Department of Health,Guys and St Thomas NHS Foundation Trust,18/05/2020,(81200) Medical Surgical Supplies & Equipment,(id:42094) Specialist Ambulatory Services,NHS SUPPLY CHAIN (MAIDSTONE),id:12976194    ,  24.84
Department of Health,Guys and St Thomas NHS Foundation Trust,01/05/2020,(81200) Medical Surgical Supplies & Equipment,(id:42091) Specialist Ambulatory Services,NHS SUPPLY CHAIN (MAIDSTONE),id:12945257    , 862.92
Department of Health,Guys and St Thomas NHS Foundation Trust,15/05/2020,(80010) Drug Costs,(id:42088) Specialist Ambulatory Services,CRAWFORD HEALTHCARE LIMITED (T/A CRAWFORD PHARMACEUTICALS),id:11441121 , 205.74
Department of Health,Guys and St Thomas NHS Foundation Trust,15/05/2020,(80010) Drug Costs,(id:42088) Specialist Ambulatory Services,CRAWFORD HEALTHCARE LIMITED (T/A CRAWFORD PHARMACEUTICALS),id:11988351 ,  17.46
Department of Health,Guys and St Thomas NHS Foundation Trust,07/05/2020,(81100) Dressings,(id:42097) Specialist Ambulatory Services,NHS SUPPLY CHAIN (MAIDSTONE),id:12997837  ,  73.05
Department of Health,Guys and St Thomas NHS Foundation Trust,22/05/2020,(84500) Establishment,(id:42097) Specialist Ambulatory Services,CDP  PRINT MANAGEMENT,id:13040918,   9.80
Department of Health,Guys and St Thomas NHS Foundation Trust,01/05/2020,(81200) Medical Surgical Supplies & Equipment,(id:42097) Specialist Ambulatory Services,NHS SUPPLY CHAIN (MAIDSTONE),id:12984936    ,  57.80
Department of Health,Guys and St Thomas NHS Foundation Trust,18/05/2020,(81200) Medical Surgical Supplies & Equipment,(id:42097) Specialist Ambulatory Services,NHS SUPPLY CHAIN (MAIDSTONE),id:13003941    , 177.60
Department of Health,Guys and St Thomas NHS Foundation Trust,22/05/2020,(81200) Medical Surgical Supplies & Equipment,(id:42097) Specialist Ambulatory Services,SCHUCO INTERNATIONAL LTD,id:13032842   , 612.00
Department of Health,Guys and St Thomas NHS Foundation Trust,01/05/2020,(81700) Lab Equipment Purchase,(id:42097) Specialist Ambulatory Services,NHS SUPPLY CHAIN (MAIDSTONE),id:12945257    ,  46.80
Department of Health,Guys and St Thomas NHS Foundation Trust,18/05/2020,(82800) Bedding & Linen,(id:42079) Specialist Ambulatory Services,NHS SUPPLY CHAIN (MAIDSTONE),id:12976194 ,  39.59
Department of Health,Guys and St Thomas NHS Foundation Trust,01/05/2020,(80010) Drug Costs,(id:42079) Specialist Ambulatory Services,THERAKOS (UK) LIMITED,id:13006709   ,-748.80
Department of Health,Guys and St Thomas NHS Foundation Trust,28/05/2020,(80010) Drug Costs,(id:42079) Specialist Ambulatory Services,THERAKOS (UK) LIMITED,id:13046554   ,    11232.00
Department of Health,Guys and St Thomas NHS Foundation Trust,01/05/2020,(81200) Medical Surgical Supplies & Equipment,(id:42079) Specialist Ambulatory Services,NHS SUPPLY CHAIN (MAIDSTONE),id:12945257    , 157.72
Department of Health,Guys and St Thomas NHS Foundation Trust,28/05/2020,(84600) Establishment,(id:42066) Specialist Ambulatory Services,ECHOSENS SA,id:12795088,1380.00
Department of Health,Guys and St Thomas NHS Foundation Trust,01/05/2020,(81200) Medical Surgical Supplies & Equipment,(id:391417) Specialist Ambulatory Services,NHS SUPPLY CHAIN (MAIDSTONE),id:12957217   ,   9.85
Department of Health,Guys and St Thomas NHS Foundation Trust,18/05/2020,(81700) Lab Equipment Purchase,(id:391417) Specialist Ambulatory Services,NHS SUPPLY CHAIN (MAIDSTONE),id:13003941   ,   4.30
Department of Health,Guys and St Thomas NHS Foundation Trust,01/05/2020,(82600) Uniforms & Clothing,(id:391417) Specialist Ambulatory Services,NHS SUPPLY CHAIN (MAIDSTONE),id:12945257 ,  61.20
Department of Health,Guys and St Thomas NHS Foundation Trust,18/05/2020,(81700) Lab Equipment Purchase,(id:42064) Specialist Ambulatory Services,NHS SUPPLY CHAIN (MAIDSTONE),id:13003941    ,  87.96
Department of Health,Guys and St Thomas NHS Foundation Trust,22/05/2020,(84500) Establishment,(id:42061) Specialist Ambulatory Services,CDP  PRINT MANAGEMENT,id:13040917,  10.80
Department of Health,Guys and St Thomas NHS Foundation Trust,18/05/2020,(82600) Uniforms & Clothing,(id:42055) Specialist Ambulatory Services,NHS SUPPLY CHAIN (MAIDSTONE),id:12976194  ,  78.12
Department of Health,Guys and St Thomas NHS Foundation Trust,01/05/2020,(81225) Medical Surgical Supplies & Equipment,(id:42050) Specialist Ambulatory Services,NHS SUPPLY CHAIN (MAIDSTONE),id:12945257    ,  34.65
Department of Health,Guys and St Thomas NHS Foundation Trust,18/05/2020,(81200) Medical Surgical Supplies & Equipment,(id:42050) Specialist Ambulatory Services,NHS SUPPLY CHAIN (MAIDSTONE),id:13003941    ,1014.69
Department of Health,Guys and St Thomas NHS Foundation Trust,07/05/2020,(89270) Establishment,(id:42050) Specialist Ambulatory Services,QUDINI LTD,id:13014515 , 606.30
Department of Health,Guys and St Thomas NHS Foundation Trust,18/05/2020,(81700) Lab Equipment Purchase,(id:42050) Specialist Ambulatory Services,NHS SUPPLY CHAIN (MAIDSTONE),id:13003941    , 128.23
Department of Health,Guys and St Thomas NHS Foundation Trust,01/05/2020,(82000) Provisions & Kitchens,(id:42050) Specialist Ambulatory Services,NHS SUPPLY CHAIN (MAIDSTONE),id:12984936,  27.68
Department of Health,Guys and St Thomas NHS Foundation Trust,13/05/2020,(81900) Lab Equipment Purchase,(id:111406) Pathology SDU,VIAPATH ANALYTICS LLP,id:13027986  ,  2117342.00
Department of Health,Guys and St Thomas NHS Foundation Trust,01/05/2020,(81900) Lab Equipment Purchase,(id:111406) Pathology SDU,VIAPATH ANALYTICS LLP,id:12894538  ,   200502.99
Department of Health,Guys and St Thomas NHS Foundation Trust,07/05/2020,(81900) Lab Equipment Purchase,(id:111406) Pathology SDU,VIAPATH ANALYTICS LLP,id:12956456  ,    13825.44
Department of Health,Guys and St Thomas NHS Foundation Trust,28/05/2020,(81900) Lab Equipment Purchase,(id:111406) Pathology SDU,VIAPATH SERVICES LLP,id:12843099   ,   202763.26
Department of Health,Guys and St Thomas NHS Foundation Trust,28/05/2020,(89600) Non-Healthcare from other NHS bodies,(id:42134) Pathology SDU,NHS BLOOD AND TRANSPLANT,id:13049017 ,1694.15
Department of Health,Guys and St Thomas NHS Foundation Trust,25/05/2020,(53662) Pharmacists,(id:42165) Pharmacy,PRICEWATERHOUSECOOPERS LLP,id:13047754    ,1213.74
Department of Health,Guys and St Thomas NHS Foundation Trust,01/05/2020,(81255) Medical Surgical Supplies & Equipment,(id:42169) Pharmacy,NHS SUPPLY CHAIN (MAIDSTONE),id:12945257 , 145.37
Department of Health,Guys and St Thomas NHS Foundation Trust,18/05/2020,(81200) Medical Surgical Supplies & Equipment,(id:581409) Pharmacy,NHS SUPPLY CHAIN (MAIDSTONE),id:13003941, 791.62
Department of Health,Guys and St Thomas NHS Foundation Trust,22/05/2020,(81200) Medical Surgical Supplies & Equipment,(id:581409) Pharmacy,AMERCARE LTD,id:13037895 ,1118.40
Department of Health,Guys and St Thomas NHS Foundation Trust,22/05/2020,(81200) Medical Surgical Supplies & Equipment,(id:581409) Pharmacy,ADDED PHARMA LTD,id:13036355  ,1574.40
Department of Health,Guys and St Thomas NHS Foundation Trust,22/05/2020,(81200) Medical Surgical Supplies & Equipment,(id:581409) Pharmacy,LAZERBEAM FIRE AND SECURITY LTD,id:13043966  ,2450.00
Department of Health,Guys and St Thomas NHS Foundation Trust,18/05/2020,(83400) Office Equipment,(id:581409) Pharmacy,NHS SUPPLY CHAIN (MAIDSTONE),id:12976194 ,  22.13
Department of Health,Guys and St Thomas NHS Foundation Trust,22/05/2020,(83400) Office Equipment,(id:581409) Pharmacy,LAZERBEAM FIRE AND SECURITY LTD,id:13030195   ,2490.00
Department of Health,Guys and St Thomas NHS Foundation Trust,22/05/2020,(82000) Provisions & Kitchens,(id:581409) Pharmacy,FRESENIUS KABI LTD,id:12997641 ,1803.84
Department of Health,Guys and St Thomas NHS Foundation Trust,22/05/2020,(82000) Provisions & Kitchens,(id:581409) Pharmacy,FRESENIUS KABI LTD,id:13034434 ,3038.40
Department of Health,Guys and St Thomas NHS Foundation Trust,01/05/2020,(84500) Establishment,(id:42159) Pharmacy,XMA LTD,id:13006721 , 697.14
Department of Health,Guys and St Thomas NHS Foundation Trust,22/05/2020,(84500) Establishment,(id:42159) Pharmacy,CDP  PRINT MANAGEMENT,id:13041994  ,  32.40
Department of Health,Guys and St Thomas NHS Foundation Trust,01/05/2020,(81200) Medical Surgical Supplies & Equipment,(id:42159) Pharmacy,NHS SUPPLY CHAIN (MAIDSTONE),id:12984936 , 224.10
Department of Health,Guys and St Thomas NHS Foundation Trust,01/05/2020,(81400) Medical Surgical Supplies & Equipment,(id:42159) Pharmacy,PMT (GB) LTD,id:12991225  , 773.50
Department of Health,Guys and St Thomas NHS Foundation Trust,18/05/2020,(82800) Bedding & Linen,(id:42159) Pharmacy,NHS SUPPLY CHAIN (MAIDSTONE),id:13003941   , 211.85
Department of Health,Guys and St Thomas NHS Foundation Trust,01/05/2020,(83400) Office Equipment,(id:42159) Pharmacy,NHS SUPPLY CHAIN (MAIDSTONE),id:12945257  ,  81.68
Department of Health,Guys and St Thomas NHS Foundation Trust,01/05/2020,(81275) Medical Surgical Supplies & Equipment,(id:42159) Pharmacy,LGC LIMITED,id:13003339   , 907.20
Department of Health,Guys and St Thomas NHS Foundation Trust,22/05/2020,(84500) Establishment,(id:42167) Pharmacy,CDP  PRINT MANAGEMENT,id:13041994  ,  31.00
Department of Health,Guys and St Thomas NHS Foundation Trust,22/05/2020,(83410) Office Equipment,(id:478416) Medical Specialties,RICOH UK LTD,id:13037336 ,  67.73
Department of Health,Guys and St Thomas NHS Foundation Trust,01/05/2020,(83400) Office Equipment,(id:42217) Medical Specialties,NHS SUPPLY CHAIN (MAIDSTONE),id:12945257 ,  42.30
Department of Health,Guys and St Thomas NHS Foundation Trust,01/05/2020,(83400) Office Equipment,(id:42225) Medical Specialties,NHS SUPPLY CHAIN (MAIDSTONE),id:12945257 ,  14.04
Department of Health,Guys and St Thomas NHS Foundation Trust,25/05/2020,(51272) Dieticians,(id:42251) Medical Specialties,PRICEWATERHOUSECOOPERS LLP,id:13047794    , 839.97
Department of Health,Guys and St Thomas NHS Foundation Trust,01/05/2020,(82000) Provisions & Kitchens,(id:42250) Medical Specialties,AAH PHARMACEUTICALS LTD,id:12996142 , 648.48
Department of Health,Guys and St Thomas NHS Foundation Trust,01/05/2020,(81400) Medical Surgical Supplies & Equipment,(id:42224) Medical Specialties,TOPCON (GREAT BRITAIN) LTD,id:12991201  , 660.00
Department of Health,Guys and St Thomas NHS Foundation Trust,01/05/2020,(81400) Medical Surgical Supplies & Equipment,(id:42224) Medical Specialties,TOPCON (GREAT BRITAIN) LTD,id:12991194  , 660.00
Department of Health,Guys and St Thomas NHS Foundation Trust,01/05/2020,(81400) Medical Surgical Supplies & Equipment,(id:42224) Medical Specialties,TOPCON (GREAT BRITAIN) LTD,id:12991199  , 660.00
Department of Health,Guys and St Thomas NHS Foundation Trust,15/05/2020,(50200) Consultants,(id:42223) Medical Specialties,KINGS COLLEGE LONDON:03529700,id:12846996,8037.41
Department of Health,Guys and St Thomas NHS Foundation Trust,01/05/2020,(81200) Medical Surgical Supplies & Equipment,(id:42223) Medical Specialties,NHS SUPPLY CHAIN (MAIDSTONE),id:12984936,  60.30
Department of Health,Guys and St Thomas NHS Foundation Trust,22/05/2020,(81200) Medical Surgical Supplies & Equipment,(id:42223) Medical Specialties,BLINK MEDICAL LTD,id:13023254 ,4929.60
Department of Health,Guys and St Thomas NHS Foundation Trust,22/05/2020,(83640) IT Costs,(id:42223) Medical Specialties,AB EHR DIGITAL LTD,id:13025228    ,2468.00
Department of Health,Guys and St Thomas NHS Foundation Trust,18/05/2020,(83400) Office Equipment,(id:42221) Medical Specialties,NHS SUPPLY CHAIN (MAIDSTONE),id:12976194 ,  34.74
Department of Health,Guys and St Thomas NHS Foundation Trust,28/05/2020,(81200) Medical Surgical Supplies & Equipment,(id:42221) Medical Specialties,ALCON EYE CARE UK LIMITED,id:13048276   ,1440.00
Department of Health,Guys and St Thomas NHS Foundation Trust,13/05/2020,(81300) Medical Surgical Supplies & Equipment,(id:42213) Medical Specialties,GLOOKO AB,id:13026760    ,5550.00
Department of Health,Guys and St Thomas NHS Foundation Trust,01/05/2020,(81000) Surgical Appliances,(id:42213) Medical Specialties,TALAR MADE ORTHOTICS LTD,id:13006795  , 570.00
Department of Health,Guys and St Thomas NHS Foundation Trust,28/05/2020,(50200) Consultants,(id:42213) Medical Specialties,NHS LAMBETH CCG,id:12503703    ,4355.87
Department of Health,Guys and St Thomas NHS Foundation Trust,28/05/2020,(83500) Furniture & Fittings,(id:42208) Medical Specialties,TECHNIBLINDS LTD,id:13032680    , 500.40
Department of Health,Guys and St Thomas NHS Foundation Trust,07/05/2020,(81200) Medical Surgical Supplies & Equipment,(id:42208) Medical Specialties,MEDTRONIC LTD,id:12960493, 567.00
Department of Health,Guys and St Thomas NHS Foundation Trust,15/05/2020,(50200) Consultants,(id:42208) Medical Specialties,KINGS COLLEGE LONDON:03529700,id:12782618, 336.51
Department of Health,Guys and St Thomas NHS Foundation Trust,01/05/2020,(82600) Uniforms & Clothing,(id:42208) Medical Specialties,NHS SUPPLY CHAIN (MAIDSTONE),id:12957217   ,  32.22
Department of Health,Guys and St Thomas NHS Foundation Trust,01/05/2020,(81200) Medical Surgical Supplies & Equipment,(id:42204) Medical Specialties,NHS SUPPLY CHAIN (MAIDSTONE),id:12984936, 100.75
Department of Health,Guys and St Thomas NHS Foundation Trust,07/05/2020,(50204) Consultants,(id:302405) Medical Specialties,SOUTH LONDON AND MAUDSLEY NHS FOUNDATION TRUST,id:13005859  , 697.75
Department of Health,Guys and St Thomas NHS Foundation Trust,18/05/2020,(83400) Office Equipment,(id:42205) Medical Specialties,NHS SUPPLY CHAIN (MAIDSTONE),id:13003941 ,  10.09
Department of Health,Guys and St Thomas NHS Foundation Trust,15/05/2020,(50200) Consultants,(id:41938) Medical Specialties,KINGS COLLEGE LONDON:03529700,id:12846998,1318.12
Department of Health,Guys and St Thomas NHS Foundation Trust,28/05/2020,(89640) Non-Healthcare from NHS Trusts,(id:3235419) Medical Specialties,DARTFORD AND GRAVESHAM NHS TRUST,id:12589482 ,2013.03
Department of Health,Guys and St Thomas NHS Foundation Trust,22/05/2020,(84500) Establishment,(id:42190) Medical Specialties,CDP  PRINT MANAGEMENT,id:13041994 , 201.50
Department of Health,Guys and St Thomas NHS Foundation Trust,18/05/2020,(83400) Office Equipment,(id:41937) Medical Specialties,NHS SUPPLY CHAIN (MAIDSTONE),id:13003941 ,  24.98
Department of Health,Guys and St Thomas NHS Foundation Trust,28/05/2020,(81200) Medical Surgical Supplies & Equipment,(id:41937) Medical Specialties,BOSTON SCIENTIFIC LTD,id:13026354  ,   -12600.00
Department of Health,Guys and St Thomas NHS Foundation Trust,28/05/2020,(81200) Medical Surgical Supplies & Equipment,(id:41937) Medical Specialties,BOSTON SCIENTIFIC LTD,id:13026377  ,   -12600.00
Department of Health,Guys and St Thomas NHS Foundation Trust,01/05/2020,(82600) Uniforms & Clothing,(id:41937) Medical Specialties,NHS SUPPLY CHAIN (MAIDSTONE),id:12945257   ,  76.26
Department of Health,Guys and St Thomas NHS Foundation Trust,15/05/2020,(81200) Medical Surgical Supplies & Equipment,(id:4621419) TAP,KAPITEX HEALTHCARE LTD,id:13007454, 658.19
Department of Health,Guys and St Thomas NHS Foundation Trust,22/05/2020,(81200) Medical Surgical Supplies & Equipment,(id:4621419) TAP,SQUADRON MEDICAL LTD,id:12955497  ,2270.34
Department of Health,Guys and St Thomas NHS Foundation Trust,07/05/2020,(81200) Medical Surgical Supplies & Equipment,(id:4621419) TAP,SQUADRON MEDICAL LTD,id:12981147  , 414.24
Department of Health,Guys and St Thomas NHS Foundation Trust,22/05/2020,(81200) Medical Surgical Supplies & Equipment,(id:4621419) TAP,KAPITEX HEALTHCARE LTD,id:12976679,3487.88
Department of Health,Guys and St Thomas NHS Foundation Trust,22/05/2020,(81200) Medical Surgical Supplies & Equipment,(id:4621419) TAP,SQUADRON MEDICAL LTD,id:13007313  , 535.39
Department of Health,Guys and St Thomas NHS Foundation Trust,22/05/2020,(81200) Medical Surgical Supplies & Equipment,(id:4621419) TAP,EDWARDS LIFESCIENCES LTD,id:12962126   ,2342.30
Department of Health,Guys and St Thomas NHS Foundation Trust,22/05/2020,(81200) Medical Surgical Supplies & Equipment,(id:4621419) TAP,SQUADRON MEDICAL LTD,id:13026592  , 803.09
Department of Health,Guys and St Thomas NHS Foundation Trust,01/05/2020,(81200) Medical Surgical Supplies & Equipment,(id:4621419) TAP,INTERSURGICAL LTD,id:12991150,9360.00
Department of Health,Guys and St Thomas NHS Foundation Trust,01/05/2020,(81100) Dressings,(id:4621419) TAP,NHS SUPPLY CHAIN (MAIDSTONE),id:12957217  , 422.56
Department of Health,Guys and St Thomas NHS Foundation Trust,07/05/2020,(81100) Dressings,(id:4621419) TAP,TELEFLEX MEDICAL,id:12986805    , 639.00
Department of Health,Guys and St Thomas NHS Foundation Trust,22/05/2020,(81100) Dressings,(id:4621419) TAP,KCI MEDICAL LTD,id:12982124, 962.40
Department of Health,Guys and St Thomas NHS Foundation Trust,07/05/2020,(82800) Bedding & Linen,(id:4621419) TAP,NHS SUPPLY CHAIN (MAIDSTONE),id:12997837 ,  61.44
Department of Health,Guys and St Thomas NHS Foundation Trust,07/05/2020,(82600) Uniforms & Clothing,(id:4621419) TAP,NHS SUPPLY CHAIN (MAIDSTONE),id:12997837  ,  15.12
Department of Health,Guys and St Thomas NHS Foundation Trust,01/05/2020,(83400) Office Equipment,(id:850419) TAP,NHS SUPPLY CHAIN (MAIDSTONE),id:12945257 , 100.58
Department of Health,Guys and St Thomas NHS Foundation Trust,18/05/2020,(83400) Office Equipment,(id:850419) TAP,NHS SUPPLY CHAIN (MAIDSTONE),id:12976194 ,   8.17
Department of Health,Guys and St Thomas NHS Foundation Trust,07/05/2020,(83400) Office Equipment,(id:850419) TAP,NHS SUPPLY CHAIN (MAIDSTONE),id:12997837 ,  90.19
Department of Health,Guys and St Thomas NHS Foundation Trust,07/05/2020,(82600) Uniforms & Clothing,(id:850419) TAP,NHS SUPPLY CHAIN (MAIDSTONE),id:12997837   ,  39.34
Department of Health,Guys and St Thomas NHS Foundation Trust,18/05/2020,(82600) Uniforms & Clothing,(id:850419) TAP,NHS SUPPLY CHAIN (MAIDSTONE),id:13003941   ,  24.87
Department of Health,Guys and St Thomas NHS Foundation Trust,07/05/2020,(81400) Medical Surgical Supplies & Equipment,(id:41900) TAP,NHS SUPPLY CHAIN ( CAPITAL FUND ONLY),id:13012315  ,1867.46
Department of Health,Guys and St Thomas NHS Foundation Trust,18/05/2020,(82600) Uniforms & Clothing,(id:41897) TAP,NHS SUPPLY CHAIN (MAIDSTONE),id:13003941    ,  32.45
Department of Health,Guys and St Thomas NHS Foundation Trust,18/05/2020,(83400) Office Equipment,(id:41897) TAP,NHS SUPPLY CHAIN (MAIDSTONE),id:13003941  , 716.83
Department of Health,Guys and St Thomas NHS Foundation Trust,18/05/2020,(82800) Bedding & Linen,(id:41897) TAP,NHS SUPPLY CHAIN (MAIDSTONE),id:12976194   ,  84.24
Department of Health,Guys and St Thomas NHS Foundation Trust,01/05/2020,(81200) Medical Surgical Supplies & Equipment,(id:41897) TAP,NHS SUPPLY CHAIN (MAIDSTONE),id:12957217 , 853.40
Department of Health,Guys and St Thomas NHS Foundation Trust,18/05/2020,(81200) Medical Surgical Supplies & Equipment,(id:41897) TAP,NHS SUPPLY CHAIN (MAIDSTONE),id:13003941 ,2050.29
Department of Health,Guys and St Thomas NHS Foundation Trust,22/05/2020,(81200) Medical Surgical Supplies & Equipment,(id:41897) TAP,SQUADRON MEDICAL LTD,id:13024623    , 528.00
Department of Health,Guys and St Thomas NHS Foundation Trust,01/05/2020,(81100) Dressings,(id:41897) TAP,NHS SUPPLY CHAIN (MAIDSTONE),id:12945257    , 375.67
Department of Health,Guys and St Thomas NHS Foundation Trust,28/05/2020,(81100) Dressings,(id:41897) TAP,ELIS UK LIMITED,id:13027355  , 565.66
Department of Health,Guys and St Thomas NHS Foundation Trust,15/05/2020,(81400) Medical Surgical Supplies & Equipment,(id:41897) TAP,MELYD SURGICAL LTD,id:12943536 ,    12870.00
Department of Health,Guys and St Thomas NHS Foundation Trust,01/05/2020,(81225) Medical Surgical Supplies & Equipment,(id:41897) TAP,NHS SUPPLY CHAIN (MAIDSTONE),id:12984936 ,  15.12
Department of Health,Guys and St Thomas NHS Foundation Trust,18/05/2020,(81225) Medical Surgical Supplies & Equipment,(id:41897) TAP,NHS SUPPLY CHAIN (MAIDSTONE),id:12976194 ,  75.60
Department of Health,Guys and St Thomas NHS Foundation Trust,01/05/2020,(81200) Medical Surgical Supplies & Equipment,(id:41894) TAP,NHS SUPPLY CHAIN (MAIDSTONE),id:12945257 , 468.67
Department of Health,Guys and St Thomas NHS Foundation Trust,18/05/2020,(82800) Bedding & Linen,(id:41883) TAP,NHS SUPPLY CHAIN (MAIDSTONE),id:12976194   ,  12.00
Department of Health,Guys and St Thomas NHS Foundation Trust,01/05/2020,(81225) Medical Surgical Supplies & Equipment,(id:41883) TAP,NHS SUPPLY CHAIN (MAIDSTONE),id:12945257 ,  78.95
Department of Health,Guys and St Thomas NHS Foundation Trust,01/05/2020,(81225) Medical Surgical Supplies & Equipment,(id:41883) TAP,NHS SUPPLY CHAIN (MAIDSTONE),id:12984936 ,  15.12
Department of Health,Guys and St Thomas NHS Foundation Trust,01/05/2020,(81200) Medical Surgical Supplies & Equipment,(id:41883) TAP,NHS SUPPLY CHAIN (MAIDSTONE),id:12957217 , 363.71
Department of Health,Guys and St Thomas NHS Foundation Trust,07/05/2020,(81200) Medical Surgical Supplies & Equipment,(id:41883) TAP,NHS SUPPLY CHAIN (MAIDSTONE),id:12997837 , 457.65
Department of Health,Guys and St Thomas NHS Foundation Trust,01/05/2020,(83400) Office Equipment,(id:41883) TAP,NHS SUPPLY CHAIN (MAIDSTONE),id:12984936  , 194.86
Department of Health,Guys and St Thomas NHS Foundation Trust,18/05/2020,(81100) Dressings,(id:41907) TAP,NHS SUPPLY CHAIN (MAIDSTONE),id:13003941    ,  74.61
Department of Health,Guys and St Thomas NHS Foundation Trust,18/05/2020,(81230) Medical Surgical Supplies & Equipment,(id:41907) TAP,NHS SUPPLY CHAIN (MAIDSTONE),id:13003941 ,1056.24
Department of Health,Guys and St Thomas NHS Foundation Trust,01/05/2020,(81200) Medical Surgical Supplies & Equipment,(id:41906) TAP,NHS SUPPLY CHAIN (MAIDSTONE),id:12945257 ,    10571.04
Department of Health,Guys and St Thomas NHS Foundation Trust,01/05/2020,(81200) Medical Surgical Supplies & Equipment,(id:41906) TAP,SQUADRON MEDICAL LTD,id:12986930    , 652.21
Department of Health,Guys and St Thomas NHS Foundation Trust,28/05/2020,(81200) Medical Surgical Supplies & Equipment,(id:41906) TAP,COOK UK LTD,id:13031928   , 969.00
Department of Health,Guys and St Thomas NHS Foundation Trust,01/05/2020,(81100) Dressings,(id:41906) TAP,NHS SUPPLY CHAIN (MAIDSTONE),id:12957217    ,  11.08
Department of Health,Guys and St Thomas NHS Foundation Trust,07/05/2020,(82600) Uniforms & Clothing,(id:41906) TAP,NHS SUPPLY CHAIN (MAIDSTONE),id:12997837    ,  15.12
Department of Health,Guys and St Thomas NHS Foundation Trust,18/05/2020,(82600) Uniforms & Clothing,(id:41906) TAP,NHS SUPPLY CHAIN (MAIDSTONE),id:13003941    , 128.06
Department of Health,Guys and St Thomas NHS Foundation Trust,01/05/2020,(82800) Bedding & Linen,(id:41905) TAP,NHS SUPPLY CHAIN (MAIDSTONE),id:12945257   ,  48.36
Department of Health,Guys and St Thomas NHS Foundation Trust,07/05/2020,(81200) Medical Surgical Supplies & Equipment,(id:41905) TAP,COOK UK LTD,id:12973798   , 570.00
Department of Health,Guys and St Thomas NHS Foundation Trust,22/05/2020,(81200) Medical Surgical Supplies & Equipment,(id:41905) TAP,SQUADRON MEDICAL LTD,id:12963929    , 971.96
Department of Health,Guys and St Thomas NHS Foundation Trust,18/05/2020,(83400) Office Equipment,(id:41905) TAP,NHS SUPPLY CHAIN (MAIDSTONE),id:12976194  ,   4.32
Department of Health,Guys and St Thomas NHS Foundation Trust,15/05/2020,(50200) Consultants,(id:41905) TAP,KINGS COLLEGE LONDON:03529700,id:12846998 ,2365.99
Department of Health,Guys and St Thomas NHS Foundation Trust,18/05/2020,(81255) Medical Surgical Supplies & Equipment,(id:41913) TAP,NHS SUPPLY CHAIN (MAIDSTONE),id:12976194 ,  85.55
Department of Health,Guys and St Thomas NHS Foundation Trust,01/05/2020,(81255) Medical Surgical Supplies & Equipment,(id:41913) TAP,NHS SUPPLY CHAIN (MAIDSTONE),id:12945257 ,   2.74
Department of Health,Guys and St Thomas NHS Foundation Trust,07/05/2020,(81200) Medical Surgical Supplies & Equipment,(id:41913) TAP,NHS SUPPLY CHAIN (MAIDSTONE),id:12997837 ,1020.05
Department of Health,Guys and St Thomas NHS Foundation Trust,01/05/2020,(83400) Office Equipment,(id:41913) TAP,NHS SUPPLY CHAIN (MAIDSTONE),id:12945257  ,  94.23
Department of Health,Guys and St Thomas NHS Foundation Trust,18/05/2020,(83400) Office Equipment,(id:41913) TAP,NHS SUPPLY CHAIN (MAIDSTONE),id:12976194  ,  61.87
Department of Health,Guys and St Thomas NHS Foundation Trust,07/05/2020,(83400) Office Equipment,(id:41913) TAP,NHS SUPPLY CHAIN (MAIDSTONE),id:12997837  , 119.43
Department of Health,Guys and St Thomas NHS Foundation Trust,01/05/2020,(83400) Office Equipment,(id:41913) TAP,SQUADRON MEDICAL LTD,id:12977569, 160.30
Department of Health,Guys and St Thomas NHS Foundation Trust,18/05/2020,(82600) Uniforms & Clothing,(id:41918) TAP,NHS SUPPLY CHAIN (MAIDSTONE),id:13003941    ,  32.45
Department of Health,Guys and St Thomas NHS Foundation Trust,01/05/2020,(82000) Provisions & Kitchens,(id:41918) TAP,NHS SUPPLY CHAIN (MAIDSTONE),id:12945257  ,   9.13
Department of Health,Guys and St Thomas NHS Foundation Trust,18/05/2020,(81200) Medical Surgical Supplies & Equipment,(id:41918) TAP,NHS SUPPLY CHAIN (MAIDSTONE),id:12976194 , 200.03
Department of Health,Guys and St Thomas NHS Foundation Trust,07/05/2020,(81200) Medical Surgical Supplies & Equipment,(id:41918) TAP,LINDSAY SURGICAL SUPPLIES LIMITED,id:13005394 , 656.28
Department of Health,Guys and St Thomas NHS Foundation Trust,01/05/2020,(81100) Dressings,(id:41918) TAP,NHS SUPPLY CHAIN (MAIDSTONE),id:12945257    ,  18.09
Department of Health,Guys and St Thomas NHS Foundation Trust,18/05/2020,(82000) Provisions & Kitchens,(id:41916) TAP,NHS SUPPLY CHAIN (MAIDSTONE),id:13003941  ,  29.95
Department of Health,Guys and St Thomas NHS Foundation Trust,18/05/2020,(82600) Uniforms & Clothing,(id:41916) TAP,NHS SUPPLY CHAIN (MAIDSTONE),id:13003941    ,  23.43
Department of Health,Guys and St Thomas NHS Foundation Trust,01/05/2020,(81200) Medical Surgical Supplies & Equipment,(id:41916) TAP,NHS SUPPLY CHAIN (MAIDSTONE),id:12945257 , 814.83
Department of Health,Guys and St Thomas NHS Foundation Trust,01/05/2020,(83400) Office Equipment,(id:41916) TAP,NHS SUPPLY CHAIN (MAIDSTONE),id:12945257  , 144.54
Department of Health,Guys and St Thomas NHS Foundation Trust,18/05/2020,(81100) Dressings,(id:884419) Surgery,NHS SUPPLY CHAIN (MAIDSTONE),id:13003941    , 922.54
Department of Health,Guys and St Thomas NHS Foundation Trust,01/05/2020,(81700) Lab Equipment Purchase,(id:884419) Surgery,NHS SUPPLY CHAIN (MAIDSTONE),id:12945257 ,   5.93
Department of Health,Guys and St Thomas NHS Foundation Trust,28/05/2020,(50200) Consultants,(id:42485) Surgery,KING'S COLLEGE HOSPITAL NHS FOUNDATION TRUST,id:13027403  ,1164.72
Department of Health,Guys and St Thomas NHS Foundation Trust,01/05/2020,(81255) Medical Surgical Supplies & Equipment,(id:42485) Surgery,NHS SUPPLY CHAIN (MAIDSTONE),id:12957217  ,   4.29
Department of Health,Guys and St Thomas NHS Foundation Trust,01/05/2020,(82800) Bedding & Linen,(id:42485) Surgery,NHS SUPPLY CHAIN (MAIDSTONE),id:12957217    ,  44.92
Department of Health,Guys and St Thomas NHS Foundation Trust,18/05/2020,(82000) Provisions & Kitchens,(id:42485) Surgery,NHS SUPPLY CHAIN (MAIDSTONE),id:13003941   ,  26.62
Department of Health,Guys and St Thomas NHS Foundation Trust,12/05/2020,(81200) Medical Surgical Supplies & Equipment,(id:42485) Surgery,FLUOPTICS SAS,id:13026154  ,    52565.37
Department of Health,Guys and St Thomas NHS Foundation Trust,15/05/2020,(89120) Other - Legal fees,(id:42485) Surgery,BEACHCROFT LLP OFFICE ACCOUNT,id:13030485,2141.60
Department of Health,Guys and St Thomas NHS Foundation Trust,28/05/2020,(81200) Medical Surgical Supplies & Equipment,(id:42484) Surgery,HEALTHCARE 21 LTD,id:13051599   , 954.00
Department of Health,Guys and St Thomas NHS Foundation Trust,15/05/2020,(81200) Medical Surgical Supplies & Equipment,(id:42484) Surgery,HEALTHCARE 21 LTD,id:13025428   ,1884.00
Department of Health,Guys and St Thomas NHS Foundation Trust,01/05/2020,(81200) Medical Surgical Supplies & Equipment,(id:42484) Surgery,NHS SUPPLY CHAIN (MAIDSTONE),id:12945257  ,   6.00
Department of Health,Guys and St Thomas NHS Foundation Trust,07/05/2020,(81200) Medical Surgical Supplies & Equipment,(id:42483) Surgery,NHS SUPPLY CHAIN (MAIDSTONE),id:12997837  , 164.63
Department of Health,Guys and St Thomas NHS Foundation Trust,01/05/2020,(81225) Medical Surgical Supplies & Equipment,(id:42483) Surgery,NHS SUPPLY CHAIN (MAIDSTONE),id:12957217  ,  53.35
Department of Health,Guys and St Thomas NHS Foundation Trust,18/05/2020,(83400) Office Equipment,(id:42483) Surgery,NHS SUPPLY CHAIN (MAIDSTONE),id:12976194   ,  99.32
Department of Health,Guys and St Thomas NHS Foundation Trust,01/05/2020,(82600) Uniforms & Clothing,(id:42483) Surgery,NHS SUPPLY CHAIN (MAIDSTONE),id:12945257,  20.52
Department of Health,Guys and St Thomas NHS Foundation Trust,22/05/2020,(84500) Establishment,(id:42482) Surgery,CDP  PRINT MANAGEMENT,id:13041994   ,   7.20
Department of Health,Guys and St Thomas NHS Foundation Trust,18/05/2020,(82800) Bedding & Linen,(id:42467) Surgery,NHS SUPPLY CHAIN (MAIDSTONE),id:13003941    ,3390.05
Department of Health,Guys and St Thomas NHS Foundation Trust,01/05/2020,(81200) Medical Surgical Supplies & Equipment,(id:42467) Surgery,JOHNSON & JOHNSON MEDICAL LTD,id:12973860 , 892.56
Department of Health,Guys and St Thomas NHS Foundation Trust,01/05/2020,(81200) Medical Surgical Supplies & Equipment,(id:42467) Surgery,JOHNSON & JOHNSON MEDICAL LTD,id:12989379 , 587.22
Department of Health,Guys and St Thomas NHS Foundation Trust,01/05/2020,(81200) Medical Surgical Supplies & Equipment,(id:42467) Surgery,BONESUPPORT AB,id:12998474 ,1728.00
Department of Health,Guys and St Thomas NHS Foundation Trust,15/05/2020,(81200) Medical Surgical Supplies & Equipment,(id:42467) Surgery,JOHNSON & JOHNSON MEDICAL LTD,id:13008408 , 555.45
Department of Health,Guys and St Thomas NHS Foundation Trust,18/05/2020,(81200) Medical Surgical Supplies & Equipment,(id:42467) Surgery,NHS SUPPLY CHAIN (MAIDSTONE),id:12976194  , 576.60
Department of Health,Guys and St Thomas NHS Foundation Trust,01/05/2020,(81200) Medical Surgical Supplies & Equipment,(id:42466) Surgery,NHS SUPPLY CHAIN (MAIDSTONE),id:12957217  ,  12.49
Department of Health,Guys and St Thomas NHS Foundation Trust,07/05/2020,(81225) Medical Surgical Supplies & Equipment,(id:42466) Surgery,OSSUR UK LTD:42113800,id:12965163    , 900.00
Department of Health,Guys and St Thomas NHS Foundation Trust,18/05/2020,(82700) Uniforms & Clothing,(id:42465) Surgery,NHS SUPPLY CHAIN (MAIDSTONE),id:12976194,  31.68
Department of Health,Guys and St Thomas NHS Foundation Trust,18/05/2020,(83400) Office Equipment,(id:42465) Surgery,NHS SUPPLY CHAIN (MAIDSTONE),id:13003941   , 283.04
Department of Health,Guys and St Thomas NHS Foundation Trust,01/05/2020,(83400) Office Equipment,(id:42465) Surgery,NHS SUPPLY CHAIN (MAIDSTONE),id:12945257   ,  64.54
Department of Health,Guys and St Thomas NHS Foundation Trust,01/05/2020,(82800) Bedding & Linen,(id:42465) Surgery,NHS SUPPLY CHAIN (MAIDSTONE),id:12945257    ,  56.43
Department of Health,Guys and St Thomas NHS Foundation Trust,22/05/2020,(84500) Establishment,(id:42465) Surgery,CDP  PRINT MANAGEMENT,id:13040918   ,  38.10
Department of Health,Guys and St Thomas NHS Foundation Trust,07/05/2020,(81225) Medical Surgical Supplies & Equipment,(id:42465) Surgery,NHS SUPPLY CHAIN (MAIDSTONE),id:12997837  ,  43.56
Department of Health,Guys and St Thomas NHS Foundation Trust,07/05/2020,(81200) Medical Surgical Supplies & Equipment,(id:42465) Surgery,NHS SUPPLY CHAIN (MAIDSTONE),id:12997837  , 119.33
Department of Health,Guys and St Thomas NHS Foundation Trust,18/05/2020,(81100) Dressings,(id:42465) Surgery,NHS SUPPLY CHAIN (MAIDSTONE),id:12976194, 169.39
Department of Health,Guys and St Thomas NHS Foundation Trust,01/05/2020,(81100) Dressings,(id:42465) Surgery,NHS SUPPLY CHAIN (MAIDSTONE),id:12957217, 103.03
Department of Health,Guys and St Thomas NHS Foundation Trust,18/05/2020,(83400) Office Equipment,(id:42464) Surgery,NHS SUPPLY CHAIN (MAIDSTONE),id:13003941   ,  53.18
Department of Health,Guys and St Thomas NHS Foundation Trust,18/05/2020,(81200) Medical Surgical Supplies & Equipment,(id:42463) Surgery,NHS SUPPLY CHAIN (MAIDSTONE),id:12976194  ,  16.25
Department of Health,Guys and St Thomas NHS Foundation Trust,18/05/2020,(81100) Dressings,(id:42463) Surgery,NHS SUPPLY CHAIN (MAIDSTONE),id:13003941,   4.91
Department of Health,Guys and St Thomas NHS Foundation Trust,07/05/2020,(81200) Medical Surgical Supplies & Equipment,(id:42461) Surgery,NHS SUPPLY CHAIN (MAIDSTONE),id:12997837  ,  59.26
Department of Health,Guys and St Thomas NHS Foundation Trust,01/05/2020,(81700) Lab Equipment Purchase,(id:42459) Surgery,NHS SUPPLY CHAIN (MAIDSTONE),id:12945257  ,  15.79
Department of Health,Guys and St Thomas NHS Foundation Trust,18/05/2020,(81700) Lab Equipment Purchase,(id:42459) Surgery,NHS SUPPLY CHAIN (MAIDSTONE),id:13003941  ,  16.15
Department of Health,Guys and St Thomas NHS Foundation Trust,01/05/2020,(82800) Bedding & Linen,(id:42458) Surgery,NHS SUPPLY CHAIN (MAIDSTONE),id:12957217    ,  34.55
Department of Health,Guys and St Thomas NHS Foundation Trust,01/05/2020,(81100) Dressings,(id:42458) Surgery,NHS SUPPLY CHAIN (MAIDSTONE),id:12957217,  65.00
Department of Health,Guys and St Thomas NHS Foundation Trust,18/05/2020,(81700) Lab Equipment Purchase,(id:42458) Surgery,NHS SUPPLY CHAIN (MAIDSTONE),id:13003941  ,  23.63
Department of Health,Guys and St Thomas NHS Foundation Trust,01/05/2020,(55052) Admin & Clerical,(id:42453) Surgery,VENN GROUP LTD,id:13009563  ,2305.26
Department of Health,Guys and St Thomas NHS Foundation Trust,22/05/2020,(81200) Medical Surgical Supplies & Equipment,(id:41863) PACCS,REMSERVE MEDICAL SUPPLIES LTD,id:13039454   ,  18.00
Department of Health,Guys and St Thomas NHS Foundation Trust,22/05/2020,(81200) Medical Surgical Supplies & Equipment,(id:41863) PACCS,RESMED (UK) LTD,id:13038937  ,4608.00
Department of Health,Guys and St Thomas NHS Foundation Trust,22/05/2020,(81200) Medical Surgical Supplies & Equipment,(id:41863) PACCS,RESMED (UK) LTD,id:13037846  ,4800.00
Department of Health,Guys and St Thomas NHS Foundation Trust,28/05/2020,(81200) Medical Surgical Supplies & Equipment,(id:41863) PACCS,RESMED (UK) LTD,id:13046957  ,3435.36
Department of Health,Guys and St Thomas NHS Foundation Trust,28/05/2020,(81200) Medical Surgical Supplies & Equipment,(id:41863) PACCS,RESMED (UK) LTD,id:13046972  ,4809.60
Department of Health,Guys and St Thomas NHS Foundation Trust,28/05/2020,(81200) Medical Surgical Supplies & Equipment,(id:41863) PACCS,RESMED (UK) LTD,id:13046964  ,4608.00
Department of Health,Guys and St Thomas NHS Foundation Trust,28/05/2020,(81200) Medical Surgical Supplies & Equipment,(id:41863) PACCS,RESMED (UK) LTD,id:13046968  ,4350.00
Department of Health,Guys and St Thomas NHS Foundation Trust,28/05/2020,(81200) Medical Surgical Supplies & Equipment,(id:41863) PACCS,RESMED (UK) LTD,id:13046971  ,3931.20
Department of Health,Guys and St Thomas NHS Foundation Trust,28/05/2020,(81200) Medical Surgical Supplies & Equipment,(id:41863) PACCS,RESMED (UK) LTD,id:13046962  ,4320.00
Department of Health,Guys and St Thomas NHS Foundation Trust,22/05/2020,(81255) Medical Surgical Supplies & Equipment,(id:41863) PACCS,REMSERVE MEDICAL SUPPLIES LTD,id:13039454   ,3822.00
Department of Health,Guys and St Thomas NHS Foundation Trust,22/05/2020,(83410) Office Equipment,(id:1856419) PACCS,RICOH UK LTD,id:13037348    , 735.06
Department of Health,Guys and St Thomas NHS Foundation Trust,01/05/2020,(82600) Uniforms & Clothing,(id:41935) PACCS,NHS SUPPLY CHAIN (MAIDSTONE),id:12957217  ,  49.68
Department of Health,Guys and St Thomas NHS Foundation Trust,01/05/2020,(82000) Provisions & Kitchens,(id:41935) PACCS,NHS SUPPLY CHAIN (MAIDSTONE),id:12957217,   2.14
Department of Health,Guys and St Thomas NHS Foundation Trust,01/05/2020,(82800) Bedding & Linen,(id:41935) PACCS,NHS SUPPLY CHAIN (MAIDSTONE),id:12945257 , 184.84
Department of Health,Guys and St Thomas NHS Foundation Trust,01/05/2020,(81200) Medical Surgical Supplies & Equipment,(id:41935) PACCS,RESMED (UK) LTD,id:13005934  , 574.20
Department of Health,Guys and St Thomas NHS Foundation Trust,15/05/2020,(81200) Medical Surgical Supplies & Equipment,(id:41935) PACCS,RESMED (UK) LTD,id:12921507  , 780.00
Department of Health,Guys and St Thomas NHS Foundation Trust,07/05/2020,(81225) Medical Surgical Supplies & Equipment,(id:41935) PACCS,NHS SUPPLY CHAIN (MAIDSTONE),id:12997837    ,  61.58
Department of Health,Guys and St Thomas NHS Foundation Trust,15/05/2020,(81000) Surgical Appliances,(id:41935) PACCS,TALAR MADE ORTHOTICS LTD,id:13032683 ,  28.80
Department of Health,Guys and St Thomas NHS Foundation Trust,15/05/2020,(81000) Surgical Appliances,(id:41935) PACCS,TALAR MADE ORTHOTICS LTD,id:12933154 , 117.79
Department of Health,Guys and St Thomas NHS Foundation Trust,01/05/2020,(81000) Surgical Appliances,(id:41935) PACCS,THUASNE UK LTD,id:13006944 ,5040.00
Department of Health,Guys and St Thomas NHS Foundation Trust,01/05/2020,(80010) Drug Costs,(id:41935) PACCS,NHS SUPPLY CHAIN (MAIDSTONE),id:12984936 ,  19.44
Department of Health,Guys and St Thomas NHS Foundation Trust,18/05/2020,(81700) Lab Equipment Purchase,(id:4641419) PACCS,NHS SUPPLY CHAIN (MAIDSTONE),id:12976194  , 187.20
Department of Health,Guys and St Thomas NHS Foundation Trust,15/05/2020,(89440) Research and Development,(id:4576420) PACCS,KINGS COLLEGE LONDON:03529700,id:13016620    ,1019.00
Department of Health,Guys and St Thomas NHS Foundation Trust,15/05/2020,(81200) Medical Surgical Supplies & Equipment,(id:4620419) PACCS,KAPITEX HEALTHCARE LTD,id:13007237   , 658.19
Department of Health,Guys and St Thomas NHS Foundation Trust,15/05/2020,(81200) Medical Surgical Supplies & Equipment,(id:4620419) PACCS,KAPITEX HEALTHCARE LTD,id:13030489   , 835.30
Department of Health,Guys and St Thomas NHS Foundation Trust,28/05/2020,(81200) Medical Surgical Supplies & Equipment,(id:4620419) PACCS,SQUADRON MEDICAL LTD,id:13039766, 848.57
Department of Health,Guys and St Thomas NHS Foundation Trust,28/05/2020,(81200) Medical Surgical Supplies & Equipment,(id:4620419) PACCS,INTERSURGICAL LTD,id:13053774   ,1044.00
Department of Health,Guys and St Thomas NHS Foundation Trust,01/05/2020,(81200) Medical Surgical Supplies & Equipment,(id:4620419) PACCS,INTERSURGICAL LTD,id:12999797   ,1790.40
Department of Health,Guys and St Thomas NHS Foundation Trust,07/05/2020,(81200) Medical Surgical Supplies & Equipment,(id:4620419) PACCS,BARD LTD,id:12974067  , 650.40
Department of Health,Guys and St Thomas NHS Foundation Trust,07/05/2020,(81200) Medical Surgical Supplies & Equipment,(id:4620419) PACCS,DELTA SURGICAL LTD,id:12999477  ,1807.91
Department of Health,Guys and St Thomas NHS Foundation Trust,07/05/2020,(81200) Medical Surgical Supplies & Equipment,(id:4620419) PACCS,FISHER & PAYKEL HEALTHCARE LTD,id:12999197, 725.76
Department of Health,Guys and St Thomas NHS Foundation Trust,07/05/2020,(81200) Medical Surgical Supplies & Equipment,(id:3135419) PACCS,NHS SUPPLY CHAIN (MAIDSTONE),id:12997837  ,4021.91
Department of Health,Guys and St Thomas NHS Foundation Trust,01/05/2020,(83400) Office Equipment,(id:3135419) PACCS,NHS SUPPLY CHAIN (MAIDSTONE),id:12945257   ,  10.80
Department of Health,Guys and St Thomas NHS Foundation Trust,18/05/2020,(81200) Medical Surgical Supplies & Equipment,(id:2121419) PACCS,NHS SUPPLY CHAIN (MAIDSTONE),id:13003941  , 840.38
Department of Health,Guys and St Thomas NHS Foundation Trust,18/05/2020,(81700) Lab Equipment Purchase,(id:1842421) PACCS,NHS SUPPLY CHAIN (MAIDSTONE),id:13003941  ,   9.90
Department of Health,Guys and St Thomas NHS Foundation Trust,01/05/2020,(81200) Medical Surgical Supplies & Equipment,(id:1842421) PACCS,NHS SUPPLY CHAIN (MAIDSTONE),id:12984936  ,1473.03
Department of Health,Guys and St Thomas NHS Foundation Trust,01/05/2020,(81200) Medical Surgical Supplies & Equipment,(id:1842421) PACCS,NHS SUPPLY CHAIN (MAIDSTONE),id:12945257  ,2094.69
Department of Health,Guys and St Thomas NHS Foundation Trust,07/05/2020,(82800) Bedding & Linen,(id:1842421) PACCS,NHS SUPPLY CHAIN (MAIDSTONE),id:12997837    ,  27.74
Department of Health,Guys and St Thomas NHS Foundation Trust,01/05/2020,(82000) Provisions & Kitchens,(id:1842421) PACCS,NHS SUPPLY CHAIN (MAIDSTONE),id:12984936   , 108.01
Department of Health,Guys and St Thomas NHS Foundation Trust,18/05/2020,(82000) Provisions & Kitchens,(id:1842421) PACCS,NHS SUPPLY CHAIN (MAIDSTONE),id:12976194   , 135.93
Department of Health,Guys and St Thomas NHS Foundation Trust,01/05/2020,(81225) Medical Surgical Supplies & Equipment,(id:1842421) PACCS,NHS SUPPLY CHAIN (MAIDSTONE),id:12984936  ,  49.61
Department of Health,Guys and St Thomas NHS Foundation Trust,18/05/2020,(81225) Medical Surgical Supplies & Equipment,(id:1842421) PACCS,NHS SUPPLY CHAIN (MAIDSTONE),id:13003941  ,  27.36
Department of Health,Guys and St Thomas NHS Foundation Trust,18/05/2020,(81225) Medical Surgical Supplies & Equipment,(id:1842421) PACCS,NHS SUPPLY CHAIN (MAIDSTONE),id:12976194  ,  28.80
Department of Health,Guys and St Thomas NHS Foundation Trust,01/05/2020,(83400) Office Equipment,(id:1842421) PACCS,NHS SUPPLY CHAIN (MAIDSTONE),id:12945257   , 134.06
Department of Health,Guys and St Thomas NHS Foundation Trust,18/05/2020,(83400) Office Equipment,(id:1842421) PACCS,NHS SUPPLY CHAIN (MAIDSTONE),id:13003941   , 209.43
Department of Health,Guys and St Thomas NHS Foundation Trust,01/05/2020,(81255) Medical Surgical Supplies & Equipment,(id:1842421) PACCS,NHS SUPPLY CHAIN (MAIDSTONE),id:12957217  ,   3.12
Department of Health,Guys and St Thomas NHS Foundation Trust,07/05/2020,(81200) Medical Surgical Supplies & Equipment,(id:863419) PACCS,MAQUET LIMITED,id:13003414  ,    22560.00
Department of Health,Guys and St Thomas NHS Foundation Trust,15/05/2020,(81200) Medical Surgical Supplies & Equipment,(id:863419) PACCS,MEDTRONIC LTD,id:13007288   ,2592.00
Department of Health,Guys and St Thomas NHS Foundation Trust,15/05/2020,(81200) Medical Surgical Supplies & Equipment,(id:863419) PACCS,MAQUET LIMITED,id:13010037  ,    22560.00
Department of Health,Guys and St Thomas NHS Foundation Trust,01/05/2020,(81200) Medical Surgical Supplies & Equipment,(id:863419) PACCS,NHS SUPPLY CHAIN (MAIDSTONE),id:12945257   ,3082.80
Department of Health,Guys and St Thomas NHS Foundation Trust,07/05/2020,(82800) Bedding & Linen,(id:863419) PACCS,NHS SUPPLY CHAIN (MAIDSTONE),id:12997837, 173.74
Department of Health,Guys and St Thomas NHS Foundation Trust,18/05/2020,(83400) Office Equipment,(id:863419) PACCS,NHS SUPPLY CHAIN (MAIDSTONE),id:13003941    , 242.06
Department of Health,Guys and St Thomas NHS Foundation Trust,01/05/2020,(83400) Office Equipment,(id:41931) PACCS,NHS SUPPLY CHAIN (MAIDSTONE),id:12984936, 566.56
Department of Health,Guys and St Thomas NHS Foundation Trust,01/05/2020,(80010) Drug Costs,(id:41931) PACCS,NHS SUPPLY CHAIN (MAIDSTONE),id:12945257 ,  68.16
Department of Health,Guys and St Thomas NHS Foundation Trust,01/05/2020,(82600) Uniforms & Clothing,(id:41928) PACCS,NHS SUPPLY CHAIN (MAIDSTONE),id:12984936  ,  31.76
Department of Health,Guys and St Thomas NHS Foundation Trust,01/05/2020,(83400) Office Equipment,(id:41928) PACCS,NHS SUPPLY CHAIN (MAIDSTONE),id:12984936, 215.00
Department of Health,Guys and St Thomas NHS Foundation Trust,15/05/2020,(83400) Office Equipment,(id:41928) PACCS,SQUADRON MEDICAL LTD,id:13007331   ,  26.05
Department of Health,Guys and St Thomas NHS Foundation Trust,18/05/2020,(83400) Office Equipment,(id:41928) PACCS,NHS SUPPLY CHAIN (MAIDSTONE),id:13003941, 893.49
Department of Health,Guys and St Thomas NHS Foundation Trust,22/05/2020,(82800) Bedding & Linen,(id:41928) PACCS,GAILARDE LTD,id:13023095  , 660.00
Department of Health,Guys and St Thomas NHS Foundation Trust,22/05/2020,(82800) Bedding & Linen,(id:41928) PACCS,GAILARDE LTD,id:13023094  , 660.00
Department of Health,Guys and St Thomas NHS Foundation Trust,07/05/2020,(81100) Dressings,(id:41928) PACCS,NHS SUPPLY CHAIN (MAIDSTONE),id:12997837  , 297.13
Department of Health,Guys and St Thomas NHS Foundation Trust,07/05/2020,(81100) Dressings,(id:41928) PACCS,TELEFLEX MEDICAL,id:12977448    , 639.00
Department of Health,Guys and St Thomas NHS Foundation Trust,07/05/2020,(81200) Medical Surgical Supplies & Equipment,(id:41928) PACCS,KAPITEX HEALTHCARE LTD,id:13002754, 558.00
Department of Health,Guys and St Thomas NHS Foundation Trust,15/05/2020,(81200) Medical Surgical Supplies & Equipment,(id:41928) PACCS,SQUADRON MEDICAL LTD,id:13015642  , 772.96
Department of Health,Guys and St Thomas NHS Foundation Trust,22/05/2020,(81200) Medical Surgical Supplies & Equipment,(id:41928) PACCS,STRYKER UK LTD,id:13037277   , 576.00
Department of Health,Guys and St Thomas NHS Foundation Trust,22/05/2020,(81200) Medical Surgical Supplies & Equipment,(id:41928) PACCS,FISHER & PAYKEL HEALTHCARE LTD,id:13033330  , 735.84
Department of Health,Guys and St Thomas NHS Foundation Trust,07/05/2020,(81200) Medical Surgical Supplies & Equipment,(id:41928) PACCS,BAXTER HEALTHCARE LTD,id:12998754 , 558.00
Department of Health,Guys and St Thomas NHS Foundation Trust,07/05/2020,(81200) Medical Surgical Supplies & Equipment,(id:41928) PACCS,SQUADRON MEDICAL LTD,id:12994811  ,1630.75
Department of Health,Guys and St Thomas NHS Foundation Trust,01/05/2020,(81200) Medical Surgical Supplies & Equipment,(id:41928) PACCS,STRYKER UK LTD,id:12996127   , 576.00
Department of Health,Guys and St Thomas NHS Foundation Trust,28/05/2020,(81200) Medical Surgical Supplies & Equipment,(id:41928) PACCS,BARD LTD,id:12977728    ,2366.40
Department of Health,Guys and St Thomas NHS Foundation Trust,28/05/2020,(81200) Medical Surgical Supplies & Equipment,(id:41928) PACCS,BARD LTD,id:13007434    ,2366.40
Department of Health,Guys and St Thomas NHS Foundation Trust,15/05/2020,(81400) Medical Surgical Supplies & Equipment,(id:41928) PACCS,DRAEGER MEDICAL UK LTD,id:13017554,    18622.00
Department of Health,Guys and St Thomas NHS Foundation Trust,22/05/2020,(50552) Qualified Nursing Staff,(id:41928) PACCS,CONTINENTAL NURSE LTD,id:13043882,2597.68
Department of Health,Guys and St Thomas NHS Foundation Trust,01/05/2020,(50522) Unqualified Nursing Staff,(id:41928) PACCS,MSI GROUP LTD,id:13006114 , 767.91
Department of Health,Guys and St Thomas NHS Foundation Trust,15/05/2020,(50522) Unqualified Nursing Staff,(id:41928) PACCS,MSI GROUP LTD,id:13030987 , 225.53
Department of Health,Guys and St Thomas NHS Foundation Trust,07/05/2020,(89270) Establishment,(id:41928) PACCS,BIOQUELL UK LTD,id:13002441 ,1988.16
Department of Health,Guys and St Thomas NHS Foundation Trust,01/05/2020,(81230) Medical Surgical Supplies & Equipment,(id:41928) PACCS,NHS SUPPLY CHAIN (MAIDSTONE),id:12984936    , 936.64
Department of Health,Guys and St Thomas NHS Foundation Trust,18/05/2020,(81700) Lab Equipment Purchase,(id:41928) PACCS,NHS SUPPLY CHAIN (MAIDSTONE),id:12976194    , 156.78
Department of Health,Guys and St Thomas NHS Foundation Trust,18/05/2020,(81700) Lab Equipment Purchase,(id:41928) PACCS,NHS SUPPLY CHAIN (MAIDSTONE),id:13003941    , 143.30
Department of Health,Guys and St Thomas NHS Foundation Trust,15/05/2020,(81700) Lab Equipment Purchase,(id:41928) PACCS,SQUADRON MEDICAL LTD,id:13013812  ,   9.65
Department of Health,Guys and St Thomas NHS Foundation Trust,15/05/2020,(50562) Qualified Nursing Staff,(id:41928) PACCS,MEDICSPRO LTD,id:13031102   , 421.20
Department of Health,Guys and St Thomas NHS Foundation Trust,15/05/2020,(50562) Qualified Nursing Staff,(id:41928) PACCS,PULSE HEALTHCARE LIMITED,id:13030984  , 429.52
Department of Health,Guys and St Thomas NHS Foundation Trust,22/05/2020,(50562) Qualified Nursing Staff,(id:41928) PACCS,PULSE HEALTHCARE LIMITED,id:13043690  , 421.20
Department of Health,Guys and St Thomas NHS Foundation Trust,22/05/2020,(50562) Qualified Nursing Staff,(id:41928) PACCS,PULSE HEALTHCARE LIMITED,id:13043560  , 431.60
Department of Health,Guys and St Thomas NHS Foundation Trust,22/05/2020,(50562) Qualified Nursing Staff,(id:41928) PACCS,MEDICSPRO LTD,id:13043516   , 502.21
Department of Health,Guys and St Thomas NHS Foundation Trust,22/05/2020,(50562) Qualified Nursing Staff,(id:41928) PACCS,PULSE HEALTHCARE LIMITED,id:13043824  , 502.21
Department of Health,Guys and St Thomas NHS Foundation Trust,22/05/2020,(50562) Qualified Nursing Staff,(id:41928) PACCS,JUST NURSES (NURSCO HEALTHCARE LIMITED),id:13043595  , 512.02
Department of Health,Guys and St Thomas NHS Foundation Trust,07/05/2020,(50562) Qualified Nursing Staff,(id:41928) PACCS,MEDICSPRO LTD,id:13018066   , 429.52
Department of Health,Guys and St Thomas NHS Foundation Trust,01/05/2020,(50562) Qualified Nursing Staff,(id:41928) PACCS,FIRSTPOINT HEALTHCARE LTD,id:13006204 , 515.20
Department of Health,Guys and St Thomas NHS Foundation Trust,01/05/2020,(82700) Uniforms & Clothing,(id:41928) PACCS,NHS SUPPLY CHAIN (MAIDSTONE),id:12957217  , 279.18
Department of Health,Guys and St Thomas NHS Foundation Trust,07/05/2020,(82000) Provisions & Kitchens,(id:41927) PACCS,NHS SUPPLY CHAIN (MAIDSTONE),id:12997837,  92.63
Department of Health,Guys and St Thomas NHS Foundation Trust,01/05/2020,(82600) Uniforms & Clothing,(id:41927) PACCS,NHS SUPPLY CHAIN (MAIDSTONE),id:12945257  ,  34.96
Department of Health,Guys and St Thomas NHS Foundation Trust,22/05/2020,(84500) Establishment,(id:41927) PACCS,CDP  PRINT MANAGEMENT,id:13040918,  23.20
Department of Health,Guys and St Thomas NHS Foundation Trust,22/05/2020,(84500) Establishment,(id:41927) PACCS,CDP  PRINT MANAGEMENT,id:13040917,   3.10
Department of Health,Guys and St Thomas NHS Foundation Trust,22/05/2020,(84500) Establishment,(id:41927) PACCS,CDP  PRINT MANAGEMENT,id:13041994,  28.80
Department of Health,Guys and St Thomas NHS Foundation Trust,01/05/2020,(81200) Medical Surgical Supplies & Equipment,(id:41927) PACCS,PROTECH MEDICAL LTD,id:12992856   , 670.56
Department of Health,Guys and St Thomas NHS Foundation Trust,01/05/2020,(81200) Medical Surgical Supplies & Equipment,(id:41927) PACCS,CONVATEC LTD,id:12998970, 972.00
Department of Health,Guys and St Thomas NHS Foundation Trust,01/05/2020,(81225) Medical Surgical Supplies & Equipment,(id:41927) PACCS,NHS SUPPLY CHAIN (MAIDSTONE),id:12945257    ,  77.21
Department of Health,Guys and St Thomas NHS Foundation Trust,18/05/2020,(81225) Medical Surgical Supplies & Equipment,(id:41927) PACCS,NHS SUPPLY CHAIN (MAIDSTONE),id:12976194    , 103.51
Department of Health,Guys and St Thomas NHS Foundation Trust,01/05/2020,(81700) Lab Equipment Purchase,(id:41927) PACCS,NHS SUPPLY CHAIN (MAIDSTONE),id:12984936    ,  47.57
Department of Health,Guys and St Thomas NHS Foundation Trust,01/05/2020,(82000) Provisions & Kitchens,(id:41864) PACCS,NHS SUPPLY CHAIN (MAIDSTONE),id:12984936,   7.80
Department of Health,Guys and St Thomas NHS Foundation Trust,15/05/2020,(50203) Consultants,(id:41864) PACCS,KINGS COLLEGE LONDON:03529700,id:12782647    ,2022.94
